Workbook

Sheet Summary
E2: All Intra Main10
E3: =CONCATENATE("Over ", $J$3) -> Over VTM5-rc1-MIP-off-with-cfg-off | I3: Reference: | J3: VTM5-rc1-MIP-off-with-cfg-off
C4: Y | D4: U | E4: V | F4: EncT | G4: DecT | I4: Tested: | J4: MIP by macro off
B5: Class A1 | C5: ='AI-10'!V107 ->  | D5: ='AI-10'!W107 ->  | E5: ='AI-10'!X107 ->  | F5: ='AI-10'!S107 ->  | G5: ='AI-10'!T107 -> 
B6: Class A2 | C6: ='AI-10'!V108 ->  | D6: ='AI-10'!W108 ->  | E6: ='AI-10'!X108 ->  | F6: ='AI-10'!S108 ->  | G6: ='AI-10'!T108 -> 
B7: Class B | C7: ='AI-10'!V109 ->  | D7: ='AI-10'!W109 ->  | E7: ='AI-10'!X109 ->  | F7: ='AI-10'!S109 ->  | G7: ='AI-10'!T109 -> 
B8: Class C | C8: ='AI-10'!V110 ->  | D8: ='AI-10'!W110 ->  | E8: ='AI-10'!X110 ->  | F8: ='AI-10'!S110 ->  | G8: ='AI-10'!T110 -> 
B9: Class E | C9: ='AI-10'!V112 ->  | D9: ='AI-10'!W112 ->  | E9: ='AI-10'!X112 ->  | F9: ='AI-10'!S112 ->  | G9: ='AI-10'!T112 -> 
B10: Overall | C10: ='AI-10'!V114 ->  | D10: ='AI-10'!W114 ->  | E10: ='AI-10'!X114 ->  | F10: ='AI-10'!S114 ->  | G10: ='AI-10'!T114 ->  | I10: Note: BD-rate is computed using piece-wise cubic interpolation
B11: Class D | C11: ='AI-10'!V111 -> -0.0002175552443 | D11: ='AI-10'!W111 -> -0.001314091843 | E11: ='AI-10'!X111 -> -0.0004169573572 | F11: ='AI-10'!S111 -> 0.9694739248 | G11: ='AI-10'!T111 -> 0.9941189278
B12: Class F | C12: ='AI-10'!V113 ->  | D12: ='AI-10'!W113 ->  | E12: ='AI-10'!X113 ->  | F12: ='AI-10'!S113 ->  | G12: ='AI-10'!T113 -> 
I13: Cluster information
E14: Random access Main10
E15: =CONCATENATE("Over ", $J$3) -> Over VTM5-rc1-MIP-off-with-cfg-off | I15: CPU type: | J15: (e.g. Xeon …)
C16: Y | D16: U | E16: V | F16: EncT | G16: DecT
B17: =B5 -> Class A1 | C17: ='RA-10'!V107 ->  | D17: ='RA-10'!W107 ->  | E17: ='RA-10'!X107 ->  | F17: ='RA-10'!S107 ->  | G17: ='RA-10'!T107 ->  | I17: Hyperthreading: | J17: (on/off)
B18: =B6 -> Class A2 | C18: ='RA-10'!V108 ->  | D18: ='RA-10'!W108 ->  | E18: ='RA-10'!X108 ->  | F18: ='RA-10'!S108 ->  | G18: ='RA-10'!T108 ->  | I18: Turbo mode: | J18: (on/off)
B19: =B7 -> Class B | C19: ='RA-10'!V109 ->  | D19: ='RA-10'!W109 ->  | E19: ='RA-10'!X109 ->  | F19: ='RA-10'!S109 ->  | G19: ='RA-10'!T109 -> 
B20: =B8 -> Class C | C20: ='RA-10'!V110 ->  | D20: ='RA-10'!W110 ->  | E20: ='RA-10'!X110 ->  | F20: ='RA-10'!S110 ->  | G20: ='RA-10'!T110 ->  | I20: Compiler: | J20: (e.g. gcc 7.3.1)
B21: =B9 -> Class E
B22: Overall | C22: ='RA-10'!V114 ->  | D22: ='RA-10'!W114 ->  | E22: ='RA-10'!X114 ->  | F22: ='RA-10'!S114 ->  | G22: ='RA-10'!T114 ->  | I22: OS: | J22: (e.g. Scientific Linux)
B23: =B11 -> Class D | C23: ='RA-10'!V111 ->  | D23: ='RA-10'!W111 ->  | E23: ='RA-10'!X111 ->  | F23: ='RA-10'!S111 ->  | G23: ='RA-10'!T111 -> 
B24: =B12 -> Class F | C24: ='RA-10'!V113 ->  | D24: ='RA-10'!W113 ->  | E24: ='RA-10'!X113 ->  | F24: ='RA-10'!S113 ->  | G24: ='RA-10'!T113 ->  | I24: Decoding options
E26: Low delay B Main10 | I26: Bitstream concatenation: | J26: (yes/no)
E27: =CONCATENATE("Over ", $J$3) -> Over VTM5-rc1-MIP-off-with-cfg-off
C28: Y | D28: U | E28: V | F28: EncT | G28: DecT | I28: MD5 SEI: | J28: (yes/no)
B29: =B5 -> Class A1 | I29: YUV output: | J29: (yes/no)
B30: =B6 -> Class A2
B31: =B7 -> Class B | C31: ='LDB-10'!V109 ->  | D31: ='LDB-10'!W109 ->  | E31: ='LDB-10'!X109 ->  | F31: ='LDB-10'!S109 ->  | G31: ='LDB-10'!T109 ->  | I31: SIMD options: | J31: (e.g. SSE2)
B32: =B8 -> Class C | C32: ='LDB-10'!V110 ->  | D32: ='LDB-10'!W110 ->  | E32: ='LDB-10'!X110 ->  | F32: ='LDB-10'!S110 ->  | G32: ='LDB-10'!T110 -> 
B33: =B9 -> Class E | C33: ='LDB-10'!V112 ->  | D33: ='LDB-10'!W112 ->  | E33: ='LDB-10'!X112 ->  | F33: ='LDB-10'!S112 ->  | G33: ='LDB-10'!T112 ->  | I33: BMS macro (VTM decoding) | J33: (on/off)
B34: Overall | C34: ='LDB-10'!V114 ->  | D34: ='LDB-10'!W114 ->  | E34: ='LDB-10'!X114 ->  | F34: ='LDB-10'!S114 ->  | G34: ='LDB-10'!T114 -> 
B35: =B11 -> Class D | C35: ='LDB-10'!V111 ->  | D35: ='LDB-10'!W111 ->  | E35: ='LDB-10'!X111 ->  | F35: ='LDB-10'!S111 ->  | G35: ='LDB-10'!T111 -> 
B36: =B12 -> Class F | C36: ='LDB-10'!V113 ->  | D36: ='LDB-10'!W113 ->  | E36: ='LDB-10'!X113 ->  | F36: ='LDB-10'!S113 ->  | G36: ='LDB-10'!T113 -> 
E38: Low delay P Main10
E39: =CONCATENATE("Over ", $J$3) -> Over VTM5-rc1-MIP-off-with-cfg-off
C40: Y | D40: U | E40: V | F40: EncT | G40: DecT
B41: =B5 -> Class A1
B42: =B6 -> Class A2
B43: =B7 -> Class B | C43: ='LDP-10'!V109 ->  | D43: ='LDP-10'!W109 ->  | E43: ='LDP-10'!X109 ->  | F43: ='LDP-10'!S109 ->  | G43: ='LDP-10'!T109 -> 
B44: =B8 -> Class C | C44: ='LDP-10'!V110 ->  | D44: ='LDP-10'!W110 ->  | E44: ='LDP-10'!X110 ->  | F44: ='LDP-10'!S110 ->  | G44: ='LDP-10'!T110 -> 
B45: =B9 -> Class E | C45: ='LDP-10'!V112 ->  | D45: ='LDP-10'!W112 ->  | E45: ='LDP-10'!X112 ->  | F45: ='LDP-10'!S112 ->  | G45: ='LDP-10'!T112 -> 
B46: Overall | C46: ='LDP-10'!V114 ->  | D46: ='LDP-10'!W114 ->  | E46: ='LDP-10'!X114 ->  | F46: ='LDP-10'!S114 ->  | G46: ='LDP-10'!T114 -> 
B47: =B11 -> Class D | C47: ='LDP-10'!V111 ->  | D47: ='LDP-10'!W111 ->  | E47: ='LDP-10'!X111 ->  | F47: ='LDP-10'!S111 ->  | G47: ='LDP-10'!T111 -> 
B48: =B12 -> Class F | C48: ='LDP-10'!V113 ->  | D48: ='LDP-10'!W113 ->  | E48: ='LDP-10'!X113 ->  | F48: ='LDP-10'!S113 ->  | G48: ='LDP-10'!T113 -> 

Sheet Plot
A1: Select the coding condition and sequence from the dropbox below | AD1: Line 1 - Reference | AI1: Line 2 - Test
A2: RA-10 | B2: Tango2 | AD2: kbps | AE2: Y psnr | AF2: U psnr | AG2: V psnr | AI2: kbps | AJ2: Y psnr | AK2: U psnr | AL2: V psnr
Z3: AI-10 | AA3: Tango2 | AB3: 3 | AC3: =VLOOKUP(B2,AA3:AB43,2,FALSE) -> 3 | AD3: =INDIRECT("'"&$A$2&"'!"&ADDRESS($AC3,4)) -> 0 | AE3: =INDIRECT("'"&$A$2&"'!"&ADDRESS($AC3,5)) -> 0 | AF3: =INDIRECT("'"&$A$2&"'!"&ADDRESS($AC3,6)) -> 0 | AG3: =INDIRECT("'"&$A$2&"'!"&ADDRESS($AC3,7)) -> 0 | AI3: =INDIRECT("'"&$A$2&"'!"&ADDRESS($AC3,12)) -> 0 | AJ3: =INDIRECT("'"&$A$2&"'!"&ADDRESS($AC3,13)) -> 0 | AK3: =INDIRECT("'"&$A$2&"'!"&ADDRESS($AC3,14)) -> 0 | AL3: =INDIRECT("'"&$A$2&"'!"&ADDRESS($AC3,15)) -> 0
Z4: RA-10 | AA4: FoodMarket4 | AB4: =AB3+4 -> 7 | AC4: =AC3+1 -> 4 | AD4: =INDIRECT("'"&$A$2&"'!"&ADDRESS($AC4,4)) -> 0 | AE4: =INDIRECT("'"&$A$2&"'!"&ADDRESS($AC4,5)) -> 0 | AF4: =INDIRECT("'"&$A$2&"'!"&ADDRESS($AC4,6)) -> 0 | AG4: =INDIRECT("'"&$A$2&"'!"&ADDRESS($AC4,7)) -> 0 | AI4: =INDIRECT("'"&$A$2&"'!"&ADDRESS($AC4,12)) -> 0 | AJ4: =INDIRECT("'"&$A$2&"'!"&ADDRESS($AC4,13)) -> 0 | AK4: =INDIRECT("'"&$A$2&"'!"&ADDRESS($AC4,14)) -> 0 | AL4: =INDIRECT("'"&$A$2&"'!"&ADDRESS($AC4,15)) -> 0
Z5: LDB-10 | AA5: Campfire | AB5: =AB4+4 -> 11 | AC5: =AC4+1 -> 5 | AD5: =INDIRECT("'"&$A$2&"'!"&ADDRESS($AC5,4)) -> 0 | AE5: =INDIRECT("'"&$A$2&"'!"&ADDRESS($AC5,5)) -> 0 | AF5: =INDIRECT("'"&$A$2&"'!"&ADDRESS($AC5,6)) -> 0 | AG5: =INDIRECT("'"&$A$2&"'!"&ADDRESS($AC5,7)) -> 0 | AI5: =INDIRECT("'"&$A$2&"'!"&ADDRESS($AC5,12)) -> 0 | AJ5: =INDIRECT("'"&$A$2&"'!"&ADDRESS($AC5,13)) -> 0 | AK5: =INDIRECT("'"&$A$2&"'!"&ADDRESS($AC5,14)) -> 0 | AL5: =INDIRECT("'"&$A$2&"'!"&ADDRESS($AC5,15)) -> 0
Z6: LDP-10 | AA6: CatRobot1 | AB6: 15 | AC6: =AC5+1 -> 6 | AD6: =INDIRECT("'"&$A$2&"'!"&ADDRESS($AC6,4)) -> 0 | AE6: =INDIRECT("'"&$A$2&"'!"&ADDRESS($AC6,5)) -> 0 | AF6: =INDIRECT("'"&$A$2&"'!"&ADDRESS($AC6,6)) -> 0 | AG6: =INDIRECT("'"&$A$2&"'!"&ADDRESS($AC6,7)) -> 0 | AI6: =INDIRECT("'"&$A$2&"'!"&ADDRESS($AC6,12)) -> 0 | AJ6: =INDIRECT("'"&$A$2&"'!"&ADDRESS($AC6,13)) -> 0 | AK6: =INDIRECT("'"&$A$2&"'!"&ADDRESS($AC6,14)) -> 0 | AL6: =INDIRECT("'"&$A$2&"'!"&ADDRESS($AC6,15)) -> 0
AA7: DaylightRoad2 | AB7: 19
AA8: ParkRunning3 | AB8: 23 | AD8: ="Sequence: "&B2 & " Coding Conditions: " & A2 -> Sequence: Tango2 Coding Conditions: RA-10
AA9: MarketPlace | AB9: 27
AA10: RitualDance | AB10: 31
AA11: Cactus | AB11: 35 | AD11: rate | AE11: y | AF11: u | AG11: v
AA12: BasketballDrive | AB12: 39 | AD12: =MAX(AD3:AD6,AI3:AI6) -> 0 | AE12: =MAX(AE3:AE6,AJ3:AJ6) -> 0 | AF12: =MAX(AF3:AF6,AK3:AK6) -> 0 | AG12: =MAX(AG3:AG6,AL3:AL6) -> 0
AA13: BQTerrace | AB13: 43 | AD13: =MIN(AD3:AD6,AI3:AI6) -> 0 | AE13: =MIN(AE3:AE6,AJ3:AJ6) -> 0 | AF13: =MIN(AF3:AF6,AK3:AK6) -> 0 | AG13: =MIN(AG3:AG6,AL3:AL6) -> 0
AA14: BasketballDrill | AB14: 47
AA15: BQMall | AB15: 51 | AD15: =POWER(10,CEILING(LOG(AD12+1),1)) -> 1 | AE15: =CEILING(AE12+0.25,0.5) -> 0.5 | AF15: =CEILING(AF12+0.25,0.5) -> 0.5 | AG15: =CEILING(AG12+0.25,0.5) -> 0.5
AA16: PartySceneC | AB16: 55 | AD16: =POWER(10,FLOOR(LOG(AD13+10),1)) -> 10 | AE16: =FLOOR(AE13-0.25,0.5) -> -0.5 | AF16: =FLOOR(AF13-0.25,0.5) -> -0.5 | AG16: =FLOOR(AG13-0.25,0.5) -> -0.5
AA17: RaceHorsesC | AB17: 59
AA18: BasketballPass | AB18: 63
AA19: BQSquare | AB19: 67
AA20: BlowingBubbles | AB20: 71
AA21: RaceHorses | AB21: 75
AA22: FourPeople | AB22: 79
AA23: Johnny | AB23: 83
AA24: KristenAndSara | AB24: 87
AA25: BasketballDrillText | AB25: 91
AA26: ArenaOfValor | AB26: 95
AA27: SlideEditing | AB27: 99
AA28: SlideShow | AB28: 103

Sheet AI-10
D1: Reference | L1: Tested | V1: BD-rate (piecewise cubic) | Y1: BD-rate (cubic)
C2: QPISlice | D2: kbps | E2: Y psnr | F2: U psnr | G2: V psnr | H2: Enc T [s] | I2: Dec T [s] | J2: Enc T [h] | L2: kbps | M2: Y psnr | N2: U psnr | O2: V psnr | P2: Enc T [s] | Q2: Dec T [s] | R2: Enc T [h] | S2: EncR | T2: DecR | V2: Y | W2: U | X2: V | Y2: Y | Z2: U | AA2: V
A3: Class A1 | B3: Tango2 | C3: 22 | D3: =Reference!B1 -> 0 | E3: =Reference!C1 -> 0 | F3: =Reference!D1 -> 0 | G3: =Reference!E1 -> 0 | H3: =Reference!F1 -> 0 | I3: =Reference!G1 -> 0 | J3: =H3/3600 -> 0 | L3: =Test!B1 -> 0 | M3: =Test!C1 -> 0 | N3: =Test!D1 -> 0 | O3: =Test!E1 -> 0 | P3: =Test!F1 -> 0 | Q3: =Test!G1 -> 0 | R3: =P3/3600 -> 0 | S3: =P3/H3 ->  | T3: =Q3/I3 ->  | V3: =bdrate($D3:$D6,E3:E6,$L3:$L6,M3:M6) ->  | W3: =bdrate($D3:$D6,F3:F6,$L3:$L6,N3:N6) ->  | X3: =bdrate($D3:$D6,G3:G6,$L3:$L6,O3:O6) ->  | Y3: =bdrateOld($D3:$D6,E3:E6,$L3:$L6,M3:M6) ->  | Z3: =bdrateOld($D3:$D6,F3:F6,$L3:$L6,N3:N6) ->  | AA3: =bdrateOld($D3:$D6,G3:G6,$L3:$L6,O3:O6) -> 
A4: 4K | C4: 27 | D4: =Reference!B2 -> 0 | E4: =Reference!C2 -> 0 | F4: =Reference!D2 -> 0 | G4: =Reference!E2 -> 0 | H4: =Reference!F2 -> 0 | I4: =Reference!G2 -> 0 | J4: =H4/3600 -> 0 | L4: =Test!B2 -> 0 | M4: =Test!C2 -> 0 | N4: =Test!D2 -> 0 | O4: =Test!E2 -> 0 | P4: =Test!F2 -> 0 | Q4: =Test!G2 -> 0 | R4: =P4/3600 -> 0 | S4: =P4/H4 -> 
C5: 32 | D5: =Reference!B3 -> 0 | E5: =Reference!C3 -> 0 | F5: =Reference!D3 -> 0 | G5: =Reference!E3 -> 0 | H5: =Reference!F3 -> 0 | I5: =Reference!G3 -> 0 | J5: 0 | L5: =Test!B3 -> 0 | M5: =Test!C3 -> 0 | N5: =Test!D3 -> 0 | O5: =Test!E3 -> 0 | P5: =Test!F3 -> 0 | Q5: =Test!G3 -> 0 | R5: 0
C6: 37 | D6: =Reference!B4 -> 0 | E6: =Reference!C4 -> 0 | F6: =Reference!D4 -> 0 | G6: =Reference!E4 -> 0 | H6: =Reference!F4 -> 0 | I6: =Reference!G4 -> 0 | J6: 0 | L6: =Test!B4 -> 0 | M6: =Test!C4 -> 0 | N6: =Test!D4 -> 0 | O6: =Test!E4 -> 0 | P6: =Test!F4 -> 0 | Q6: =Test!G4 -> 0 | R6: 0
B7: FoodMarket4 | C7: 22 | D7: =Reference!B5 -> 0 | E7: =Reference!C5 -> 0 | F7: =Reference!D5 -> 0 | G7: =Reference!E5 -> 0 | H7: =Reference!F5 -> 0 | I7: =Reference!G5 -> 0 | J7: 0 | L7: =Test!B5 -> 0 | M7: =Test!C5 -> 0 | N7: =Test!D5 -> 0 | O7: =Test!E5 -> 0 | P7: =Test!F5 -> 0 | Q7: =Test!G5 -> 0 | R7: 0 | V7: =bdrate($D7:$D10,E7:E10,$L7:$L10,M7:M10) ->  | W7: =bdrate($D7:$D10,F7:F10,$L7:$L10,N7:N10) ->  | X7: =bdrate($D7:$D10,G7:G10,$L7:$L10,O7:O10) ->  | Y7: =bdrateOld($D7:$D10,E7:E10,$L7:$L10,M7:M10) ->  | Z7: =bdrateOld($D7:$D10,F7:F10,$L7:$L10,N7:N10) ->  | AA7: =bdrateOld($D7:$D10,G7:G10,$L7:$L10,O7:O10) -> 
C8: 27 | D8: =Reference!B6 -> 0 | E8: =Reference!C6 -> 0 | F8: =Reference!D6 -> 0 | G8: =Reference!E6 -> 0 | H8: =Reference!F6 -> 0 | I8: =Reference!G6 -> 0 | J8: 0 | L8: =Test!B6 -> 0 | M8: =Test!C6 -> 0 | N8: =Test!D6 -> 0 | O8: =Test!E6 -> 0 | P8: =Test!F6 -> 0 | Q8: =Test!G6 -> 0 | R8: 0
C9: 32 | D9: =Reference!B7 -> 0 | E9: =Reference!C7 -> 0 | F9: =Reference!D7 -> 0 | G9: =Reference!E7 -> 0 | H9: =Reference!F7 -> 0 | I9: =Reference!G7 -> 0 | J9: 0 | L9: =Test!B7 -> 0 | M9: =Test!C7 -> 0 | N9: =Test!D7 -> 0 | O9: =Test!E7 -> 0 | P9: =Test!F7 -> 0 | Q9: =Test!G7 -> 0 | R9: 0
C10: 37 | D10: =Reference!B8 -> 0 | E10: =Reference!C8 -> 0 | F10: =Reference!D8 -> 0 | G10: =Reference!E8 -> 0 | H10: =Reference!F8 -> 0 | I10: =Reference!G8 -> 0 | J10: 0 | L10: =Test!B8 -> 0 | M10: =Test!C8 -> 0 | N10: =Test!D8 -> 0 | O10: =Test!E8 -> 0 | P10: =Test!F8 -> 0 | Q10: =Test!G8 -> 0 | R10: 0
B11: Campfire | C11: 22 | D11: =Reference!B9 -> 0 | E11: =Reference!C9 -> 0 | F11: =Reference!D9 -> 0 | G11: =Reference!E9 -> 0 | H11: =Reference!F9 -> 0 | I11: =Reference!G9 -> 0 | J11: 0 | L11: =Test!B9 -> 0 | M11: =Test!C9 -> 0 | N11: =Test!D9 -> 0 | O11: =Test!E9 -> 0 | P11: =Test!F9 -> 0 | Q11: =Test!G9 -> 0 | R11: 0 | V11: =bdrate($D11:$D14,E11:E14,$L11:$L14,M11:M14) ->  | W11: =bdrate($D11:$D14,F11:F14,$L11:$L14,N11:N14) ->  | X11: =bdrate($D11:$D14,G11:G14,$L11:$L14,O11:O14) ->  | Y11: =bdrateOld($D11:$D14,E11:E14,$L11:$L14,M11:M14) ->  | Z11: =bdrateOld($D11:$D14,F11:F14,$L11:$L14,N11:N14) ->  | AA11: =bdrateOld($D11:$D14,G11:G14,$L11:$L14,O11:O14) -> 
C12: 27 | D12: =Reference!B10 -> 0 | E12: =Reference!C10 -> 0 | F12: =Reference!D10 -> 0 | G12: =Reference!E10 -> 0 | H12: =Reference!F10 -> 0 | I12: =Reference!G10 -> 0 | J12: 0 | L12: =Test!B10 -> 0 | M12: =Test!C10 -> 0 | N12: =Test!D10 -> 0 | O12: =Test!E10 -> 0 | P12: =Test!F10 -> 0 | Q12: =Test!G10 -> 0 | R12: 0
C13: 32 | D13: =Reference!B11 -> 0 | E13: =Reference!C11 -> 0 | F13: =Reference!D11 -> 0 | G13: =Reference!E11 -> 0 | H13: =Reference!F11 -> 0 | I13: =Reference!G11 -> 0 | J13: 0 | L13: =Test!B11 -> 0 | M13: =Test!C11 -> 0 | N13: =Test!D11 -> 0 | O13: =Test!E11 -> 0 | P13: =Test!F11 -> 0 | Q13: =Test!G11 -> 0 | R13: 0
C14: 37 | D14: =Reference!B12 -> 0 | E14: =Reference!C12 -> 0 | F14: =Reference!D12 -> 0 | G14: =Reference!E12 -> 0 | H14: =Reference!F12 -> 0 | I14: =Reference!G12 -> 0 | J14: 0 | L14: =Test!B12 -> 0 | M14: =Test!C12 -> 0 | N14: =Test!D12 -> 0 | O14: =Test!E12 -> 0 | P14: =Test!F12 -> 0 | Q14: =Test!G12 -> 0 | R14: 0
A15: Class A2 | B15: CatRobot1 | C15: 22 | D15: =Reference!B13 -> 0 | E15: =Reference!C13 -> 0 | F15: =Reference!D13 -> 0 | G15: =Reference!E13 -> 0 | H15: =Reference!F13 -> 0 | I15: =Reference!G13 -> 0 | J15: =H15/3600 -> 0 | L15: =Test!B13 -> 0 | M15: =Test!C13 -> 0 | N15: =Test!D13 -> 0 | O15: =Test!E13 -> 0 | P15: =Test!F13 -> 0 | Q15: =Test!G13 -> 0 | R15: =P15/3600 -> 0 | S15: =P15/H15 ->  | T15: =Q15/I15 ->  | V15: =bdrate($D15:$D18,E15:E18,$L15:$L18,M15:M18) ->  | W15: =bdrate($D15:$D18,F15:F18,$L15:$L18,N15:N18) ->  | X15: =bdrate($D15:$D18,G15:G18,$L15:$L18,O15:O18) ->  | Y15: =bdrateOld($D15:$D18,E15:E18,$L15:$L18,M15:M18) ->  | Z15: =bdrateOld($D15:$D18,F15:F18,$L15:$L18,N15:N18) ->  | AA15: =bdrateOld($D15:$D18,G15:G18,$L15:$L18,O15:O18) -> 
A16: 4K | C16: 27 | D16: =Reference!B14 -> 0 | E16: =Reference!C14 -> 0 | F16: =Reference!D14 -> 0 | G16: =Reference!E14 -> 0 | H16: =Reference!F14 -> 0 | I16: =Reference!G14 -> 0 | J16: =H16/3600 -> 0 | L16: =Test!B14 -> 0 | M16: =Test!C14 -> 0 | N16: =Test!D14 -> 0 | O16: =Test!E14 -> 0 | P16: =Test!F14 -> 0 | Q16: =Test!G14 -> 0 | R16: =P16/3600 -> 0 | S16: =P16/H16 ->  | T16: =Q16/I16 -> 
C17: 32 | D17: =Reference!B15 -> 0 | E17: =Reference!C15 -> 0 | F17: =Reference!D15 -> 0 | G17: =Reference!E15 -> 0 | H17: =Reference!F15 -> 0 | I17: =Reference!G15 -> 0 | J17: 0 | L17: =Test!B15 -> 0 | M17: =Test!C15 -> 0 | N17: =Test!D15 -> 0 | O17: =Test!E15 -> 0 | P17: =Test!F15 -> 0 | Q17: =Test!G15 -> 0 | R17: 0
C18: 37 | D18: =Reference!B16 -> 0 | E18: =Reference!C16 -> 0 | F18: =Reference!D16 -> 0 | G18: =Reference!E16 -> 0 | H18: =Reference!F16 -> 0 | I18: =Reference!G16 -> 0 | J18: 0 | L18: =Test!B16 -> 0 | M18: =Test!C16 -> 0 | N18: =Test!D16 -> 0 | O18: =Test!E16 -> 0 | P18: =Test!F16 -> 0 | Q18: =Test!G16 -> 0 | R18: 0
B19: DaylightRoad2 | C19: 22 | D19: =Reference!B17 -> 0 | E19: =Reference!C17 -> 0 | F19: =Reference!D17 -> 0 | G19: =Reference!E17 -> 0 | H19: =Reference!F17 -> 0 | I19: =Reference!G17 -> 0 | J19: 0 | L19: =Test!B17 -> 0 | M19: =Test!C17 -> 0 | N19: =Test!D17 -> 0 | O19: =Test!E17 -> 0 | P19: =Test!F17 -> 0 | Q19: =Test!G17 -> 0 | R19: 0 | V19: =bdrate($D19:$D22,E19:E22,$L19:$L22,M19:M22) ->  | W19: =bdrate($D19:$D22,F19:F22,$L19:$L22,N19:N22) ->  | X19: =bdrate($D19:$D22,G19:G22,$L19:$L22,O19:O22) ->  | Y19: =bdrateOld($D19:$D22,E19:E22,$L19:$L22,M19:M22) ->  | Z19: =bdrateOld($D19:$D22,F19:F22,$L19:$L22,N19:N22) ->  | AA19: =bdrateOld($D19:$D22,G19:G22,$L19:$L22,O19:O22) -> 
C20: 27 | D20: =Reference!B18 -> 0 | E20: =Reference!C18 -> 0 | F20: =Reference!D18 -> 0 | G20: =Reference!E18 -> 0 | H20: =Reference!F18 -> 0 | I20: =Reference!G18 -> 0 | J20: 0 | L20: =Test!B18 -> 0 | M20: =Test!C18 -> 0 | N20: =Test!D18 -> 0 | O20: =Test!E18 -> 0 | P20: =Test!F18 -> 0 | Q20: =Test!G18 -> 0 | R20: 0
C21: 32 | D21: =Reference!B19 -> 0 | E21: =Reference!C19 -> 0 | F21: =Reference!D19 -> 0 | G21: =Reference!E19 -> 0 | H21: =Reference!F19 -> 0 | I21: =Reference!G19 -> 0 | J21: 0 | L21: =Test!B19 -> 0 | M21: =Test!C19 -> 0 | N21: =Test!D19 -> 0 | O21: =Test!E19 -> 0 | P21: =Test!F19 -> 0 | Q21: =Test!G19 -> 0 | R21: 0
C22: 37 | D22: =Reference!B20 -> 0 | E22: =Reference!C20 -> 0 | F22: =Reference!D20 -> 0 | G22: =Reference!E20 -> 0 | H22: =Reference!F20 -> 0 | I22: =Reference!G20 -> 0 | J22: 0 | L22: =Test!B20 -> 0 | M22: =Test!C20 -> 0 | N22: =Test!D20 -> 0 | O22: =Test!E20 -> 0 | P22: =Test!F20 -> 0 | Q22: =Test!G20 -> 0 | R22: 0
B23: ParkRunning3 | C23: 22 | D23: =Reference!B21 -> 0 | E23: =Reference!C21 -> 0 | F23: =Reference!D21 -> 0 | G23: =Reference!E21 -> 0 | H23: =Reference!F21 -> 0 | I23: =Reference!G21 -> 0 | J23: 0 | L23: =Test!B21 -> 0 | M23: =Test!C21 -> 0 | N23: =Test!D21 -> 0 | O23: =Test!E21 -> 0 | P23: =Test!F21 -> 0 | Q23: =Test!G21 -> 0 | R23: 0 | V23: =bdrate($D23:$D26,E23:E26,$L23:$L26,M23:M26) ->  | W23: =bdrate($D23:$D26,F23:F26,$L23:$L26,N23:N26) ->  | X23: =bdrate($D23:$D26,G23:G26,$L23:$L26,O23:O26) ->  | Y23: =bdrateOld($D23:$D26,E23:E26,$L23:$L26,M23:M26) ->  | Z23: =bdrateOld($D23:$D26,F23:F26,$L23:$L26,N23:N26) ->  | AA23: =bdrateOld($D23:$D26,G23:G26,$L23:$L26,O23:O26) -> 
C24: 27 | D24: =Reference!B22 -> 0 | E24: =Reference!C22 -> 0 | F24: =Reference!D22 -> 0 | G24: =Reference!E22 -> 0 | H24: =Reference!F22 -> 0 | I24: =Reference!G22 -> 0 | J24: 0 | L24: =Test!B22 -> 0 | M24: =Test!C22 -> 0 | N24: =Test!D22 -> 0 | O24: =Test!E22 -> 0 | P24: =Test!F22 -> 0 | Q24: =Test!G22 -> 0 | R24: 0
C25: 32 | D25: =Reference!B23 -> 0 | E25: =Reference!C23 -> 0 | F25: =Reference!D23 -> 0 | G25: =Reference!E23 -> 0 | H25: =Reference!F23 -> 0 | I25: =Reference!G23 -> 0 | J25: 0 | L25: =Test!B23 -> 0 | M25: =Test!C23 -> 0 | N25: =Test!D23 -> 0 | O25: =Test!E23 -> 0 | P25: =Test!F23 -> 0 | Q25: =Test!G23 -> 0 | R25: 0
C26: 37 | D26: =Reference!B24 -> 0 | E26: =Reference!C24 -> 0 | F26: =Reference!D24 -> 0 | G26: =Reference!E24 -> 0 | H26: =Reference!F24 -> 0 | I26: =Reference!G24 -> 0 | J26: 0 | L26: =Test!B24 -> 0 | M26: =Test!C24 -> 0 | N26: =Test!D24 -> 0 | O26: =Test!E24 -> 0 | P26: =Test!F24 -> 0 | Q26: =Test!G24 -> 0 | R26: 0
A27: Class B | B27: MarketPlace | C27: 22 | D27: =Reference!B25 -> 0 | E27: =Reference!C25 -> 0 | F27: =Reference!D25 -> 0 | G27: =Reference!E25 -> 0 | H27: =Reference!F25 -> 0 | I27: =Reference!G25 -> 0 | J27: =H27/3600 -> 0 | L27: =Test!B25 -> 0 | M27: =Test!C25 -> 0 | N27: =Test!D25 -> 0 | O27: =Test!E25 -> 0 | P27: =Test!F25 -> 0 | Q27: =Test!G25 -> 0 | R27: =P27/3600 -> 0 | S27: =P27/H27 ->  | T27: =Q27/I27 ->  | V27: =bdrate($D27:$D30,E27:E30,$L27:$L30,M27:M30) ->  | W27: =bdrate($D27:$D30,F27:F30,$L27:$L30,N27:N30) ->  | X27: =bdrate($D27:$D30,G27:G30,$L27:$L30,O27:O30) ->  | Y27: =bdrateOld($D27:$D30,E27:E30,$L27:$L30,M27:M30) ->  | Z27: =bdrateOld($D27:$D30,F27:F30,$L27:$L30,N27:N30) ->  | AA27: =bdrateOld($D27:$D30,G27:G30,$L27:$L30,O27:O30) -> 
A28: 1080p | C28: 27 | D28: =Reference!B26 -> 0 | E28: =Reference!C26 -> 0 | F28: =Reference!D26 -> 0 | G28: =Reference!E26 -> 0 | H28: =Reference!F26 -> 0 | I28: =Reference!G26 -> 0 | J28: =H28/3600 -> 0 | L28: =Test!B26 -> 0 | M28: =Test!C26 -> 0 | N28: =Test!D26 -> 0 | O28: =Test!E26 -> 0 | P28: =Test!F26 -> 0 | Q28: =Test!G26 -> 0 | R28: =P28/3600 -> 0 | S28: =P28/H28 ->  | T28: =Q28/I28 -> 
C29: 32 | D29: =Reference!B27 -> 0 | E29: =Reference!C27 -> 0 | F29: =Reference!D27 -> 0 | G29: =Reference!E27 -> 0 | H29: =Reference!F27 -> 0 | I29: =Reference!G27 -> 0 | J29: 0 | L29: =Test!B27 -> 0 | M29: =Test!C27 -> 0 | N29: =Test!D27 -> 0 | O29: =Test!E27 -> 0 | P29: =Test!F27 -> 0 | Q29: =Test!G27 -> 0 | R29: 0
C30: 37 | D30: =Reference!B28 -> 0 | E30: =Reference!C28 -> 0 | F30: =Reference!D28 -> 0 | G30: =Reference!E28 -> 0 | H30: =Reference!F28 -> 0 | I30: =Reference!G28 -> 0 | J30: 0 | L30: =Test!B28 -> 0 | M30: =Test!C28 -> 0 | N30: =Test!D28 -> 0 | O30: =Test!E28 -> 0 | P30: =Test!F28 -> 0 | Q30: =Test!G28 -> 0 | R30: 0
B31: RitualDance | C31: 22 | D31: =Reference!B29 -> 0 | E31: =Reference!C29 -> 0 | F31: =Reference!D29 -> 0 | G31: =Reference!E29 -> 0 | H31: =Reference!F29 -> 0 | I31: =Reference!G29 -> 0 | J31: 0 | L31: =Test!B29 -> 0 | M31: =Test!C29 -> 0 | N31: =Test!D29 -> 0 | O31: =Test!E29 -> 0 | P31: =Test!F29 -> 0 | Q31: =Test!G29 -> 0 | R31: 0 | V31: =bdrate($D31:$D34,E31:E34,$L31:$L34,M31:M34) ->  | W31: =bdrate($D31:$D34,F31:F34,$L31:$L34,N31:N34) ->  | X31: =bdrate($D31:$D34,G31:G34,$L31:$L34,O31:O34) ->  | Y31: =bdrateOld($D31:$D34,E31:E34,$L31:$L34,M31:M34) ->  | Z31: =bdrateOld($D31:$D34,F31:F34,$L31:$L34,N31:N34) ->  | AA31: =bdrateOld($D31:$D34,G31:G34,$L31:$L34,O31:O34) -> 
C32: 27 | D32: =Reference!B30 -> 0 | E32: =Reference!C30 -> 0 | F32: =Reference!D30 -> 0 | G32: =Reference!E30 -> 0 | H32: =Reference!F30 -> 0 | I32: =Reference!G30 -> 0 | J32: 0 | L32: =Test!B30 -> 0 | M32: =Test!C30 -> 0 | N32: =Test!D30 -> 0 | O32: =Test!E30 -> 0 | P32: =Test!F30 -> 0 | Q32: =Test!G30 -> 0 | R32: 0
C33: 32 | D33: =Reference!B31 -> 0 | E33: =Reference!C31 -> 0 | F33: =Reference!D31 -> 0 | G33: =Reference!E31 -> 0 | H33: =Reference!F31 -> 0 | I33: =Reference!G31 -> 0 | J33: 0 | L33: =Test!B31 -> 0 | M33: =Test!C31 -> 0 | N33: =Test!D31 -> 0 | O33: =Test!E31 -> 0 | P33: =Test!F31 -> 0 | Q33: =Test!G31 -> 0 | R33: 0
C34: 37 | D34: =Reference!B32 -> 0 | E34: =Reference!C32 -> 0 | F34: =Reference!D32 -> 0 | G34: =Reference!E32 -> 0 | H34: =Reference!F32 -> 0 | I34: =Reference!G32 -> 0 | J34: 0 | L34: =Test!B32 -> 0 | M34: =Test!C32 -> 0 | N34: =Test!D32 -> 0 | O34: =Test!E32 -> 0 | P34: =Test!F32 -> 0 | Q34: =Test!G32 -> 0 | R34: 0
B35: Cactus | C35: 22 | D35: =Reference!B33 -> 0 | E35: =Reference!C33 -> 0 | F35: =Reference!D33 -> 0 | G35: =Reference!E33 -> 0 | H35: =Reference!F33 -> 0 | I35: =Reference!G33 -> 0 | J35: 0 | L35: =Test!B33 -> 0 | M35: =Test!C33 -> 0 | N35: =Test!D33 -> 0 | O35: =Test!E33 -> 0 | P35: =Test!F33 -> 0 | Q35: =Test!G33 -> 0 | R35: 0 | V35: =bdrate($D35:$D38,E35:E38,$L35:$L38,M35:M38) ->  | W35: =bdrate($D35:$D38,F35:F38,$L35:$L38,N35:N38) ->  | X35: =bdrate($D35:$D38,G35:G38,$L35:$L38,O35:O38) ->  | Y35: =bdrateOld($D35:$D38,E35:E38,$L35:$L38,M35:M38) ->  | Z35: =bdrateOld($D35:$D38,F35:F38,$L35:$L38,N35:N38) ->  | AA35: =bdrateOld($D35:$D38,G35:G38,$L35:$L38,O35:O38) -> 
C36: 27 | D36: =Reference!B34 -> 0 | E36: =Reference!C34 -> 0 | F36: =Reference!D34 -> 0 | G36: =Reference!E34 -> 0 | H36: =Reference!F34 -> 0 | I36: =Reference!G34 -> 0 | J36: 0 | L36: =Test!B34 -> 0 | M36: =Test!C34 -> 0 | N36: =Test!D34 -> 0 | O36: =Test!E34 -> 0 | P36: =Test!F34 -> 0 | Q36: =Test!G34 -> 0 | R36: 0
C37: 32 | D37: =Reference!B35 -> 0 | E37: =Reference!C35 -> 0 | F37: =Reference!D35 -> 0 | G37: =Reference!E35 -> 0 | H37: =Reference!F35 -> 0 | I37: =Reference!G35 -> 0 | J37: 0 | L37: =Test!B35 -> 0 | M37: =Test!C35 -> 0 | N37: =Test!D35 -> 0 | O37: =Test!E35 -> 0 | P37: =Test!F35 -> 0 | Q37: =Test!G35 -> 0 | R37: 0
C38: 37 | D38: =Reference!B36 -> 0 | E38: =Reference!C36 -> 0 | F38: =Reference!D36 -> 0 | G38: =Reference!E36 -> 0 | H38: =Reference!F36 -> 0 | I38: =Reference!G36 -> 0 | J38: 0 | L38: =Test!B36 -> 0 | M38: =Test!C36 -> 0 | N38: =Test!D36 -> 0 | O38: =Test!E36 -> 0 | P38: =Test!F36 -> 0 | Q38: =Test!G36 -> 0 | R38: 0
B39: BasketballDrive | C39: 22 | D39: =Reference!B37 -> 0 | E39: =Reference!C37 -> 0 | F39: =Reference!D37 -> 0 | G39: =Reference!E37 -> 0 | H39: =Reference!F37 -> 0 | I39: =Reference!G37 -> 0 | J39: 0 | L39: =Test!B37 -> 0 | M39: =Test!C37 -> 0 | N39: =Test!D37 -> 0 | O39: =Test!E37 -> 0 | P39: =Test!F37 -> 0 | Q39: =Test!G37 -> 0 | R39: 0 | V39: =bdrate($D39:$D42,E39:E42,$L39:$L42,M39:M42) ->  | W39: =bdrate($D39:$D42,F39:F42,$L39:$L42,N39:N42) ->  | X39: =bdrate($D39:$D42,G39:G42,$L39:$L42,O39:O42) ->  | Y39: =bdrateOld($D39:$D42,E39:E42,$L39:$L42,M39:M42) ->  | Z39: =bdrateOld($D39:$D42,F39:F42,$L39:$L42,N39:N42) ->  | AA39: =bdrateOld($D39:$D42,G39:G42,$L39:$L42,O39:O42) -> 
C40: 27 | D40: =Reference!B38 -> 0 | E40: =Reference!C38 -> 0 | F40: =Reference!D38 -> 0 | G40: =Reference!E38 -> 0 | H40: =Reference!F38 -> 0 | I40: =Reference!G38 -> 0 | J40: 0 | L40: =Test!B38 -> 0 | M40: =Test!C38 -> 0 | N40: =Test!D38 -> 0 | O40: =Test!E38 -> 0 | P40: =Test!F38 -> 0 | Q40: =Test!G38 -> 0 | R40: 0
C41: 32 | D41: =Reference!B39 -> 0 | E41: =Reference!C39 -> 0 | F41: =Reference!D39 -> 0 | G41: =Reference!E39 -> 0 | H41: =Reference!F39 -> 0 | I41: =Reference!G39 -> 0 | J41: 0 | L41: =Test!B39 -> 0 | M41: =Test!C39 -> 0 | N41: =Test!D39 -> 0 | O41: =Test!E39 -> 0 | P41: =Test!F39 -> 0 | Q41: =Test!G39 -> 0 | R41: 0
C42: 37 | D42: =Reference!B40 -> 0 | E42: =Reference!C40 -> 0 | F42: =Reference!D40 -> 0 | G42: =Reference!E40 -> 0 | H42: =Reference!F40 -> 0 | I42: =Reference!G40 -> 0 | J42: 0 | L42: =Test!B40 -> 0 | M42: =Test!C40 -> 0 | N42: =Test!D40 -> 0 | O42: =Test!E40 -> 0 | P42: =Test!F40 -> 0 | Q42: =Test!G40 -> 0 | R42: 0
B43: BQTerrace | C43: 22 | D43: =Reference!B41 -> 0 | E43: =Reference!C41 -> 0 | F43: =Reference!D41 -> 0 | G43: =Reference!E41 -> 0 | H43: =Reference!F41 -> 0 | I43: =Reference!G41 -> 0 | J43: 0 | L43: =Test!B41 -> 0 | M43: =Test!C41 -> 0 | N43: =Test!D41 -> 0 | O43: =Test!E41 -> 0 | P43: =Test!F41 -> 0 | Q43: =Test!G41 -> 0 | R43: 0 | V43: =bdrate($D43:$D46,E43:E46,$L43:$L46,M43:M46) ->  | W43: =bdrate($D43:$D46,F43:F46,$L43:$L46,N43:N46) ->  | X43: =bdrate($D43:$D46,G43:G46,$L43:$L46,O43:O46) ->  | Y43: =bdrateOld($D43:$D46,E43:E46,$L43:$L46,M43:M46) ->  | Z43: =bdrateOld($D43:$D46,F43:F46,$L43:$L46,N43:N46) ->  | AA43: =bdrateOld($D43:$D46,G43:G46,$L43:$L46,O43:O46) -> 
C44: 27 | D44: =Reference!B42 -> 0 | E44: =Reference!C42 -> 0 | F44: =Reference!D42 -> 0 | G44: =Reference!E42 -> 0 | H44: =Reference!F42 -> 0 | I44: =Reference!G42 -> 0 | J44: 0 | L44: =Test!B42 -> 0 | M44: =Test!C42 -> 0 | N44: =Test!D42 -> 0 | O44: =Test!E42 -> 0 | P44: =Test!F42 -> 0 | Q44: =Test!G42 -> 0 | R44: 0
C45: 32 | D45: =Reference!B43 -> 0 | E45: =Reference!C43 -> 0 | F45: =Reference!D43 -> 0 | G45: =Reference!E43 -> 0 | H45: =Reference!F43 -> 0 | I45: =Reference!G43 -> 0 | J45: 0 | L45: =Test!B43 -> 0 | M45: =Test!C43 -> 0 | N45: =Test!D43 -> 0 | O45: =Test!E43 -> 0 | P45: =Test!F43 -> 0 | Q45: =Test!G43 -> 0 | R45: 0
C46: 37 | D46: =Reference!B44 -> 0 | E46: =Reference!C44 -> 0 | F46: =Reference!D44 -> 0 | G46: =Reference!E44 -> 0 | H46: =Reference!F44 -> 0 | I46: =Reference!G44 -> 0 | J46: 0 | L46: =Test!B44 -> 0 | M46: =Test!C44 -> 0 | N46: =Test!D44 -> 0 | O46: =Test!E44 -> 0 | P46: =Test!F44 -> 0 | Q46: =Test!G44 -> 0 | R46: 0
A47: Class C | B47: BasketballDrill | C47: 22 | D47: =Reference!B45 -> 0 | E47: =Reference!C45 -> 0 | F47: =Reference!D45 -> 0 | G47: =Reference!E45 -> 0 | H47: =Reference!F45 -> 0 | I47: =Reference!G45 -> 0 | J47: =H47/3600 -> 0 | L47: =Test!B45 -> 0 | M47: =Test!C45 -> 0 | N47: =Test!D45 -> 0 | O47: =Test!E45 -> 0 | P47: =Test!F45 -> 0 | Q47: =Test!G45 -> 0 | R47: =P47/3600 -> 0 | S47: =P47/H47 ->  | T47: =Q47/I47 ->  | V47: =bdrate($D47:$D50,E47:E50,$L47:$L50,M47:M50) ->  | W47: =bdrate($D47:$D50,F47:F50,$L47:$L50,N47:N50) ->  | X47: =bdrate($D47:$D50,G47:G50,$L47:$L50,O47:O50) ->  | Y47: =bdrateOld($D47:$D50,E47:E50,$L47:$L50,M47:M50) ->  | Z47: =bdrateOld($D47:$D50,F47:F50,$L47:$L50,N47:N50) ->  | AA47: =bdrateOld($D47:$D50,G47:G50,$L47:$L50,O47:O50) -> 
A48: WVGA | C48: 27 | D48: =Reference!B46 -> 0 | E48: =Reference!C46 -> 0 | F48: =Reference!D46 -> 0 | G48: =Reference!E46 -> 0 | H48: =Reference!F46 -> 0 | I48: =Reference!G46 -> 0 | J48: =H48/3600 -> 0 | L48: =Test!B46 -> 0 | M48: =Test!C46 -> 0 | N48: =Test!D46 -> 0 | O48: =Test!E46 -> 0 | P48: =Test!F46 -> 0 | Q48: =Test!G46 -> 0 | R48: =P48/3600 -> 0 | S48: =P48/H48 ->  | T48: =Q48/I48 -> 
C49: 32 | D49: =Reference!B47 -> 0 | E49: =Reference!C47 -> 0 | F49: =Reference!D47 -> 0 | G49: =Reference!E47 -> 0 | H49: =Reference!F47 -> 0 | I49: =Reference!G47 -> 0 | J49: 0 | L49: =Test!B47 -> 0 | M49: =Test!C47 -> 0 | N49: =Test!D47 -> 0 | O49: =Test!E47 -> 0 | P49: =Test!F47 -> 0 | Q49: =Test!G47 -> 0 | R49: 0
C50: 37 | D50: =Reference!B48 -> 368.773 | E50: =Reference!C48 -> 33.8746 | F50: =Reference!D48 -> 38.6622 | G50: =Reference!E48 -> 38.8187 | H50: =Reference!F48 -> 3304.7 | I50: =Reference!G48 -> 2.54 | J50: 0.9179722222 | L50: =Test!B48 -> 368.7659 | M50: =Test!C48 -> 33.8744 | N50: =Test!D48 -> 38.6647 | O50: =Test!E48 -> 38.8323 | P50: =Test!F48 -> 3240.51 | Q50: =Test!G48 -> 2.45 | R50: 0.9001416667 | S50: 0.9805761491 | T50: 0.9645669291
B51: BQMall | C51: 22 | D51: =Reference!B49 -> 0 | E51: =Reference!C49 -> 0 | F51: =Reference!D49 -> 0 | G51: =Reference!E49 -> 0 | H51: =Reference!F49 -> 0 | I51: =Reference!G49 -> 0 | J51: 0 | L51: =Test!B49 -> 0 | M51: =Test!C49 -> 0 | N51: =Test!D49 -> 0 | O51: =Test!E49 -> 0 | P51: =Test!F49 -> 0 | Q51: =Test!G49 -> 0 | R51: 0 | V51: =bdrate($D51:$D54,E51:E54,$L51:$L54,M51:M54) ->  | W51: =bdrate($D51:$D54,F51:F54,$L51:$L54,N51:N54) ->  | X51: =bdrate($D51:$D54,G51:G54,$L51:$L54,O51:O54) ->  | Y51: =bdrateOld($D51:$D54,E51:E54,$L51:$L54,M51:M54) ->  | Z51: =bdrateOld($D51:$D54,F51:F54,$L51:$L54,N51:N54) ->  | AA51: =bdrateOld($D51:$D54,G51:G54,$L51:$L54,O51:O54) -> 
C52: 27 | D52: =Reference!B50 -> 0 | E52: =Reference!C50 -> 0 | F52: =Reference!D50 -> 0 | G52: =Reference!E50 -> 0 | H52: =Reference!F50 -> 0 | I52: =Reference!G50 -> 0 | J52: 0 | L52: =Test!B50 -> 0 | M52: =Test!C50 -> 0 | N52: =Test!D50 -> 0 | O52: =Test!E50 -> 0 | P52: =Test!F50 -> 0 | Q52: =Test!G50 -> 0 | R52: 0
C53: 32 | D53: =Reference!B51 -> 0 | E53: =Reference!C51 -> 0 | F53: =Reference!D51 -> 0 | G53: =Reference!E51 -> 0 | H53: =Reference!F51 -> 0 | I53: =Reference!G51 -> 0 | J53: 0 | L53: =Test!B51 -> 0 | M53: =Test!C51 -> 0 | N53: =Test!D51 -> 0 | O53: =Test!E51 -> 0 | P53: =Test!F51 -> 0 | Q53: =Test!G51 -> 0 | R53: 0
C54: 37 | D54: =Reference!B52 -> 541.4408 | E54: =Reference!C52 -> 33.8518 | F54: =Reference!D52 -> 39.2866 | G54: =Reference!E52 -> 40.3888 | H54: =Reference!F52 -> 4436.44 | I54: =Reference!G52 -> 3.22 | J54: 1.232344444 | L54: =Test!B52 -> 0 | M54: =Test!C52 -> 0 | N54: =Test!D52 -> 0 | O54: =Test!E52 -> 0 | P54: =Test!F52 -> 0 | Q54: =Test!G52 -> 0 | R54: 0 | S54: 0 | T54: 0
B55: PartyScene | C55: 22 | D55: =Reference!B53 -> 0 | E55: =Reference!C53 -> 0 | F55: =Reference!D53 -> 0 | G55: =Reference!E53 -> 0 | H55: =Reference!F53 -> 0 | I55: =Reference!G53 -> 0 | J55: 0 | L55: =Test!B53 -> 0 | M55: =Test!C53 -> 0 | N55: =Test!D53 -> 0 | O55: =Test!E53 -> 0 | P55: =Test!F53 -> 0 | Q55: =Test!G53 -> 0 | R55: 0 | V55: =bdrate($D55:$D58,E55:E58,$L55:$L58,M55:M58) ->  | W55: =bdrate($D55:$D58,F55:F58,$L55:$L58,N55:N58) ->  | X55: =bdrate($D55:$D58,G55:G58,$L55:$L58,O55:O58) ->  | Y55: =bdrateOld($D55:$D58,E55:E58,$L55:$L58,M55:M58) ->  | Z55: =bdrateOld($D55:$D58,F55:F58,$L55:$L58,N55:N58) ->  | AA55: =bdrateOld($D55:$D58,G55:G58,$L55:$L58,O55:O58) -> 
C56: 27 | D56: =Reference!B54 -> 0 | E56: =Reference!C54 -> 0 | F56: =Reference!D54 -> 0 | G56: =Reference!E54 -> 0 | H56: =Reference!F54 -> 0 | I56: =Reference!G54 -> 0 | J56: 0 | L56: =Test!B54 -> 0 | M56: =Test!C54 -> 0 | N56: =Test!D54 -> 0 | O56: =Test!E54 -> 0 | P56: =Test!F54 -> 0 | Q56: =Test!G54 -> 0 | R56: 0
C57: 32 | D57: =Reference!B55 -> 0 | E57: =Reference!C55 -> 0 | F57: =Reference!D55 -> 0 | G57: =Reference!E55 -> 0 | H57: =Reference!F55 -> 0 | I57: =Reference!G55 -> 0 | J57: 0 | L57: =Test!B55 -> 0 | M57: =Test!C55 -> 0 | N57: =Test!D55 -> 0 | O57: =Test!E55 -> 0 | P57: =Test!F55 -> 0 | Q57: =Test!G55 -> 0 | R57: 0
C58: 37 | D58: =Reference!B56 -> 0 | E58: =Reference!C56 -> 0 | F58: =Reference!D56 -> 0 | G58: =Reference!E56 -> 0 | H58: =Reference!F56 -> 0 | I58: =Reference!G56 -> 0 | J58: 0 | L58: =Test!B56 -> 0 | M58: =Test!C56 -> 0 | N58: =Test!D56 -> 0 | O58: =Test!E56 -> 0 | P58: =Test!F56 -> 0 | Q58: =Test!G56 -> 0 | R58: 0
B59: RaceHorses | C59: 22 | D59: =Reference!B57 -> 0 | E59: =Reference!C57 -> 0 | F59: =Reference!D57 -> 0 | G59: =Reference!E57 -> 0 | H59: =Reference!F57 -> 0 | I59: =Reference!G57 -> 0 | J59: 0 | L59: =Test!B57 -> 0 | M59: =Test!C57 -> 0 | N59: =Test!D57 -> 0 | O59: =Test!E57 -> 0 | P59: =Test!F57 -> 0 | Q59: =Test!G57 -> 0 | R59: 0 | V59: =bdrate($D59:$D62,E59:E62,$L59:$L62,M59:M62) ->  | W59: =bdrate($D59:$D62,F59:F62,$L59:$L62,N59:N62) ->  | X59: =bdrate($D59:$D62,G59:G62,$L59:$L62,O59:O62) ->  | Y59: =bdrateOld($D59:$D62,E59:E62,$L59:$L62,M59:M62) ->  | Z59: =bdrateOld($D59:$D62,F59:F62,$L59:$L62,N59:N62) ->  | AA59: =bdrateOld($D59:$D62,G59:G62,$L59:$L62,O59:O62) -> 
C60: 27 | D60: =Reference!B58 -> 0 | E60: =Reference!C58 -> 0 | F60: =Reference!D58 -> 0 | G60: =Reference!E58 -> 0 | H60: =Reference!F58 -> 0 | I60: =Reference!G58 -> 0 | J60: 0 | L60: =Test!B58 -> 0 | M60: =Test!C58 -> 0 | N60: =Test!D58 -> 0 | O60: =Test!E58 -> 0 | P60: =Test!F58 -> 0 | Q60: =Test!G58 -> 0 | R60: 0
C61: 32 | D61: =Reference!B59 -> 616.7321 | E61: =Reference!C59 -> 36.4442 | F61: =Reference!D59 -> 38.1341 | G61: =Reference!E59 -> 40.2345 | H61: =Reference!F59 -> 3828.16 | I61: =Reference!G59 -> 2.03 | J61: 1.063377778 | L61: =Test!B59 -> 617.3147 | M61: =Test!C59 -> 36.4473 | N61: =Test!D59 -> 38.1297 | O61: =Test!E59 -> 40.23 | P61: =Test!F59 -> 3660.05 | Q61: =Test!G59 -> 1.98 | R61: 1.016680556 | S61: 0.9560859525 | T61: 0.9753694581
C62: 37 | D62: =Reference!B60 -> 316.6753 | E62: =Reference!C60 -> 33.0265 | F62: =Reference!D60 -> 36.8614 | G62: =Reference!E60 -> 38.9516 | H62: =Reference!F60 -> 2596.88 | I62: =Reference!G60 -> 1.72 | J62: 0.7213555556 | L62: =Test!B60 -> 316.8189 | M62: =Test!C60 -> 33.0303 | N62: =Test!D60 -> 36.8688 | O62: =Test!E60 -> 38.9475 | P62: =Test!F60 -> 2495.35 | Q62: =Test!G60 -> 1.67 | R62: 0.6931527778 | S62: 0.9609030837 | T62: 0.9709302326
A63: Class D | B63: BasketballPass | C63: =C59 -> 22 | D63: =Reference!B61 -> 584.9421 | E63: =Reference!C61 -> 43.5925 | F63: =Reference!D61 -> 45.5835 | G63: =Reference!E61 -> 45.3973 | H63: =Reference!F61 -> 2725.9 | I63: =Reference!G61 -> 1.16 | J63: =H63/3600 -> 0.7571944444 | L63: =Test!B61 -> 585.2913 | M63: =Test!C61 -> 43.5961 | N63: =Test!D61 -> 45.5884 | O63: =Test!E61 -> 45.3801 | P63: =Test!F61 -> 2624.84 | Q63: =Test!G61 -> 1.13 | R63: =P63/3600 -> 0.7291222222 | S63: =P63/H63 -> 0.9629260061 | T63: =Q63/I63 -> 0.974137931 | V63: =bdrate($D63:$D66,E63:E66,$L63:$L66,M63:M66) -> -0.000588320731 | W63: =bdrate($D63:$D66,F63:F66,$L63:$L66,N63:N66) -> -0.002982954982 | X63: =bdrate($D63:$D66,G63:G66,$L63:$L66,O63:O66) -> -0.0007997579052 | Y63: =bdrateOld($D63:$D66,E63:E66,$L63:$L66,M63:M66) -> -0.0005967065131 | Z63: =bdrateOld($D63:$D66,F63:F66,$L63:$L66,N63:N66) -> -0.002561823536 | AA63: =bdrateOld($D63:$D66,G63:G66,$L63:$L66,O63:O66) -> -0.001531989567
A64: WQVGA | C64: =C60 -> 27 | D64: =Reference!B62 -> 350.0389 | E64: =Reference!C62 -> 39.9976 | F64: =Reference!D62 -> 42.8645 | G64: =Reference!E62 -> 42.2878 | H64: =Reference!F62 -> 2098.99 | I64: =Reference!G62 -> 0.95 | J64: =H64/3600 -> 0.5830527778 | L64: =Test!B62 -> 349.7389 | M64: =Test!C62 -> 39.9966 | N64: =Test!D62 -> 42.8631 | O64: =Test!E62 -> 42.3018 | P64: =Test!F62 -> 2032.1 | Q64: =Test!G62 -> 0.95 | R64: =P64/3600 -> 0.5644722222 | S64: =P64/H64 -> 0.9681322922 | T64: =Q64/I64 -> 1
C65: =C61 -> 32 | D65: =Reference!B63 -> 203.3706 | E65: =Reference!C63 -> 36.6283 | F65: =Reference!D63 -> 40.7 | G65: =Reference!E63 -> 39.9525 | H65: =Reference!F63 -> 1569.35 | I65: =Reference!G63 -> 0.78 | J65: 0.4359305556 | L65: =Test!B63 -> 203.0611 | M65: =Test!C63 -> 36.6228 | N65: =Test!D63 -> 40.7216 | O65: =Test!E63 -> 39.9352 | P65: =Test!F63 -> 1535.44 | Q65: =Test!G63 -> 0.75 | R65: 0.4265111111 | S65: 0.978392328 | T65: 0.9615384615
C66: =C62 -> 37 | D66: =Reference!B64 -> 114.6183 | E66: =Reference!C64 -> 33.4605 | F66: =Reference!D64 -> 39.0174 | G66: =Reference!E64 -> 38.0901 | H66: =Reference!F64 -> 1040.54 | I66: =Reference!G64 -> 0.6 | J66: 0.2890388889 | L66: =Test!B64 -> 114.3825 | M66: =Test!C64 -> 33.4551 | N66: =Test!D64 -> 39.0217 | O66: =Test!E64 -> 38.1017 | P66: =Test!F64 -> 1036.82 | Q66: =Test!G64 -> 0.62 | R66: 0.2880055556 | S66: 0.9964249332 | T66: 1.033333333
B67: BQSquare | C67: 22 | D67: =Reference!B65 -> 1529.6456 | E67: =Reference!C65 -> 41.8754 | F67: =Reference!D65 -> 43.3638 | G67: =Reference!E65 -> 44.6173 | H67: =Reference!F65 -> 3796.53 | I67: =Reference!G65 -> 1.98 | J67: 1.054591667 | L67: =Test!B65 -> 1529.1816 | M67: =Test!C65 -> 41.8724 | N67: =Test!D65 -> 43.3582 | O67: =Test!E65 -> 44.6164 | P67: =Test!F65 -> 3623.25 | Q67: =Test!G65 -> 1.93 | R67: 1.006458333 | S67: 0.9543583219 | T67: 0.9747474747 | V67: =bdrate($D67:$D70,E67:E70,$L67:$L70,M67:M70) -> 0.0001203201898 | W67: =bdrate($D67:$D70,F67:F70,$L67:$L70,N67:N70) -> -0.0004126950496 | X67: =bdrate($D67:$D70,G67:G70,$L67:$L70,O67:O70) -> -0.004065871743 | Y67: =bdrateOld($D67:$D70,E67:E70,$L67:$L70,M67:M70) -> 0.0001293296305 | Z67: =bdrateOld($D67:$D70,F67:F70,$L67:$L70,N67:N70) -> 0.001671916504 | AA67: =bdrateOld($D67:$D70,G67:G70,$L67:$L70,O67:O70) -> -0.004342861899
C68: 27 | D68: =Reference!B66 -> 971.6568 | E68: =Reference!C66 -> 37.4354 | F68: =Reference!D66 -> 40.8716 | G68: =Reference!E66 -> 42.2565 | H68: =Reference!F66 -> 3031.61 | I68: =Reference!G66 -> 1.55 | J68: 0.8421138889 | L68: =Test!B66 -> 972.0128 | M68: =Test!C66 -> 37.4347 | N68: =Test!D66 -> 40.869 | O68: =Test!E66 -> 42.2811 | P68: =Test!F66 -> 2958.19 | Q68: =Test!G66 -> 1.53 | R68: 0.8217194444 | S68: 0.9757818453 | T68: 0.9870967742
C69: 32 | D69: =Reference!B67 -> 592.8416 | E69: =Reference!C67 -> 33.6263 | F69: =Reference!D67 -> 39.3838 | G69: =Reference!E67 -> 40.6173 | H69: =Reference!F67 -> 2369.87 | I69: =Reference!G67 -> 1.26 | J69: 0.6582972222 | L69: =Test!B67 -> 592.7112 | M69: =Test!C67 -> 33.6249 | N69: =Test!D67 -> 39.397 | O69: =Test!E67 -> 40.6262 | P69: =Test!F67 -> 2290.1 | Q69: =Test!G67 -> 1.23 | R69: 0.6361388889 | S69: 0.9663399258 | T69: 0.9761904762
C70: 37 | D70: =Reference!B68 -> 351.7328 | E70: =Reference!C68 -> 30.1524 | F70: =Reference!D68 -> 38.4302 | G70: =Reference!E68 -> 39.3933 | H70: =Reference!F68 -> 1775.83 | I70: =Reference!G68 -> 0.99 | J70: 0.4932861111 | L70: =Test!B68 -> 351.4176 | M70: =Test!C68 -> 30.1497 | N70: =Test!D68 -> 38.4218 | O70: =Test!E68 -> 39.4012 | P70: =Test!F68 -> 1713.48 | Q70: =Test!G68 -> 1.02 | R70: 0.4759666667 | S70: 0.9648896572 | T70: 1.03030303
B71: BlowingBubbles | C71: 22 | D71: =Reference!B69 -> 1330.9683 | E71: =Reference!C69 -> 41.6688 | F71: =Reference!D69 -> 42.0738 | G71: =Reference!E69 -> 43.0247 | H71: =Reference!F69 -> 3599.65 | I71: =Reference!G69 -> 1.81 | J71: 0.9999027778 | L71: =Test!B69 -> 1330.5317 | M71: =Test!C69 -> 41.6657 | N71: =Test!D69 -> 42.0671 | O71: =Test!E69 -> 43.0286 | P71: =Test!F69 -> 3498.36 | Q71: =Test!G69 -> 1.8 | R71: 0.9717666667 | S71: 0.9718611532 | T71: 0.9944751381 | V71: =bdrate($D71:$D74,E71:E74,$L71:$L74,M71:M74) -> 6.989581889e-05 | W71: =bdrate($D71:$D74,F71:F74,$L71:$L74,N71:N74) -> 7.405112738e-05 | X71: =bdrate($D71:$D74,G71:G74,$L71:$L74,O71:O74) -> -0.002662880372 | Y71: =bdrateOld($D71:$D74,E71:E74,$L71:$L74,M71:M74) -> 5.640983638e-05 | Z71: =bdrateOld($D71:$D74,F71:F74,$L71:$L74,N71:N74) -> 0.0005579775117 | AA71: =bdrateOld($D71:$D74,G71:G74,$L71:$L74,O71:O74) -> -0.002983341205
C72: 27 | D72: =Reference!B70 -> 829.1222 | E72: =Reference!C70 -> 37.4322 | F72: =Reference!D70 -> 39.3074 | G72: =Reference!E70 -> 40.0021 | H72: =Reference!F70 -> 3034.66 | I72: =Reference!G70 -> 1.55 | J72: 0.8429611111 | L72: =Test!B70 -> 828.9079 | M72: =Test!C70 -> 37.4287 | N72: =Test!D70 -> 39.3098 | O72: =Test!E70 -> 40.0252 | P72: =Test!F70 -> 2916.45 | Q72: =Test!G70 -> 1.51 | R72: 0.810125 | S72: 0.961046707 | T72: 0.9741935484
C73: 32 | D73: =Reference!B71 -> 478.1357 | E73: =Reference!C71 -> 33.5063 | F73: =Reference!D71 -> 37.3197 | G73: =Reference!E71 -> 37.8686 | H73: =Reference!F71 -> 2543.23 | I73: =Reference!G71 -> 1.24 | J73: 0.7064527778 | L73: =Test!B71 -> 477.5516 | M73: =Test!C71 -> 33.4968 | N73: =Test!D71 -> 37.3199 | O73: =Test!E71 -> 37.865 | P73: =Test!F71 -> 2462.98 | Q73: =Test!G71 -> 1.23 | R73: 0.6841611111 | S73: 0.968445638 | T73: 0.9919354839
C74: 37 | D74: =Reference!B72 -> 246.3484 | E74: =Reference!C72 -> 29.8873 | F74: =Reference!D72 -> 35.8261 | G74: =Reference!E72 -> 36.3404 | H74: =Reference!F72 -> 1974.45 | I74: =Reference!G72 -> 0.94 | J74: 0.5484583333 | L74: =Test!B72 -> 246.2556 | M74: =Test!C72 -> 29.89 | N74: =Test!D72 -> 35.8095 | O74: =Test!E72 -> 36.343 | P74: =Test!F72 -> 1931.91 | Q74: =Test!G72 -> 0.95 | R74: 0.5366416667 | S74: 0.9784547596 | T74: 1.010638298
B75: RaceHorses | C75: 22 | D75: =Reference!B73 -> 512.9147 | E75: =Reference!C73 -> 43.3208 | F75: =Reference!D73 -> 42.9938 | G75: =Reference!E73 -> 44.057 | H75: =Reference!F73 -> 1753.37 | I75: =Reference!G73 -> 0.81 | J75: 0.4870472222 | L75: =Test!B73 -> 513.1437 | M75: =Test!C73 -> 43.3219 | N75: =Test!D73 -> 43.0052 | O75: =Test!E73 -> 44.041 | P75: =Test!F73 -> 1699.38 | Q75: =Test!G73 -> 0.83 | R75: 0.47205 | S75: 0.9692078683 | T75: 1.024691358 | V75: =bdrate($D75:$D78,E75:E78,$L75:$L78,M75:M78) -> -0.0004721162548 | W75: =bdrate($D75:$D78,F75:F78,$L75:$L78,N75:N78) -> -0.001934768467 | X75: =bdrate($D75:$D78,G75:G78,$L75:$L78,O75:O78) -> 0.005860680591 | Y75: =bdrateOld($D75:$D78,E75:E78,$L75:$L78,M75:M78) -> -0.0004673392146 | Z75: =bdrateOld($D75:$D78,F75:F78,$L75:$L78,N75:N78) -> -0.0001548259318 | AA75: =bdrateOld($D75:$D78,G75:G78,$L75:$L78,O75:O78) -> 0.006381853645
C76: 27 | D76: =Reference!B74 -> 323.5089 | E76: =Reference!C74 -> 39.6085 | F76: =Reference!D74 -> 39.9006 | G76: =Reference!E74 -> 41.4289 | H76: =Reference!F74 -> 1442.28 | I76: =Reference!G74 -> 0.69 | J76: 0.4006333333 | L76: =Test!B74 -> 323.595 | M76: =Test!C74 -> 39.6153 | N76: =Test!D74 -> 39.9135 | O76: =Test!E74 -> 41.4042 | P76: =Test!F74 -> 1379.47 | Q76: =Test!G74 -> 0.67 | R76: 0.3831861111 | S76: 0.9564508972 | T76: 0.9710144928
C77: 32 | D77: =Reference!B75 -> 182.3574 | E77: =Reference!C75 -> 35.6999 | F77: =Reference!D75 -> 37.9838 | G77: =Reference!E75 -> 39.3977 | H77: =Reference!F75 -> 1169.02 | I77: =Reference!G75 -> 0.57 | J77: 0.3247277778 | L77: =Test!B75 -> 182.2247 | M77: =Test!C75 -> 35.701 | N77: =Test!D75 -> 37.9994 | O77: =Test!E75 -> 39.3843 | P77: =Test!F75 -> 1147.93 | Q77: =Test!G75 -> 0.56 | R77: 0.3188694444 | S77: 0.9819592479 | T77: 0.9824561404
C78: 37 | D78: =Reference!B76 -> 91.8229 | E78: =Reference!C76 -> 32.1627 | F78: =Reference!D76 -> 36.5449 | G78: =Reference!E76 -> 37.7385 | H78: =Reference!F76 -> 854.17 | I78: =Reference!G76 -> 0.43 | J78: 0.2372694444 | L78: =Test!B76 -> 92.0045 | M78: =Test!C76 -> 32.1687 | N78: =Test!D76 -> 36.5236 | O78: =Test!E76 -> 37.7063 | P78: =Test!F76 -> 818.14 | Q78: =Test!G76 -> 0.44 | R78: 0.2272611111 | S78: 0.9578187012 | T78: 1.023255814
A79: ClassE | B79: FourPeople | C79: 22 | D79: =Reference!B77 -> 0 | E79: =Reference!C77 -> 0 | F79: =Reference!D77 -> 0 | G79: =Reference!E77 -> 0 | H79: =Reference!F77 -> 0 | I79: =Reference!G77 -> 0 | J79: =H79/3600 -> 0 | L79: =Test!B77 -> 0 | M79: =Test!C77 -> 0 | N79: =Test!D77 -> 0 | O79: =Test!E77 -> 0 | P79: =Test!F77 -> 0 | Q79: =Test!G77 -> 0 | R79: =P79/3600 -> 0 | S79: =P79/H79 ->  | T79: =Q79/I79 ->  | V79: =bdrate($D79:$D82,E79:E82,$L79:$L82,M79:M82) ->  | W79: =bdrate($D79:$D82,F79:F82,$L79:$L82,N79:N82) ->  | X79: =bdrate($D79:$D82,G79:G82,$L79:$L82,O79:O82) ->  | Y79: =bdrateOld($D79:$D82,E79:E82,$L79:$L82,M79:M82) ->  | Z79: =bdrateOld($D79:$D82,F79:F82,$L79:$L82,N79:N82) ->  | AA79: =bdrateOld($D79:$D82,G79:G82,$L79:$L82,O79:O82) -> 
A80: 720p | C80: 27 | D80: =Reference!B78 -> 0 | E80: =Reference!C78 -> 0 | F80: =Reference!D78 -> 0 | G80: =Reference!E78 -> 0 | H80: =Reference!F78 -> 0 | I80: =Reference!G78 -> 0 | J80: =H80/3600 -> 0 | L80: =Test!B78 -> 0 | M80: =Test!C78 -> 0 | N80: =Test!D78 -> 0 | O80: =Test!E78 -> 0 | P80: =Test!F78 -> 0 | Q80: =Test!G78 -> 0 | R80: =P80/3600 -> 0 | S80: =P80/H80 ->  | T80: =Q80/I80 -> 
C81: 32 | D81: =Reference!B79 -> 0 | E81: =Reference!C79 -> 0 | F81: =Reference!D79 -> 0 | G81: =Reference!E79 -> 0 | H81: =Reference!F79 -> 0 | I81: =Reference!G79 -> 0 | J81: 0 | L81: =Test!B79 -> 0 | M81: =Test!C79 -> 0 | N81: =Test!D79 -> 0 | O81: =Test!E79 -> 0 | P81: =Test!F79 -> 0 | Q81: =Test!G79 -> 0 | R81: 0
C82: 37 | D82: =Reference!B80 -> 0 | E82: =Reference!C80 -> 0 | F82: =Reference!D80 -> 0 | G82: =Reference!E80 -> 0 | H82: =Reference!F80 -> 0 | I82: =Reference!G80 -> 0 | J82: 0 | L82: =Test!B80 -> 0 | M82: =Test!C80 -> 0 | N82: =Test!D80 -> 0 | O82: =Test!E80 -> 0 | P82: =Test!F80 -> 0 | Q82: =Test!G80 -> 0 | R82: 0
B83: Johnny | C83: 22 | D83: =Reference!B81 -> 0 | E83: =Reference!C81 -> 0 | F83: =Reference!D81 -> 0 | G83: =Reference!E81 -> 0 | H83: =Reference!F81 -> 0 | I83: =Reference!G81 -> 0 | J83: 0 | L83: =Test!B81 -> 0 | M83: =Test!C81 -> 0 | N83: =Test!D81 -> 0 | O83: =Test!E81 -> 0 | P83: =Test!F81 -> 0 | Q83: =Test!G81 -> 0 | R83: 0 | V83: =bdrate($D83:$D86,E83:E86,$L83:$L86,M83:M86) ->  | W83: =bdrate($D83:$D86,F83:F86,$L83:$L86,N83:N86) ->  | X83: =bdrate($D83:$D86,G83:G86,$L83:$L86,O83:O86) ->  | Y83: =bdrateOld($D83:$D86,E83:E86,$L83:$L86,M83:M86) ->  | Z83: =bdrateOld($D83:$D86,F83:F86,$L83:$L86,N83:N86) ->  | AA83: =bdrateOld($D83:$D86,G83:G86,$L83:$L86,O83:O86) -> 
C84: 27 | D84: =Reference!B82 -> 0 | E84: =Reference!C82 -> 0 | F84: =Reference!D82 -> 0 | G84: =Reference!E82 -> 0 | H84: =Reference!F82 -> 0 | I84: =Reference!G82 -> 0 | J84: 0 | L84: =Test!B82 -> 0 | M84: =Test!C82 -> 0 | N84: =Test!D82 -> 0 | O84: =Test!E82 -> 0 | P84: =Test!F82 -> 0 | Q84: =Test!G82 -> 0 | R84: 0
C85: 32 | D85: =Reference!B83 -> 0 | E85: =Reference!C83 -> 0 | F85: =Reference!D83 -> 0 | G85: =Reference!E83 -> 0 | H85: =Reference!F83 -> 0 | I85: =Reference!G83 -> 0 | J85: 0 | L85: =Test!B83 -> 0 | M85: =Test!C83 -> 0 | N85: =Test!D83 -> 0 | O85: =Test!E83 -> 0 | P85: =Test!F83 -> 0 | Q85: =Test!G83 -> 0 | R85: 0
C86: 37 | D86: =Reference!B84 -> 427.4856 | E86: =Reference!C84 -> 38.0901 | F86: =Reference!D84 -> 43.7302 | G86: =Reference!E84 -> 44.5788 | H86: =Reference!F84 -> 3658.76 | I86: =Reference!G84 -> 4.97 | J86: 1.016322222 | L86: =Test!B84 -> 427.6272 | M86: =Test!C84 -> 38.0903 | N86: =Test!D84 -> 43.735 | O86: =Test!E84 -> 44.5616 | P86: =Test!F84 -> 3570.95 | Q86: =Test!G84 -> 4.94 | R86: 0.9919305556 | S86: 0.9760000656 | T86: 0.9939637827
B87: KristenAndSara | C87: 22 | D87: =Reference!B85 -> 0 | E87: =Reference!C85 -> 0 | F87: =Reference!D85 -> 0 | G87: =Reference!E85 -> 0 | H87: =Reference!F85 -> 0 | I87: =Reference!G85 -> 0 | J87: 0 | L87: =Test!B85 -> 0 | M87: =Test!C85 -> 0 | N87: =Test!D85 -> 0 | O87: =Test!E85 -> 0 | P87: =Test!F85 -> 0 | Q87: =Test!G85 -> 0 | R87: 0 | V87: =bdrate($D87:$D90,E87:E90,$L87:$L90,M87:M90) ->  | W87: =bdrate($D87:$D90,F87:F90,$L87:$L90,N87:N90) ->  | X87: =bdrate($D87:$D90,G87:G90,$L87:$L90,O87:O90) ->  | Y87: =bdrateOld($D87:$D90,E87:E90,$L87:$L90,M87:M90) ->  | Z87: =bdrateOld($D87:$D90,F87:F90,$L87:$L90,N87:N90) ->  | AA87: =bdrateOld($D87:$D90,G87:G90,$L87:$L90,O87:O90) -> 
C88: 27 | D88: =Reference!B86 -> 0 | E88: =Reference!C86 -> 0 | F88: =Reference!D86 -> 0 | G88: =Reference!E86 -> 0 | H88: =Reference!F86 -> 0 | I88: =Reference!G86 -> 0 | J88: 0 | L88: =Test!B86 -> 0 | M88: =Test!C86 -> 0 | N88: =Test!D86 -> 0 | O88: =Test!E86 -> 0 | P88: =Test!F86 -> 0 | Q88: =Test!G86 -> 0 | R88: 0
C89: 32 | D89: =Reference!B87 -> 0 | E89: =Reference!C87 -> 0 | F89: =Reference!D87 -> 0 | G89: =Reference!E87 -> 0 | H89: =Reference!F87 -> 0 | I89: =Reference!G87 -> 0 | J89: 0 | L89: =Test!B87 -> 0 | M89: =Test!C87 -> 0 | N89: =Test!D87 -> 0 | O89: =Test!E87 -> 0 | P89: =Test!F87 -> 0 | Q89: =Test!G87 -> 0 | R89: 0
C90: 37 | D90: =Reference!B88 -> 559.0296 | E90: =Reference!C88 -> 37.8308 | F90: =Reference!D88 -> 42.9662 | G90: =Reference!E88 -> 44.1358 | H90: =Reference!F88 -> 4208.1 | I90: =Reference!G88 -> 5.51 | J90: 1.168916667 | L90: =Test!B88 -> 558.944 | M90: =Test!C88 -> 37.8318 | N90: =Test!D88 -> 42.9693 | O90: =Test!E88 -> 44.1438 | P90: =Test!F88 -> 4045.99 | Q90: =Test!G88 -> 5.65 | R90: 1.123886111 | S90: 0.9614766759 | T90: 1.025408348
A91: ClassF | B91: BasketballDrillText | C91: 22 | D91: =Reference!B89 -> 0 | E91: =Reference!C89 -> 0 | F91: =Reference!D89 -> 0 | G91: =Reference!E89 -> 0 | H91: =Reference!F89 -> 0 | I91: =Reference!G89 -> 0 | J91: =H91/3600 -> 0 | L91: =Test!B89 -> 0 | M91: =Test!C89 -> 0 | N91: =Test!D89 -> 0 | O91: =Test!E89 -> 0 | P91: =Test!F89 -> 0 | Q91: =Test!G89 -> 0 | R91: =P91/3600 -> 0 | S91: =P91/H91 ->  | T91: =Q91/I91 ->  | V91: =bdrate($D91:$D94,E91:E94,$L91:$L94,M91:M94) ->  | W91: =bdrate($D91:$D94,F91:F94,$L91:$L94,N91:N94) ->  | X91: =bdrate($D91:$D94,G91:G94,$L91:$L94,O91:O94) ->  | Y91: =bdrateOld($D91:$D94,E91:E94,$L91:$L94,M91:M94) ->  | Z91: =bdrateOld($D91:$D94,F91:F94,$L91:$L94,N91:N94) ->  | AA91: =bdrateOld($D91:$D94,G91:G94,$L91:$L94,O91:O94) -> 
C92: 27 | D92: =Reference!B90 -> 0 | E92: =Reference!C90 -> 0 | F92: =Reference!D90 -> 0 | G92: =Reference!E90 -> 0 | H92: =Reference!F90 -> 0 | I92: =Reference!G90 -> 0 | J92: =H92/3600 -> 0 | L92: =Test!B90 -> 0 | M92: =Test!C90 -> 0 | N92: =Test!D90 -> 0 | O92: =Test!E90 -> 0 | P92: =Test!F90 -> 0 | Q92: =Test!G90 -> 0 | R92: =P92/3600 -> 0 | S92: =P92/H92 ->  | T92: =Q92/I92 -> 
C93: 32 | D93: =Reference!B91 -> 0 | E93: =Reference!C91 -> 0 | F93: =Reference!D91 -> 0 | G93: =Reference!E91 -> 0 | H93: =Reference!F91 -> 0 | I93: =Reference!G91 -> 0 | J93: 0 | L93: =Test!B91 -> 0 | M93: =Test!C91 -> 0 | N93: =Test!D91 -> 0 | O93: =Test!E91 -> 0 | P93: =Test!F91 -> 0 | Q93: =Test!G91 -> 0 | R93: 0
C94: 37 | D94: =Reference!B92 -> 0 | E94: =Reference!C92 -> 0 | F94: =Reference!D92 -> 0 | G94: =Reference!E92 -> 0 | H94: =Reference!F92 -> 0 | I94: =Reference!G92 -> 0 | J94: 0 | L94: =Test!B92 -> 0 | M94: =Test!C92 -> 0 | N94: =Test!D92 -> 0 | O94: =Test!E92 -> 0 | P94: =Test!F92 -> 0 | Q94: =Test!G92 -> 0 | R94: 0
B95: ArenaOfValor | C95: 22 | D95: =Reference!B93 -> 0 | E95: =Reference!C93 -> 0 | F95: =Reference!D93 -> 0 | G95: =Reference!E93 -> 0 | H95: =Reference!F93 -> 0 | I95: =Reference!G93 -> 0 | J95: 0 | L95: =Test!B93 -> 0 | M95: =Test!C93 -> 0 | N95: =Test!D93 -> 0 | O95: =Test!E93 -> 0 | P95: =Test!F93 -> 0 | Q95: =Test!G93 -> 0 | R95: 0 | V95: =bdrate($D95:$D98,E95:E98,$L95:$L98,M95:M98) ->  | W95: =bdrate($D95:$D98,F95:F98,$L95:$L98,N95:N98) ->  | X95: =bdrate($D95:$D98,G95:G98,$L95:$L98,O95:O98) ->  | Y95: =bdrateOld($D95:$D98,E95:E98,$L95:$L98,M95:M98) ->  | Z95: =bdrateOld($D95:$D98,F95:F98,$L95:$L98,N95:N98) ->  | AA95: =bdrateOld($D95:$D98,G95:G98,$L95:$L98,O95:O98) -> 
C96: 27 | D96: =Reference!B94 -> 0 | E96: =Reference!C94 -> 0 | F96: =Reference!D94 -> 0 | G96: =Reference!E94 -> 0 | H96: =Reference!F94 -> 0 | I96: =Reference!G94 -> 0 | J96: 0 | L96: =Test!B94 -> 0 | M96: =Test!C94 -> 0 | N96: =Test!D94 -> 0 | O96: =Test!E94 -> 0 | P96: =Test!F94 -> 0 | Q96: =Test!G94 -> 0 | R96: 0
C97: 32 | D97: =Reference!B95 -> 0 | E97: =Reference!C95 -> 0 | F97: =Reference!D95 -> 0 | G97: =Reference!E95 -> 0 | H97: =Reference!F95 -> 0 | I97: =Reference!G95 -> 0 | J97: 0 | L97: =Test!B95 -> 0 | M97: =Test!C95 -> 0 | N97: =Test!D95 -> 0 | O97: =Test!E95 -> 0 | P97: =Test!F95 -> 0 | Q97: =Test!G95 -> 0 | R97: 0
C98: 37 | D98: =Reference!B96 -> 0 | E98: =Reference!C96 -> 0 | F98: =Reference!D96 -> 0 | G98: =Reference!E96 -> 0 | H98: =Reference!F96 -> 0 | I98: =Reference!G96 -> 0 | J98: 0 | L98: =Test!B96 -> 0 | M98: =Test!C96 -> 0 | N98: =Test!D96 -> 0 | O98: =Test!E96 -> 0 | P98: =Test!F96 -> 0 | Q98: =Test!G96 -> 0 | R98: 0
B99: SlideEditing | C99: 22 | D99: =Reference!B97 -> 0 | E99: =Reference!C97 -> 0 | F99: =Reference!D97 -> 0 | G99: =Reference!E97 -> 0 | H99: =Reference!F97 -> 0 | I99: =Reference!G97 -> 0 | J99: 0 | L99: =Test!B97 -> 0 | M99: =Test!C97 -> 0 | N99: =Test!D97 -> 0 | O99: =Test!E97 -> 0 | P99: =Test!F97 -> 0 | Q99: =Test!G97 -> 0 | R99: 0 | V99: =bdrate($D99:$D102,E99:E102,$L99:$L102,M99:M102) ->  | W99: =bdrate($D99:$D102,F99:F102,$L99:$L102,N99:N102) ->  | X99: =bdrate($D99:$D102,G99:G102,$L99:$L102,O99:O102) ->  | Y99: =bdrateOld($D99:$D102,E99:E102,$L99:$L102,M99:M102) ->  | Z99: =bdrateOld($D99:$D102,F99:F102,$L99:$L102,N99:N102) ->  | AA99: =bdrateOld($D99:$D102,G99:G102,$L99:$L102,O99:O102) -> 
C100: 27 | D100: =Reference!B98 -> 0 | E100: =Reference!C98 -> 0 | F100: =Reference!D98 -> 0 | G100: =Reference!E98 -> 0 | H100: =Reference!F98 -> 0 | I100: =Reference!G98 -> 0 | J100: 0 | L100: =Test!B98 -> 0 | M100: =Test!C98 -> 0 | N100: =Test!D98 -> 0 | O100: =Test!E98 -> 0 | P100: =Test!F98 -> 0 | Q100: =Test!G98 -> 0 | R100: 0
C101: 32 | D101: =Reference!B99 -> 0 | E101: =Reference!C99 -> 0 | F101: =Reference!D99 -> 0 | G101: =Reference!E99 -> 0 | H101: =Reference!F99 -> 0 | I101: =Reference!G99 -> 0 | J101: 0 | L101: =Test!B99 -> 0 | M101: =Test!C99 -> 0 | N101: =Test!D99 -> 0 | O101: =Test!E99 -> 0 | P101: =Test!F99 -> 0 | Q101: =Test!G99 -> 0 | R101: 0
C102: 37 | D102: =Reference!B100 -> 0 | E102: =Reference!C100 -> 0 | F102: =Reference!D100 -> 0 | G102: =Reference!E100 -> 0 | H102: =Reference!F100 -> 0 | I102: =Reference!G100 -> 0 | J102: 0 | L102: =Test!B100 -> 0 | M102: =Test!C100 -> 0 | N102: =Test!D100 -> 0 | O102: =Test!E100 -> 0 | P102: =Test!F100 -> 0 | Q102: =Test!G100 -> 0 | R102: 0
B103: SlideShow | C103: 22 | D103: =Reference!B101 -> 0 | E103: =Reference!C101 -> 0 | F103: =Reference!D101 -> 0 | G103: =Reference!E101 -> 0 | H103: =Reference!F101 -> 0 | I103: =Reference!G101 -> 0 | J103: 0 | L103: =Test!B101 -> 0 | M103: =Test!C101 -> 0 | N103: =Test!D101 -> 0 | O103: =Test!E101 -> 0 | P103: =Test!F101 -> 0 | Q103: =Test!G101 -> 0 | R103: 0 | V103: =bdrate($D103:$D106,E103:E106,$L103:$L106,M103:M106) ->  | W103: =bdrate($D103:$D106,F103:F106,$L103:$L106,N103:N106) ->  | X103: =bdrate($D103:$D106,G103:G106,$L103:$L106,O103:O106) ->  | Y103: =bdrateOld($D103:$D106,E103:E106,$L103:$L106,M103:M106) ->  | Z103: =bdrateOld($D103:$D106,F103:F106,$L103:$L106,N103:N106) ->  | AA103: =bdrateOld($D103:$D106,G103:G106,$L103:$L106,O103:O106) -> 
C104: 27 | D104: =Reference!B102 -> 0 | E104: =Reference!C102 -> 0 | F104: =Reference!D102 -> 0 | G104: =Reference!E102 -> 0 | H104: =Reference!F102 -> 0 | I104: =Reference!G102 -> 0 | J104: 0 | L104: =Test!B102 -> 0 | M104: =Test!C102 -> 0 | N104: =Test!D102 -> 0 | O104: =Test!E102 -> 0 | P104: =Test!F102 -> 0 | Q104: =Test!G102 -> 0 | R104: 0
C105: 32 | D105: =Reference!B103 -> 0 | E105: =Reference!C103 -> 0 | F105: =Reference!D103 -> 0 | G105: =Reference!E103 -> 0 | H105: =Reference!F103 -> 0 | I105: =Reference!G103 -> 0 | J105: 0 | L105: =Test!B103 -> 0 | M105: =Test!C103 -> 0 | N105: =Test!D103 -> 0 | O105: =Test!E103 -> 0 | P105: =Test!F103 -> 0 | Q105: =Test!G103 -> 0 | R105: 0
C106: 37 | D106: =Reference!B104 -> 145.4768 | E106: =Reference!C104 -> 40.7672 | F106: =Reference!D104 -> 46.6121 | G106: =Reference!E104 -> 48.6668 | H106: =Reference!F104 -> 4187.33 | I106: =Reference!G104 -> 3.74 | J106: 1.163147222 | L106: =Test!B104 -> 145.7289 | M106: =Test!C104 -> 40.7858 | N106: =Test!D104 -> 46.6266 | O106: =Test!E104 -> 48.6851 | P106: =Test!F104 -> 4166.94 | Q106: =Test!G104 -> 3.83 | R106: 1.157483333 | S106: 0.9951305486 | T106: 1.024064171
B107: Class A1 | I107: =GEOMEAN(I3:I14) ->  | J107: =GEOMEAN(J3:J14) ->  | Q107: =GEOMEAN(Q3:Q14) ->  | R107: =GEOMEAN(R3:R14) ->  | S107: =GEOMEAN(S3:S14) ->  | T107: =GEOMEAN(T3:T14) ->  | V107: =AVERAGE(V3:V14) -> 
B108: Class A2 | I108: =GEOMEAN(I15:I26) ->  | J108: =GEOMEAN(J15:J26) ->  | Q108: =GEOMEAN(Q15:Q26) ->  | R108: =GEOMEAN(R15:R26) ->  | S108: =GEOMEAN(S15:S26) ->  | T108: =GEOMEAN(T15:T26) ->  | V108: =AVERAGE(V15:V26) -> 
B109: Class B | I109: =GEOMEAN(I27:I46) ->  | J109: =GEOMEAN(J27:J46) ->  | Q109: =GEOMEAN(Q27:Q46) ->  | R109: =GEOMEAN(R27:R46) ->  | S109: =GEOMEAN(S27:S46) ->  | V109: =AVERAGE(V27:V46) ->  | W109: =AVERAGE(W27:W46) -> 
B110: Class C | I110: =GEOMEAN(I47:I62) ->  | J110: =GEOMEAN(J47:J62) ->  | Q110: =GEOMEAN(Q47:Q62) ->  | R110: =GEOMEAN(R47:R62) ->  | S110: =GEOMEAN(S47:S62) ->  | V110: =AVERAGE(V47:V62) ->  | W110: =AVERAGE(W47:W62) -> 
B111: Class D | I111: =GEOMEAN(I63:I78) -> 0.9923541878 | J111: =GEOMEAN(J63:J78) -> 0.5540143681 | Q111: =GEOMEAN(Q63:Q78) -> 0.9865180812 | R111: =GEOMEAN(R63:R78) -> 0.5371024838 | S111: =GEOMEAN(S63:S78) -> 0.9694739248 | T111: 0.9941189278 | V111: =AVERAGE(V63:V78) -> -0.0002175552443 | W111: =AVERAGE(W63:W78) -> -0.001314091843 | X111: -0.0004169573572 | Y111: -0.0002195765652 | Z111: -0.000121688863 | AA111: -0.0006190847564
B112: Class E | I112: =GEOMEAN(I79:I90) ->  | J112: =GEOMEAN(J79:J90) ->  | Q112: =GEOMEAN(Q79:Q90) ->  | R112: =GEOMEAN(R79:R90) ->  | S112: =GEOMEAN(S79:S90) ->  | V112: =AVERAGE(V79:V88) ->  | W112: =AVERAGE(W79:W88) -> 
B113: Class F | I113: =GEOMEAN(I91:I106) ->  | J113: =GEOMEAN(J91:J106) ->  | Q113: =GEOMEAN(Q91:Q106) ->  | R113: =GEOMEAN(R91:R106) ->  | S113: =GEOMEAN(S91:S106) ->  | V113: =AVERAGE(V91:V106) ->  | W113: =AVERAGE(W91:W106) -> 
B114: All | I114: =GEOMEAN(I3:I62, I79:I90) ->  | J114: =GEOMEAN(J3:J62,J79:J90) ->  | Q114: =GEOMEAN(Q3:Q62,Q79:Q90) ->  | R114: =GEOMEAN(R3:R62,R79:R90) ->  | S114: =GEOMEAN(S3:S62,S79:S90) ->  | T114: =GEOMEAN(T3:T62,T79:T90) ->  | V114: =AVERAGE(V3:V62,V79:V90) ->  | W114: =AVERAGE(W3:W62,W79:W90) ->  | Y114: =AVERAGE(Y3:Y62,Y79:Y90) -> 
B115: Time geomean | I115: =GEOMEAN(I3:I106) ->  | J115: =GEOMEAN(J3:J106) ->  | Q115: =GEOMEAN(Q3:Q106) ->  | R115: =GEOMEAN(R3:R106) -> 
B116: Time ratio | Q116: =Q115/I115 ->  | R116: =R115/J115 -> 
B117: Time sum (hours)

Sheet RA-10
D1: Reference | L1: Tested | V1: BD-rate (piecewise cubic) | Y1: BD-rate (cubic)
C2: QPISlice | D2: kbps | E2: Y psnr | F2: U psnr | G2: V psnr | H2: Enc T [s] | I2: Dec T [s] | J2: Enc T [h] | L2: kbps | M2: Y psnr | N2: U psnr | O2: V psnr | P2: Enc T [s] | Q2: Dec T [s] | R2: Enc T [h] | S2: Enc | T2: Dec | V2: Y | W2: U | X2: V | Y2: Y | Z2: U | AA2: V
A3: Class A1 | B3: Tango2 | C3: 22 | D3: =Reference!B105 -> 0 | E3: =Reference!C105 -> 0 | F3: =Reference!D105 -> 0 | G3: =Reference!E105 -> 0 | H3: =Reference!F105 -> 0 | I3: =Reference!G105 -> 0 | J3: =H3/3600 -> 0 | L3: =Test!B105 -> 0 | M3: =Test!C105 -> 0 | N3: =Test!D105 -> 0 | O3: =Test!E105 -> 0 | P3: =Test!F105 -> 0 | Q3: =Test!G105 -> 0 | R3: =P3/3600 -> 0 | S3: =P3/H3 ->  | T3: =Q3/I3 ->  | V3: =bdrate($D3:$D6,E3:E6,$L3:$L6,M3:M6) ->  | W3: =bdrate($D3:$D6,F3:F6,$L3:$L6,N3:N6) ->  | X3: =bdrate($D3:$D6,G3:G6,$L3:$L6,O3:O6) ->  | Y3: =bdrateOld($D3:$D6,E3:E6,$L3:$L6,M3:M6) ->  | Z3: =bdrateOld($D3:$D6,F3:F6,$L3:$L6,N3:N6) ->  | AA3: =bdrateOld($D3:$D6,G3:G6,$L3:$L6,O3:O6) -> 
A4: 4K | C4: 27 | D4: =Reference!B106 -> 0 | E4: =Reference!C106 -> 0 | F4: =Reference!D106 -> 0 | G4: =Reference!E106 -> 0 | H4: =Reference!F106 -> 0 | I4: =Reference!G106 -> 0 | J4: =H4/3600 -> 0 | L4: =Test!B106 -> 0 | M4: =Test!C106 -> 0 | N4: =Test!D106 -> 0 | O4: =Test!E106 -> 0 | P4: =Test!F106 -> 0 | Q4: =Test!G106 -> 0 | R4: =P4/3600 -> 0 | S4: =P4/H4 -> 
C5: 32 | D5: =Reference!B107 -> 0 | E5: =Reference!C107 -> 0 | F5: =Reference!D107 -> 0 | G5: =Reference!E107 -> 0 | H5: =Reference!F107 -> 0 | I5: =Reference!G107 -> 0 | J5: 0 | L5: =Test!B107 -> 0 | M5: =Test!C107 -> 0 | N5: =Test!D107 -> 0 | O5: =Test!E107 -> 0 | P5: =Test!F107 -> 0 | Q5: =Test!G107 -> 0 | R5: 0
C6: 37 | D6: =Reference!B108 -> 0 | E6: =Reference!C108 -> 0 | F6: =Reference!D108 -> 0 | G6: =Reference!E108 -> 0 | H6: =Reference!F108 -> 0 | I6: =Reference!G108 -> 0 | J6: 0 | L6: =Test!B108 -> 0 | M6: =Test!C108 -> 0 | N6: =Test!D108 -> 0 | O6: =Test!E108 -> 0 | P6: =Test!F108 -> 0 | Q6: =Test!G108 -> 0 | R6: 0
B7: FoodMarket4 | C7: 22 | D7: =Reference!B109 -> 0 | E7: =Reference!C109 -> 0 | F7: =Reference!D109 -> 0 | G7: =Reference!E109 -> 0 | H7: =Reference!F109 -> 0 | I7: =Reference!G109 -> 0 | J7: 0 | L7: =Test!B109 -> 0 | M7: =Test!C109 -> 0 | N7: =Test!D109 -> 0 | O7: =Test!E109 -> 0 | P7: =Test!F109 -> 0 | Q7: =Test!G109 -> 0 | R7: 0 | V7: =bdrate($D7:$D10,E7:E10,$L7:$L10,M7:M10) ->  | W7: =bdrate($D7:$D10,F7:F10,$L7:$L10,N7:N10) ->  | X7: =bdrate($D7:$D10,G7:G10,$L7:$L10,O7:O10) ->  | Y7: =bdrateOld($D7:$D10,E7:E10,$L7:$L10,M7:M10) ->  | Z7: =bdrateOld($D7:$D10,F7:F10,$L7:$L10,N7:N10) ->  | AA7: =bdrateOld($D7:$D10,G7:G10,$L7:$L10,O7:O10) -> 
C8: 27 | D8: =Reference!B110 -> 0 | E8: =Reference!C110 -> 0 | F8: =Reference!D110 -> 0 | G8: =Reference!E110 -> 0 | H8: =Reference!F110 -> 0 | I8: =Reference!G110 -> 0 | J8: 0 | L8: =Test!B110 -> 0 | M8: =Test!C110 -> 0 | N8: =Test!D110 -> 0 | O8: =Test!E110 -> 0 | P8: =Test!F110 -> 0 | Q8: =Test!G110 -> 0 | R8: 0
C9: 32 | D9: =Reference!B111 -> 0 | E9: =Reference!C111 -> 0 | F9: =Reference!D111 -> 0 | G9: =Reference!E111 -> 0 | H9: =Reference!F111 -> 0 | I9: =Reference!G111 -> 0 | J9: 0 | L9: =Test!B111 -> 0 | M9: =Test!C111 -> 0 | N9: =Test!D111 -> 0 | O9: =Test!E111 -> 0 | P9: =Test!F111 -> 0 | Q9: =Test!G111 -> 0 | R9: 0
C10: 37 | D10: =Reference!B112 -> 0 | E10: =Reference!C112 -> 0 | F10: =Reference!D112 -> 0 | G10: =Reference!E112 -> 0 | H10: =Reference!F112 -> 0 | I10: =Reference!G112 -> 0 | J10: 0 | L10: =Test!B112 -> 0 | M10: =Test!C112 -> 0 | N10: =Test!D112 -> 0 | O10: =Test!E112 -> 0 | P10: =Test!F112 -> 0 | Q10: =Test!G112 -> 0 | R10: 0
B11: Campfire | C11: 22 | D11: =Reference!B113 -> 0 | E11: =Reference!C113 -> 0 | F11: =Reference!D113 -> 0 | G11: =Reference!E113 -> 0 | H11: =Reference!F113 -> 0 | I11: =Reference!G113 -> 0 | J11: 0 | L11: =Test!B113 -> 0 | M11: =Test!C113 -> 0 | N11: =Test!D113 -> 0 | O11: =Test!E113 -> 0 | P11: =Test!F113 -> 0 | Q11: =Test!G113 -> 0 | R11: 0 | V11: =bdrate($D11:$D14,E11:E14,$L11:$L14,M11:M14) ->  | W11: =bdrate($D11:$D14,F11:F14,$L11:$L14,N11:N14) ->  | X11: =bdrate($D11:$D14,G11:G14,$L11:$L14,O11:O14) ->  | Y11: =bdrateOld($D11:$D14,E11:E14,$L11:$L14,M11:M14) ->  | Z11: =bdrateOld($D11:$D14,F11:F14,$L11:$L14,N11:N14) ->  | AA11: =bdrateOld($D11:$D14,G11:G14,$L11:$L14,O11:O14) -> 
C12: 27 | D12: =Reference!B114 -> 0 | E12: =Reference!C114 -> 0 | F12: =Reference!D114 -> 0 | G12: =Reference!E114 -> 0 | H12: =Reference!F114 -> 0 | I12: =Reference!G114 -> 0 | J12: 0 | L12: =Test!B114 -> 0 | M12: =Test!C114 -> 0 | N12: =Test!D114 -> 0 | O12: =Test!E114 -> 0 | P12: =Test!F114 -> 0 | Q12: =Test!G114 -> 0 | R12: 0
C13: 32 | D13: =Reference!B115 -> 0 | E13: =Reference!C115 -> 0 | F13: =Reference!D115 -> 0 | G13: =Reference!E115 -> 0 | H13: =Reference!F115 -> 0 | I13: =Reference!G115 -> 0 | J13: 0 | L13: =Test!B115 -> 0 | M13: =Test!C115 -> 0 | N13: =Test!D115 -> 0 | O13: =Test!E115 -> 0 | P13: =Test!F115 -> 0 | Q13: =Test!G115 -> 0 | R13: 0
C14: 37 | D14: =Reference!B116 -> 0 | E14: =Reference!C116 -> 0 | F14: =Reference!D116 -> 0 | G14: =Reference!E116 -> 0 | H14: =Reference!F116 -> 0 | I14: =Reference!G116 -> 0 | J14: 0 | L14: =Test!B116 -> 0 | M14: =Test!C116 -> 0 | N14: =Test!D116 -> 0 | O14: =Test!E116 -> 0 | P14: =Test!F116 -> 0 | Q14: =Test!G116 -> 0 | R14: 0
A15: Class A2 | B15: CatRobot1 | C15: 22 | D15: =Reference!B117 -> 0 | E15: =Reference!C117 -> 0 | F15: =Reference!D117 -> 0 | G15: =Reference!E117 -> 0 | H15: =Reference!F117 -> 0 | I15: =Reference!G117 -> 0 | J15: 0 | L15: =Test!B117 -> 0 | M15: =Test!C117 -> 0 | N15: =Test!D117 -> 0 | O15: =Test!E117 -> 0 | P15: =Test!F117 -> 0 | Q15: =Test!G117 -> 0 | R15: 0 | S15: =P15/H15 ->  | T15: =Q15/I15 ->  | V15: =bdrate($D15:$D18,E15:E18,$L15:$L18,M15:M18) ->  | W15: =bdrate($D15:$D18,F15:F18,$L15:$L18,N15:N18) ->  | X15: =bdrate($D15:$D18,G15:G18,$L15:$L18,O15:O18) ->  | Y15: =bdrateOld($D15:$D18,E15:E18,$L15:$L18,M15:M18) ->  | Z15: =bdrateOld($D15:$D18,F15:F18,$L15:$L18,N15:N18) ->  | AA15: =bdrateOld($D15:$D18,G15:G18,$L15:$L18,O15:O18) -> 
A16: 4K | C16: 27 | D16: =Reference!B118 -> 0 | E16: =Reference!C118 -> 0 | F16: =Reference!D118 -> 0 | G16: =Reference!E118 -> 0 | H16: =Reference!F118 -> 0 | I16: =Reference!G118 -> 0 | J16: 0 | L16: =Test!B118 -> 0 | M16: =Test!C118 -> 0 | N16: =Test!D118 -> 0 | O16: =Test!E118 -> 0 | P16: =Test!F118 -> 0 | Q16: =Test!G118 -> 0 | R16: 0 | S16: =P16/H16 ->  | T16: =Q16/I16 -> 
C17: 32 | D17: =Reference!B119 -> 0 | E17: =Reference!C119 -> 0 | F17: =Reference!D119 -> 0 | G17: =Reference!E119 -> 0 | H17: =Reference!F119 -> 0 | I17: =Reference!G119 -> 0 | J17: 0 | L17: =Test!B119 -> 0 | M17: =Test!C119 -> 0 | N17: =Test!D119 -> 0 | O17: =Test!E119 -> 0 | P17: =Test!F119 -> 0 | Q17: =Test!G119 -> 0 | R17: 0
C18: 37 | D18: =Reference!B120 -> 0 | E18: =Reference!C120 -> 0 | F18: =Reference!D120 -> 0 | G18: =Reference!E120 -> 0 | H18: =Reference!F120 -> 0 | I18: =Reference!G120 -> 0 | J18: 0 | L18: =Test!B120 -> 0 | M18: =Test!C120 -> 0 | N18: =Test!D120 -> 0 | O18: =Test!E120 -> 0 | P18: =Test!F120 -> 0 | Q18: =Test!G120 -> 0 | R18: 0
B19: DaylightRoad2 | C19: 22 | D19: =Reference!B121 -> 0 | E19: =Reference!C121 -> 0 | F19: =Reference!D121 -> 0 | G19: =Reference!E121 -> 0 | H19: =Reference!F121 -> 0 | I19: =Reference!G121 -> 0 | J19: 0 | L19: =Test!B121 -> 0 | M19: =Test!C121 -> 0 | N19: =Test!D121 -> 0 | O19: =Test!E121 -> 0 | P19: =Test!F121 -> 0 | Q19: =Test!G121 -> 0 | R19: 0 | V19: =bdrate($D19:$D22,E19:E22,$L19:$L22,M19:M22) ->  | W19: =bdrate($D19:$D22,F19:F22,$L19:$L22,N19:N22) ->  | X19: =bdrate($D19:$D22,G19:G22,$L19:$L22,O19:O22) ->  | Y19: =bdrateOld($D19:$D22,E19:E22,$L19:$L22,M19:M22) ->  | Z19: =bdrateOld($D19:$D22,F19:F22,$L19:$L22,N19:N22) ->  | AA19: =bdrateOld($D19:$D22,G19:G22,$L19:$L22,O19:O22) -> 
C20: 27 | D20: =Reference!B122 -> 0 | E20: =Reference!C122 -> 0 | F20: =Reference!D122 -> 0 | G20: =Reference!E122 -> 0 | H20: =Reference!F122 -> 0 | I20: =Reference!G122 -> 0 | J20: 0 | L20: =Test!B122 -> 0 | M20: =Test!C122 -> 0 | N20: =Test!D122 -> 0 | O20: =Test!E122 -> 0 | P20: =Test!F122 -> 0 | Q20: =Test!G122 -> 0 | R20: 0
C21: 32 | D21: =Reference!B123 -> 0 | E21: =Reference!C123 -> 0 | F21: =Reference!D123 -> 0 | G21: =Reference!E123 -> 0 | H21: =Reference!F123 -> 0 | I21: =Reference!G123 -> 0 | J21: 0 | L21: =Test!B123 -> 0 | M21: =Test!C123 -> 0 | N21: =Test!D123 -> 0 | O21: =Test!E123 -> 0 | P21: =Test!F123 -> 0 | Q21: =Test!G123 -> 0 | R21: 0
C22: 37 | D22: =Reference!B124 -> 0 | E22: =Reference!C124 -> 0 | F22: =Reference!D124 -> 0 | G22: =Reference!E124 -> 0 | H22: =Reference!F124 -> 0 | I22: =Reference!G124 -> 0 | J22: 0 | L22: =Test!B124 -> 0 | M22: =Test!C124 -> 0 | N22: =Test!D124 -> 0 | O22: =Test!E124 -> 0 | P22: =Test!F124 -> 0 | Q22: =Test!G124 -> 0 | R22: 0
B23: ParkRunning3 | C23: 22 | D23: =Reference!B125 -> 0 | E23: =Reference!C125 -> 0 | F23: =Reference!D125 -> 0 | G23: =Reference!E125 -> 0 | H23: =Reference!F125 -> 0 | I23: =Reference!G125 -> 0 | J23: 0 | L23: =Test!B125 -> 0 | M23: =Test!C125 -> 0 | N23: =Test!D125 -> 0 | O23: =Test!E125 -> 0 | P23: =Test!F125 -> 0 | Q23: =Test!G125 -> 0 | R23: 0 | V23: =bdrate($D23:$D26,E23:E26,$L23:$L26,M23:M26) ->  | W23: =bdrate($D23:$D26,F23:F26,$L23:$L26,N23:N26) ->  | X23: =bdrate($D23:$D26,G23:G26,$L23:$L26,O23:O26) ->  | Y23: =bdrateOld($D23:$D26,E23:E26,$L23:$L26,M23:M26) ->  | Z23: =bdrateOld($D23:$D26,F23:F26,$L23:$L26,N23:N26) ->  | AA23: =bdrateOld($D23:$D26,G23:G26,$L23:$L26,O23:O26) -> 
C24: 27 | D24: =Reference!B126 -> 0 | E24: =Reference!C126 -> 0 | F24: =Reference!D126 -> 0 | G24: =Reference!E126 -> 0 | H24: =Reference!F126 -> 0 | I24: =Reference!G126 -> 0 | J24: 0 | L24: =Test!B126 -> 0 | M24: =Test!C126 -> 0 | N24: =Test!D126 -> 0 | O24: =Test!E126 -> 0 | P24: =Test!F126 -> 0 | Q24: =Test!G126 -> 0 | R24: 0
C25: 32 | D25: =Reference!B127 -> 0 | E25: =Reference!C127 -> 0 | F25: =Reference!D127 -> 0 | G25: =Reference!E127 -> 0 | H25: =Reference!F127 -> 0 | I25: =Reference!G127 -> 0 | J25: 0 | L25: =Test!B127 -> 0 | M25: =Test!C127 -> 0 | N25: =Test!D127 -> 0 | O25: =Test!E127 -> 0 | P25: =Test!F127 -> 0 | Q25: =Test!G127 -> 0 | R25: 0
C26: 37 | D26: =Reference!B128 -> 0 | E26: =Reference!C128 -> 0 | F26: =Reference!D128 -> 0 | G26: =Reference!E128 -> 0 | H26: =Reference!F128 -> 0 | I26: =Reference!G128 -> 0 | J26: 0 | L26: =Test!B128 -> 0 | M26: =Test!C128 -> 0 | N26: =Test!D128 -> 0 | O26: =Test!E128 -> 0 | P26: =Test!F128 -> 0 | Q26: =Test!G128 -> 0 | R26: 0
A27: Class B | B27: MarketPlace | C27: 22 | D27: =Reference!B129 -> 0 | E27: =Reference!C129 -> 0 | F27: =Reference!D129 -> 0 | G27: =Reference!E129 -> 0 | H27: =Reference!F129 -> 0 | I27: =Reference!G129 -> 0 | J27: 0 | L27: =Test!B129 -> 0 | M27: =Test!C129 -> 0 | N27: =Test!D129 -> 0 | O27: =Test!E129 -> 0 | P27: =Test!F129 -> 0 | Q27: =Test!G129 -> 0 | R27: 0 | V27: =bdrate($D27:$D30,E27:E30,$L27:$L30,M27:M30) ->  | W27: =bdrate($D27:$D30,F27:F30,$L27:$L30,N27:N30) ->  | X27: =bdrate($D27:$D30,G27:G30,$L27:$L30,O27:O30) ->  | Y27: =bdrateOld($D27:$D30,E27:E30,$L27:$L30,M27:M30) ->  | Z27: =bdrateOld($D27:$D30,F27:F30,$L27:$L30,N27:N30) ->  | AA27: =bdrateOld($D27:$D30,G27:G30,$L27:$L30,O27:O30) -> 
A28: 1080p | C28: 27 | D28: =Reference!B130 -> 0 | E28: =Reference!C130 -> 0 | F28: =Reference!D130 -> 0 | G28: =Reference!E130 -> 0 | H28: =Reference!F130 -> 0 | I28: =Reference!G130 -> 0 | J28: 0 | L28: =Test!B130 -> 0 | M28: =Test!C130 -> 0 | N28: =Test!D130 -> 0 | O28: =Test!E130 -> 0 | P28: =Test!F130 -> 0 | Q28: =Test!G130 -> 0 | R28: 0
C29: 32 | D29: =Reference!B131 -> 0 | E29: =Reference!C131 -> 0 | F29: =Reference!D131 -> 0 | G29: =Reference!E131 -> 0 | H29: =Reference!F131 -> 0 | I29: =Reference!G131 -> 0 | J29: 0 | L29: =Test!B131 -> 0 | M29: =Test!C131 -> 0 | N29: =Test!D131 -> 0 | O29: =Test!E131 -> 0 | P29: =Test!F131 -> 0 | Q29: =Test!G131 -> 0 | R29: 0
C30: 37 | D30: =Reference!B132 -> 0 | E30: =Reference!C132 -> 0 | F30: =Reference!D132 -> 0 | G30: =Reference!E132 -> 0 | H30: =Reference!F132 -> 0 | I30: =Reference!G132 -> 0 | J30: 0 | L30: =Test!B132 -> 0 | M30: =Test!C132 -> 0 | N30: =Test!D132 -> 0 | O30: =Test!E132 -> 0 | P30: =Test!F132 -> 0 | Q30: =Test!G132 -> 0 | R30: 0
B31: RitualDance | C31: 22 | D31: =Reference!B133 -> 0 | E31: =Reference!C133 -> 0 | F31: =Reference!D133 -> 0 | G31: =Reference!E133 -> 0 | H31: =Reference!F133 -> 0 | I31: =Reference!G133 -> 0 | J31: 0 | L31: =Test!B133 -> 0 | M31: =Test!C133 -> 0 | N31: =Test!D133 -> 0 | O31: =Test!E133 -> 0 | P31: =Test!F133 -> 0 | Q31: =Test!G133 -> 0 | R31: 0 | V31: =bdrate($D31:$D34,E31:E34,$L31:$L34,M31:M34) ->  | W31: =bdrate($D31:$D34,F31:F34,$L31:$L34,N31:N34) ->  | X31: =bdrate($D31:$D34,G31:G34,$L31:$L34,O31:O34) ->  | Y31: =bdrateOld($D31:$D34,E31:E34,$L31:$L34,M31:M34) ->  | Z31: =bdrateOld($D31:$D34,F31:F34,$L31:$L34,N31:N34) ->  | AA31: =bdrateOld($D31:$D34,G31:G34,$L31:$L34,O31:O34) -> 
C32: 27 | D32: =Reference!B134 -> 0 | E32: =Reference!C134 -> 0 | F32: =Reference!D134 -> 0 | G32: =Reference!E134 -> 0 | H32: =Reference!F134 -> 0 | I32: =Reference!G134 -> 0 | J32: 0 | L32: =Test!B134 -> 0 | M32: =Test!C134 -> 0 | N32: =Test!D134 -> 0 | O32: =Test!E134 -> 0 | P32: =Test!F134 -> 0 | Q32: =Test!G134 -> 0 | R32: 0
C33: 32 | D33: =Reference!B135 -> 0 | E33: =Reference!C135 -> 0 | F33: =Reference!D135 -> 0 | G33: =Reference!E135 -> 0 | H33: =Reference!F135 -> 0 | I33: =Reference!G135 -> 0 | J33: 0 | L33: =Test!B135 -> 0 | M33: =Test!C135 -> 0 | N33: =Test!D135 -> 0 | O33: =Test!E135 -> 0 | P33: =Test!F135 -> 0 | Q33: =Test!G135 -> 0 | R33: 0
C34: 37 | D34: =Reference!B136 -> 0 | E34: =Reference!C136 -> 0 | F34: =Reference!D136 -> 0 | G34: =Reference!E136 -> 0 | H34: =Reference!F136 -> 0 | I34: =Reference!G136 -> 0 | J34: 0 | L34: =Test!B136 -> 0 | M34: =Test!C136 -> 0 | N34: =Test!D136 -> 0 | O34: =Test!E136 -> 0 | P34: =Test!F136 -> 0 | Q34: =Test!G136 -> 0 | R34: 0
B35: Cactus | C35: 22 | D35: =Reference!B137 -> 0 | E35: =Reference!C137 -> 0 | F35: =Reference!D137 -> 0 | G35: =Reference!E137 -> 0 | H35: =Reference!F137 -> 0 | I35: =Reference!G137 -> 0 | J35: 0 | L35: =Test!B137 -> 0 | M35: =Test!C137 -> 0 | N35: =Test!D137 -> 0 | O35: =Test!E137 -> 0 | P35: =Test!F137 -> 0 | Q35: =Test!G137 -> 0 | R35: 0 | V35: =bdrate($D35:$D38,E35:E38,$L35:$L38,M35:M38) ->  | W35: =bdrate($D35:$D38,F35:F38,$L35:$L38,N35:N38) ->  | X35: =bdrate($D35:$D38,G35:G38,$L35:$L38,O35:O38) ->  | Y35: =bdrateOld($D35:$D38,E35:E38,$L35:$L38,M35:M38) ->  | Z35: =bdrateOld($D35:$D38,F35:F38,$L35:$L38,N35:N38) ->  | AA35: =bdrateOld($D35:$D38,G35:G38,$L35:$L38,O35:O38) -> 
C36: 27 | D36: =Reference!B138 -> 0 | E36: =Reference!C138 -> 0 | F36: =Reference!D138 -> 0 | G36: =Reference!E138 -> 0 | H36: =Reference!F138 -> 0 | I36: =Reference!G138 -> 0 | J36: 0 | L36: =Test!B138 -> 0 | M36: =Test!C138 -> 0 | N36: =Test!D138 -> 0 | O36: =Test!E138 -> 0 | P36: =Test!F138 -> 0 | Q36: =Test!G138 -> 0 | R36: 0
C37: 32 | D37: =Reference!B139 -> 0 | E37: =Reference!C139 -> 0 | F37: =Reference!D139 -> 0 | G37: =Reference!E139 -> 0 | H37: =Reference!F139 -> 0 | I37: =Reference!G139 -> 0 | J37: 0 | L37: =Test!B139 -> 0 | M37: =Test!C139 -> 0 | N37: =Test!D139 -> 0 | O37: =Test!E139 -> 0 | P37: =Test!F139 -> 0 | Q37: =Test!G139 -> 0 | R37: 0
C38: 37 | D38: =Reference!B140 -> 0 | E38: =Reference!C140 -> 0 | F38: =Reference!D140 -> 0 | G38: =Reference!E140 -> 0 | H38: =Reference!F140 -> 0 | I38: =Reference!G140 -> 0 | J38: 0 | L38: =Test!B140 -> 0 | M38: =Test!C140 -> 0 | N38: =Test!D140 -> 0 | O38: =Test!E140 -> 0 | P38: =Test!F140 -> 0 | Q38: =Test!G140 -> 0 | R38: 0
B39: BasketballDrive | C39: 22 | D39: =Reference!B141 -> 0 | E39: =Reference!C141 -> 0 | F39: =Reference!D141 -> 0 | G39: =Reference!E141 -> 0 | H39: =Reference!F141 -> 0 | I39: =Reference!G141 -> 0 | J39: 0 | L39: =Test!B141 -> 0 | M39: =Test!C141 -> 0 | N39: =Test!D141 -> 0 | O39: =Test!E141 -> 0 | P39: =Test!F141 -> 0 | Q39: =Test!G141 -> 0 | R39: 0 | V39: =bdrate($D39:$D42,E39:E42,$L39:$L42,M39:M42) ->  | W39: =bdrate($D39:$D42,F39:F42,$L39:$L42,N39:N42) ->  | X39: =bdrate($D39:$D42,G39:G42,$L39:$L42,O39:O42) ->  | Y39: =bdrateOld($D39:$D42,E39:E42,$L39:$L42,M39:M42) ->  | Z39: =bdrateOld($D39:$D42,F39:F42,$L39:$L42,N39:N42) ->  | AA39: =bdrateOld($D39:$D42,G39:G42,$L39:$L42,O39:O42) -> 
C40: 27 | D40: =Reference!B142 -> 0 | E40: =Reference!C142 -> 0 | F40: =Reference!D142 -> 0 | G40: =Reference!E142 -> 0 | H40: =Reference!F142 -> 0 | I40: =Reference!G142 -> 0 | J40: 0 | L40: =Test!B142 -> 0 | M40: =Test!C142 -> 0 | N40: =Test!D142 -> 0 | O40: =Test!E142 -> 0 | P40: =Test!F142 -> 0 | Q40: =Test!G142 -> 0 | R40: 0
C41: 32 | D41: =Reference!B143 -> 0 | E41: =Reference!C143 -> 0 | F41: =Reference!D143 -> 0 | G41: =Reference!E143 -> 0 | H41: =Reference!F143 -> 0 | I41: =Reference!G143 -> 0 | J41: 0 | L41: =Test!B143 -> 0 | M41: =Test!C143 -> 0 | N41: =Test!D143 -> 0 | O41: =Test!E143 -> 0 | P41: =Test!F143 -> 0 | Q41: =Test!G143 -> 0 | R41: 0
C42: 37 | D42: =Reference!B144 -> 0 | E42: =Reference!C144 -> 0 | F42: =Reference!D144 -> 0 | G42: =Reference!E144 -> 0 | H42: =Reference!F144 -> 0 | I42: =Reference!G144 -> 0 | J42: 0 | L42: =Test!B144 -> 0 | M42: =Test!C144 -> 0 | N42: =Test!D144 -> 0 | O42: =Test!E144 -> 0 | P42: =Test!F144 -> 0 | Q42: =Test!G144 -> 0 | R42: 0
B43: BQTerrace | C43: 22 | D43: =Reference!B145 -> 0 | E43: =Reference!C145 -> 0 | F43: =Reference!D145 -> 0 | G43: =Reference!E145 -> 0 | H43: =Reference!F145 -> 0 | I43: =Reference!G145 -> 0 | J43: 0 | L43: =Test!B145 -> 0 | M43: =Test!C145 -> 0 | N43: =Test!D145 -> 0 | O43: =Test!E145 -> 0 | P43: =Test!F145 -> 0 | Q43: =Test!G145 -> 0 | R43: 0 | V43: =bdrate($D43:$D46,E43:E46,$L43:$L46,M43:M46) ->  | W43: =bdrate($D43:$D46,F43:F46,$L43:$L46,N43:N46) ->  | X43: =bdrate($D43:$D46,G43:G46,$L43:$L46,O43:O46) ->  | Y43: =bdrateOld($D43:$D46,E43:E46,$L43:$L46,M43:M46) ->  | Z43: =bdrateOld($D43:$D46,F43:F46,$L43:$L46,N43:N46) ->  | AA43: =bdrateOld($D43:$D46,G43:G46,$L43:$L46,O43:O46) -> 
C44: 27 | D44: =Reference!B146 -> 0 | E44: =Reference!C146 -> 0 | F44: =Reference!D146 -> 0 | G44: =Reference!E146 -> 0 | H44: =Reference!F146 -> 0 | I44: =Reference!G146 -> 0 | J44: 0 | L44: =Test!B146 -> 0 | M44: =Test!C146 -> 0 | N44: =Test!D146 -> 0 | O44: =Test!E146 -> 0 | P44: =Test!F146 -> 0 | Q44: =Test!G146 -> 0 | R44: 0
C45: 32 | D45: =Reference!B147 -> 0 | E45: =Reference!C147 -> 0 | F45: =Reference!D147 -> 0 | G45: =Reference!E147 -> 0 | H45: =Reference!F147 -> 0 | I45: =Reference!G147 -> 0 | J45: 0 | L45: =Test!B147 -> 0 | M45: =Test!C147 -> 0 | N45: =Test!D147 -> 0 | O45: =Test!E147 -> 0 | P45: =Test!F147 -> 0 | Q45: =Test!G147 -> 0 | R45: 0
C46: 37 | D46: =Reference!B148 -> 0 | E46: =Reference!C148 -> 0 | F46: =Reference!D148 -> 0 | G46: =Reference!E148 -> 0 | H46: =Reference!F148 -> 0 | I46: =Reference!G148 -> 0 | J46: 0 | L46: =Test!B148 -> 0 | M46: =Test!C148 -> 0 | N46: =Test!D148 -> 0 | O46: =Test!E148 -> 0 | P46: =Test!F148 -> 0 | Q46: =Test!G148 -> 0 | R46: 0
A47: Class C | B47: BasketballDrill | C47: 22 | D47: =Reference!B149 -> 0 | E47: =Reference!C149 -> 0 | F47: =Reference!D149 -> 0 | G47: =Reference!E149 -> 0 | H47: =Reference!F149 -> 0 | I47: =Reference!G149 -> 0 | J47: 0 | L47: =Test!B149 -> 0 | M47: =Test!C149 -> 0 | N47: =Test!D149 -> 0 | O47: =Test!E149 -> 0 | P47: =Test!F149 -> 0 | Q47: =Test!G149 -> 0 | R47: 0 | S47: =P47/H47 ->  | V47: =bdrate($D47:$D50,E47:E50,$L47:$L50,M47:M50) ->  | W47: =bdrate($D47:$D50,F47:F50,$L47:$L50,N47:N50) ->  | X47: =bdrate($D47:$D50,G47:G50,$L47:$L50,O47:O50) ->  | Y47: =bdrateOld($D47:$D50,E47:E50,$L47:$L50,M47:M50) ->  | Z47: =bdrateOld($D47:$D50,F47:F50,$L47:$L50,N47:N50) ->  | AA47: =bdrateOld($D47:$D50,G47:G50,$L47:$L50,O47:O50) -> 
A48: WVGA | C48: 27 | D48: =Reference!B150 -> 0 | E48: =Reference!C150 -> 0 | F48: =Reference!D150 -> 0 | G48: =Reference!E150 -> 0 | H48: =Reference!F150 -> 0 | I48: =Reference!G150 -> 0 | J48: 0 | L48: =Test!B150 -> 0 | M48: =Test!C150 -> 0 | N48: =Test!D150 -> 0 | O48: =Test!E150 -> 0 | P48: =Test!F150 -> 0 | Q48: =Test!G150 -> 0 | R48: 0
C49: 32 | D49: =Reference!B151 -> 676.444 | E49: =Reference!C151 -> 35.6816 | F49: =Reference!D151 -> 39.9028 | G49: =Reference!E151 -> 40.2505 | H49: =Reference!F151 -> 33608.37 | I49: =Reference!G151 -> 11.03 | J49: 9.335658333 | L49: =Test!B151 -> 0 | M49: =Test!C151 -> 0 | N49: =Test!D151 -> 0 | O49: =Test!E151 -> 0 | P49: =Test!F151 -> 0 | Q49: =Test!G151 -> 0 | R49: 0 | S49: 0 | T49: 0
C50: 37 | D50: =Reference!B152 -> 347.1832 | E50: =Reference!C152 -> 33.0509 | F50: =Reference!D152 -> 38.4734 | G50: =Reference!E152 -> 38.5747 | H50: =Reference!F152 -> 20089.19 | I50: =Reference!G152 -> 9.16 | J50: 5.580330556 | L50: =Test!B152 -> 0 | M50: =Test!C152 -> 0 | N50: =Test!D152 -> 0 | O50: =Test!E152 -> 0 | P50: =Test!F152 -> 0 | Q50: =Test!G152 -> 0 | R50: 0 | S50: 0 | T50: 0
B51: BQMall | C51: 22 | D51: =Reference!B153 -> 0 | E51: =Reference!C153 -> 0 | F51: =Reference!D153 -> 0 | G51: =Reference!E153 -> 0 | H51: =Reference!F153 -> 0 | I51: =Reference!G153 -> 0 | J51: 0 | L51: =Test!B153 -> 0 | M51: =Test!C153 -> 0 | N51: =Test!D153 -> 0 | O51: =Test!E153 -> 0 | P51: =Test!F153 -> 0 | Q51: =Test!G153 -> 0 | R51: 0 | V51: =bdrate($D51:$D54,E51:E54,$L51:$L54,M51:M54) ->  | W51: =bdrate($D51:$D54,F51:F54,$L51:$L54,N51:N54) ->  | X51: =bdrate($D51:$D54,G51:G54,$L51:$L54,O51:O54) ->  | Y51: =bdrateOld($D51:$D54,E51:E54,$L51:$L54,M51:M54) ->  | Z51: =bdrateOld($D51:$D54,F51:F54,$L51:$L54,N51:N54) ->  | AA51: =bdrateOld($D51:$D54,G51:G54,$L51:$L54,O51:O54) -> 
C52: 27 | D52: =Reference!B154 -> 0 | E52: =Reference!C154 -> 0 | F52: =Reference!D154 -> 0 | G52: =Reference!E154 -> 0 | H52: =Reference!F154 -> 0 | I52: =Reference!G154 -> 0 | J52: 0 | L52: =Test!B154 -> 0 | M52: =Test!C154 -> 0 | N52: =Test!D154 -> 0 | O52: =Test!E154 -> 0 | P52: =Test!F154 -> 0 | Q52: =Test!G154 -> 0 | R52: 0
C53: 32 | D53: =Reference!B155 -> 0 | E53: =Reference!C155 -> 0 | F53: =Reference!D155 -> 0 | G53: =Reference!E155 -> 0 | H53: =Reference!F155 -> 0 | I53: =Reference!G155 -> 0 | J53: 0 | L53: =Test!B155 -> 0 | M53: =Test!C155 -> 0 | N53: =Test!D155 -> 0 | O53: =Test!E155 -> 0 | P53: =Test!F155 -> 0 | Q53: =Test!G155 -> 0 | R53: 0
C54: 37 | D54: =Reference!B156 -> 351.5968 | E54: =Reference!C156 -> 33.0892 | F54: =Reference!D156 -> 39.5272 | G54: =Reference!E156 -> 40.5307 | H54: =Reference!F156 -> 20771.07 | I54: =Reference!G156 -> 10.38 | J54: 5.769741667 | L54: =Test!B156 -> 0 | M54: =Test!C156 -> 0 | N54: =Test!D156 -> 0 | O54: =Test!E156 -> 0 | P54: =Test!F156 -> 0 | Q54: =Test!G156 -> 0 | R54: 0 | S54: 0 | T54: 0
B55: PartyScene | C55: 22 | D55: =Reference!B157 -> 0 | E55: =Reference!C157 -> 0 | F55: =Reference!D157 -> 0 | G55: =Reference!E157 -> 0 | H55: =Reference!F157 -> 0 | I55: =Reference!G157 -> 0 | J55: 0 | L55: =Test!B157 -> 0 | M55: =Test!C157 -> 0 | N55: =Test!D157 -> 0 | O55: =Test!E157 -> 0 | P55: =Test!F157 -> 0 | Q55: =Test!G157 -> 0 | R55: 0 | V55: =bdrate($D55:$D58,E55:E58,$L55:$L58,M55:M58) ->  | W55: =bdrate($D55:$D58,F55:F58,$L55:$L58,N55:N58) ->  | X55: =bdrate($D55:$D58,G55:G58,$L55:$L58,O55:O58) ->  | Y55: =bdrateOld($D55:$D58,E55:E58,$L55:$L58,M55:M58) ->  | Z55: =bdrateOld($D55:$D58,F55:F58,$L55:$L58,N55:N58) ->  | AA55: =bdrateOld($D55:$D58,G55:G58,$L55:$L58,O55:O58) -> 
C56: 27 | D56: =Reference!B158 -> 0 | E56: =Reference!C158 -> 0 | F56: =Reference!D158 -> 0 | G56: =Reference!E158 -> 0 | H56: =Reference!F158 -> 0 | I56: =Reference!G158 -> 0 | J56: 0 | L56: =Test!B158 -> 0 | M56: =Test!C158 -> 0 | N56: =Test!D158 -> 0 | O56: =Test!E158 -> 0 | P56: =Test!F158 -> 0 | Q56: =Test!G158 -> 0 | R56: 0
C57: 32 | D57: =Reference!B159 -> 1209.5112 | E57: =Reference!C159 -> 32.5662 | F57: =Reference!D159 -> 37.9843 | G57: =Reference!E159 -> 38.9655 | H57: =Reference!F159 -> 33731.2 | I57: =Reference!G159 -> 12.43 | J57: 9.369777778 | L57: =Test!B159 -> 0 | M57: =Test!C159 -> 0 | N57: =Test!D159 -> 0 | O57: =Test!E159 -> 0 | P57: =Test!F159 -> 0 | Q57: =Test!G159 -> 0 | R57: 0 | S57: 0 | T57: 0
C58: 37 | D58: =Reference!B160 -> 577.0456 | E58: =Reference!C160 -> 29.7594 | F58: =Reference!D160 -> 36.6069 | G58: =Reference!E160 -> 37.4392 | H58: =Reference!F160 -> 21620.98 | I58: =Reference!G160 -> 11.82 | J58: 6.005827778 | L58: =Test!B160 -> 0 | M58: =Test!C160 -> 0 | N58: =Test!D160 -> 0 | O58: =Test!E160 -> 0 | P58: =Test!F160 -> 0 | Q58: =Test!G160 -> 0 | R58: 0 | S58: 0 | T58: 0
B59: RaceHorses | C59: 22 | D59: =Reference!B161 -> 0 | E59: =Reference!C161 -> 0 | F59: =Reference!D161 -> 0 | G59: =Reference!E161 -> 0 | H59: =Reference!F161 -> 0 | I59: =Reference!G161 -> 0 | J59: 0 | L59: =Test!B161 -> 0 | M59: =Test!C161 -> 0 | N59: =Test!D161 -> 0 | O59: =Test!E161 -> 0 | P59: =Test!F161 -> 0 | Q59: =Test!G161 -> 0 | R59: 0 | V59: =bdrate($D59:$D62,E59:E62,$L59:$L62,M59:M62) ->  | W59: =bdrate($D59:$D62,F59:F62,$L59:$L62,N59:N62) ->  | X59: =bdrate($D59:$D62,G59:G62,$L59:$L62,O59:O62) ->  | Y59: =bdrateOld($D59:$D62,E59:E62,$L59:$L62,M59:M62) ->  | Z59: =bdrateOld($D59:$D62,F59:F62,$L59:$L62,N59:N62) ->  | AA59: =bdrateOld($D59:$D62,G59:G62,$L59:$L62,O59:O62) -> 
C60: 27 | D60: =Reference!B162 -> 0 | E60: =Reference!C162 -> 0 | F60: =Reference!D162 -> 0 | G60: =Reference!E162 -> 0 | H60: =Reference!F162 -> 0 | I60: =Reference!G162 -> 0 | J60: =H60/3600 -> 0 | L60: =Test!B162 -> 0 | M60: =Test!C162 -> 0 | N60: =Test!D162 -> 0 | O60: =Test!E162 -> 0 | P60: =Test!F162 -> 0 | Q60: =Test!G162 -> 0 | R60: =P60/3600 -> 0
C61: 32 | D61: =Reference!B163 -> 811.9912 | E61: =Reference!C163 -> 33.735 | F61: =Reference!D163 -> 37.8952 | G61: =Reference!E163 -> 39.7311 | H61: =Reference!F163 -> 30662.27 | I61: =Reference!G163 -> 8.82 | J61: 8.517297222 | L61: =Test!B163 -> 0 | M61: =Test!C163 -> 0 | N61: =Test!D163 -> 0 | O61: =Test!E163 -> 0 | P61: =Test!F163 -> 0 | Q61: =Test!G163 -> 0 | R61: 0 | S61: 0 | T61: 0
C62: 37 | D62: =Reference!B164 -> 388.8688 | E62: =Reference!C164 -> 31.0961 | F62: =Reference!D164 -> 36.5047 | G62: =Reference!E164 -> 38.453 | H62: =Reference!F164 -> 19294.08 | I62: =Reference!G164 -> 7.19 | J62: 5.359466667 | L62: =Test!B164 -> 0 | M62: =Test!C164 -> 0 | N62: =Test!D164 -> 0 | O62: =Test!E164 -> 0 | P62: =Test!F164 -> 0 | Q62: =Test!G164 -> 0 | R62: 0 | S62: 0 | T62: 0
A63: Class D | B63: BasketballPass | C63: =C59 -> 22 | D63: =Reference!B165 -> 1264.6688 | E63: =Reference!C165 -> 41.4951 | F63: =Reference!D165 -> 44.4429 | G63: =Reference!E165 -> 43.5757 | H63: =Reference!F165 -> 22420.83 | I63: =Reference!G165 -> 5.36 | J63: 6.228008333 | L63: =Test!B165 -> 0 | M63: =Test!C165 -> 0 | N63: =Test!D165 -> 0 | O63: =Test!E165 -> 0 | P63: =Test!F165 -> 0 | Q63: =Test!G165 -> 0 | R63: 0 | S63: =P63/H63 -> 0 | T63: 0 | V63: =bdrate($D63:$D66,E63:E66,$L63:$L66,M63:M66) ->  | W63: =bdrate($D63:$D66,F63:F66,$L63:$L66,N63:N66) ->  | X63: =bdrate($D63:$D66,G63:G66,$L63:$L66,O63:O66) ->  | Y63: =bdrateOld($D63:$D66,E63:E66,$L63:$L66,M63:M66) ->  | Z63: =bdrateOld($D63:$D66,F63:F66,$L63:$L66,N63:N66) ->  | AA63: =bdrateOld($D63:$D66,G63:G66,$L63:$L66,O63:O66) -> 
A64: WQVGA | C64: =C60 -> 27 | D64: =Reference!B166 -> 608.1856 | E64: =Reference!C166 -> 37.5175 | F64: =Reference!D166 -> 42.0643 | G64: =Reference!E166 -> 40.8436 | H64: =Reference!F166 -> 16363.35 | I64: =Reference!G166 -> 4.25 | J64: 4.545375 | L64: =Test!B166 -> 0 | M64: =Test!C166 -> 0 | N64: =Test!D166 -> 0 | O64: =Test!E166 -> 0 | P64: =Test!F166 -> 0 | Q64: =Test!G166 -> 0 | R64: 0 | S64: =P64/H64 -> 0 | T64: 0
C65: =C61 -> 32 | D65: =Reference!B167 -> 305.852 | E65: =Reference!C167 -> 34.2117 | F65: =Reference!D167 -> 40.3157 | G65: =Reference!E167 -> 38.8815 | H65: =Reference!F167 -> 11718.48 | I65: =Reference!G167 -> 3.34 | J65: 3.255133333 | L65: =Test!B167 -> 0 | M65: =Test!C167 -> 0 | N65: =Test!D167 -> 0 | O65: =Test!E167 -> 0 | P65: =Test!F167 -> 0 | Q65: =Test!G167 -> 0 | R65: 0 | S65: =P65/H65 -> 0 | T65: 0
C66: =C62 -> 37 | D66: =Reference!B168 -> 153.6488 | E66: =Reference!C168 -> 31.2782 | F66: =Reference!D168 -> 38.7637 | G66: =Reference!E168 -> 37.053 | H66: =Reference!F168 -> 7471.97 | I66: =Reference!G168 -> 2.64 | J66: 2.075547222 | L66: =Test!B168 -> 0 | M66: =Test!C168 -> 0 | N66: =Test!D168 -> 0 | O66: =Test!E168 -> 0 | P66: =Test!F168 -> 0 | Q66: =Test!G168 -> 0 | R66: 0 | S66: =P66/H66 -> 0 | T66: 0
B67: BQSquare | C67: 22 | D67: =Reference!B169 -> 1307.1984 | E67: =Reference!C169 -> 38.684 | F67: =Reference!D169 -> 43.8392 | G67: =Reference!E169 -> 45.2226 | H67: =Reference!F169 -> 23546.84 | I67: =Reference!G169 -> 5.99 | J67: 6.540788889 | L67: =Test!B169 -> 0 | M67: =Test!C169 -> 0 | N67: =Test!D169 -> 0 | O67: =Test!E169 -> 0 | P67: =Test!F169 -> 0 | Q67: =Test!G169 -> 0 | R67: 0 | S67: 0 | T67: 0 | V67: =bdrate($D67:$D70,E67:E70,$L67:$L70,M67:M70) ->  | W67: =bdrate($D67:$D70,F67:F70,$L67:$L70,N67:N70) ->  | X67: =bdrate($D67:$D70,G67:G70,$L67:$L70,O67:O70) ->  | Y67: =bdrateOld($D67:$D70,E67:E70,$L67:$L70,M67:M70) ->  | Z67: =bdrateOld($D67:$D70,F67:F70,$L67:$L70,N67:N70) ->  | AA67: =bdrateOld($D67:$D70,G67:G70,$L67:$L70,O67:O70) -> 
C68: 27 | D68: =Reference!B170 -> 475.1168 | E68: =Reference!C170 -> 35.4735 | F68: =Reference!D170 -> 41.8568 | G68: =Reference!E170 -> 43.2008 | H68: =Reference!F170 -> 11201.47 | I68: =Reference!G170 -> 4.17 | J68: 3.111519444 | L68: =Test!B170 -> 0 | M68: =Test!C170 -> 0 | N68: =Test!D170 -> 0 | O68: =Test!E170 -> 0 | P68: =Test!F170 -> 0 | Q68: =Test!G170 -> 0 | R68: 0 | S68: 0 | T68: 0
C69: 32 | D69: =Reference!B171 -> 215.1992 | E69: =Reference!C171 -> 32.7417 | F69: =Reference!D171 -> 40.228 | G69: =Reference!E171 -> 41.532 | H69: =Reference!F171 -> 6902.16 | I69: =Reference!G171 -> 3.25 | J69: 1.917266667 | L69: =Test!B171 -> 0 | M69: =Test!C171 -> 0 | N69: =Test!D171 -> 0 | O69: =Test!E171 -> 0 | P69: =Test!F171 -> 0 | Q69: =Test!G171 -> 0 | R69: 0 | S69: 0 | T69: 0
C70: 37 | D70: =Reference!B172 -> 113.2688 | E70: =Reference!C172 -> 30.2584 | F70: =Reference!D172 -> 39.0645 | G70: =Reference!E172 -> 40.2159 | H70: =Reference!F172 -> 4575.26 | I70: =Reference!G172 -> 2.94 | J70: 1.270905556 | L70: =Test!B172 -> 0 | M70: =Test!C172 -> 0 | N70: =Test!D172 -> 0 | O70: =Test!E172 -> 0 | P70: =Test!F172 -> 0 | Q70: =Test!G172 -> 0 | R70: 0 | S70: 0 | T70: 0
B71: BlowingBubbles | C71: 22 | D71: =Reference!B173 -> 1361.272 | E71: =Reference!C173 -> 38.7148 | F71: =Reference!D173 -> 41.6286 | G71: =Reference!E173 -> 42.8423 | H71: =Reference!F173 -> 20951.83 | I71: =Reference!G173 -> 5.4 | J71: 5.819952778 | L71: =Test!B173 -> 0 | M71: =Test!C173 -> 0 | N71: =Test!D173 -> 0 | O71: =Test!E173 -> 0 | P71: =Test!F173 -> 0 | Q71: =Test!G173 -> 0 | R71: 0 | S71: =P71/H71 -> 0 | T71: 0 | V71: =bdrate($D71:$D74,E71:E74,$L71:$L74,M71:M74) ->  | W71: =bdrate($D71:$D74,F71:F74,$L71:$L74,N71:N74) ->  | X71: =bdrate($D71:$D74,G71:G74,$L71:$L74,O71:O74) ->  | Y71: =bdrateOld($D71:$D74,E71:E74,$L71:$L74,M71:M74) ->  | Z71: =bdrateOld($D71:$D74,F71:F74,$L71:$L74,N71:N74) ->  | AA71: =bdrateOld($D71:$D74,G71:G74,$L71:$L74,O71:O74) -> 
C72: 27 | D72: =Reference!B174 -> 649.232 | E72: =Reference!C174 -> 35.7017 | F72: =Reference!D174 -> 39.3683 | G72: =Reference!E174 -> 40.3314 | H72: =Reference!F174 -> 14028.98 | I72: =Reference!G174 -> 4.14 | J72: 3.896938889 | L72: =Test!B174 -> 0 | M72: =Test!C174 -> 0 | N72: =Test!D174 -> 0 | O72: =Test!E174 -> 0 | P72: =Test!F174 -> 0 | Q72: =Test!G174 -> 0 | R72: 0 | S72: 0 | T72: 0
C73: 32 | D73: =Reference!B175 -> 313.34 | E73: =Reference!C175 -> 32.7103 | F73: =Reference!D175 -> 37.5724 | G73: =Reference!E175 -> 38.3588 | H73: =Reference!F175 -> 9147.49 | I73: =Reference!G175 -> 3.27 | J73: 2.540969444 | L73: =Test!B175 -> 0 | M73: =Test!C175 -> 0 | N73: =Test!D175 -> 0 | O73: =Test!E175 -> 0 | P73: =Test!F175 -> 0 | Q73: =Test!G175 -> 0 | R73: 0 | S73: 0 | T73: 0
C74: 37 | D74: =Reference!B176 -> 148.552 | E74: =Reference!C176 -> 29.835 | F74: =Reference!D176 -> 36.0641 | G74: =Reference!E176 -> 36.7231 | H74: =Reference!F176 -> 5791.13 | I74: =Reference!G176 -> 2.47 | J74: 1.608647222 | L74: =Test!B176 -> 0 | M74: =Test!C176 -> 0 | N74: =Test!D176 -> 0 | O74: =Test!E176 -> 0 | P74: =Test!F176 -> 0 | Q74: =Test!G176 -> 0 | R74: 0 | S74: 0 | T74: 0
B75: RaceHorses | C75: 22 | D75: =Reference!B177 -> 1017.9808 | E75: =Reference!C177 -> 40.1175 | F75: =Reference!D177 -> 41.734 | G75: =Reference!E177 -> 42.8678 | H75: =Reference!F177 -> 16017.18 | I75: =Reference!G177 -> 4.06 | J75: 4.449216667 | L75: =Test!B177 -> 0 | M75: =Test!C177 -> 0 | N75: =Test!D177 -> 0 | O75: =Test!E177 -> 0 | P75: =Test!F177 -> 0 | Q75: =Test!G177 -> 0 | R75: 0 | S75: 0 | T75: 0 | V75: =bdrate($D75:$D78,E75:E78,$L75:$L78,M75:M78) ->  | W75: =bdrate($D75:$D78,F75:F78,$L75:$L78,N75:N78) ->  | X75: =bdrate($D75:$D78,G75:G78,$L75:$L78,O75:O78) ->  | Y75: =bdrateOld($D75:$D78,E75:E78,$L75:$L78,M75:M78) ->  | Z75: =bdrateOld($D75:$D78,F75:F78,$L75:$L78,N75:N78) ->  | AA75: =bdrateOld($D75:$D78,G75:G78,$L75:$L78,O75:O78) -> 
C76: 27 | D76: =Reference!B178 -> 493.8776 | E76: =Reference!C178 -> 36.3447 | F76: =Reference!D178 -> 39.2956 | G76: =Reference!E178 -> 40.553 | H76: =Reference!F178 -> 11195.96 | I76: =Reference!G178 -> 2.97 | J76: 3.109988889 | L76: =Test!B178 -> 0 | M76: =Test!C178 -> 0 | N76: =Test!D178 -> 0 | O76: =Test!E178 -> 0 | P76: =Test!F178 -> 0 | Q76: =Test!G178 -> 0 | R76: 0 | S76: 0 | T76: 0
C77: 32 | D77: =Reference!B179 -> 245.6136 | E77: =Reference!C179 -> 33.0671 | F77: =Reference!D179 -> 37.5118 | G77: =Reference!E179 -> 38.8489 | H77: =Reference!F179 -> 7857.87 | I77: =Reference!G179 -> 2.26 | J77: 2.182741667 | L77: =Test!B179 -> 0 | M77: =Test!C179 -> 0 | N77: =Test!D179 -> 0 | O77: =Test!E179 -> 0 | P77: =Test!F179 -> 0 | Q77: =Test!G179 -> 0 | R77: 0 | S77: 0 | T77: 0
C78: 37 | D78: =Reference!B180 -> 118.7576 | E78: =Reference!C180 -> 30.1604 | F78: =Reference!D180 -> 36.0876 | G78: =Reference!E180 -> 37.3906 | H78: =Reference!F180 -> 5019.4 | I78: =Reference!G180 -> 1.77 | J78: 1.394277778 | L78: =Test!B180 -> 0 | M78: =Test!C180 -> 0 | N78: =Test!D180 -> 0 | O78: =Test!E180 -> 0 | P78: =Test!F180 -> 0 | Q78: =Test!G180 -> 0 | R78: 0 | S78: 0 | T78: 0
A79: ClassE | B79: FourPeople | C79: 22
A80: 720p | C80: 27
C81: 32
C82: 37
B83: Johnny | C83: 22
C84: 27
C85: 32
C86: 37
B87: KristenAndSara | C87: 22
C88: 27
C89: 32
C90: 37
A91: ClassF | B91: BasketballDrillText | C91: 22 | D91: =Reference!B193 -> 0 | E91: =Reference!C193 -> 0 | F91: =Reference!D193 -> 0 | G91: =Reference!E193 -> 0 | H91: =Reference!F193 -> 0 | I91: =Reference!G193 -> 0 | J91: 0 | L91: =Test!B193 -> 0 | M91: =Test!C193 -> 0 | N91: =Test!D193 -> 0 | O91: =Test!E193 -> 0 | P91: =Test!F193 -> 0 | Q91: =Test!G193 -> 0 | R91: 0 | S91: =P91/H91 ->  | V91: =bdrate($D91:$D94,E91:E94,$L91:$L94,M91:M94) ->  | W91: =bdrate($D91:$D94,F91:F94,$L91:$L94,N91:N94) ->  | X91: =bdrate($D91:$D94,G91:G94,$L91:$L94,O91:O94) ->  | Y91: =bdrateOld($D91:$D94,E91:E94,$L91:$L94,M91:M94) ->  | Z91: =bdrateOld($D91:$D94,F91:F94,$L91:$L94,N91:N94) ->  | AA91: =bdrateOld($D91:$D94,G91:G94,$L91:$L94,O91:O94) -> 
C92: 27 | D92: =Reference!B194 -> 0 | E92: =Reference!C194 -> 0 | F92: =Reference!D194 -> 0 | G92: =Reference!E194 -> 0 | H92: =Reference!F194 -> 0 | I92: =Reference!G194 -> 0 | J92: 0 | L92: =Test!B194 -> 0 | M92: =Test!C194 -> 0 | N92: =Test!D194 -> 0 | O92: =Test!E194 -> 0 | P92: =Test!F194 -> 0 | Q92: =Test!G194 -> 0 | R92: 0
C93: 32 | D93: =Reference!B195 -> 720.6112 | E93: =Reference!C195 -> 35.6443 | F93: =Reference!D195 -> 39.4908 | G93: =Reference!E195 -> 39.8593 | H93: =Reference!F195 -> 39356.42 | I93: =Reference!G195 -> 11.19 | J93: 10.93233889 | L93: =Test!B195 -> 0 | M93: =Test!C195 -> 0 | N93: =Test!D195 -> 0 | O93: =Test!E195 -> 0 | P93: =Test!F195 -> 0 | Q93: =Test!G195 -> 0 | R93: 0 | S93: 0 | T93: 0
C94: 37 | D94: =Reference!B196 -> 375.3128 | E94: =Reference!C196 -> 32.9303 | F94: =Reference!D196 -> 37.8618 | G94: =Reference!E196 -> 38.0445 | H94: =Reference!F196 -> 23466.6 | I94: =Reference!G196 -> 9.14 | J94: 6.5185 | L94: =Test!B196 -> 0 | M94: =Test!C196 -> 0 | N94: =Test!D196 -> 0 | O94: =Test!E196 -> 0 | P94: =Test!F196 -> 0 | Q94: =Test!G196 -> 0 | R94: 0 | S94: 0 | T94: 0
B95: ArenaOfValor | C95: 22 | D95: =Reference!B197 -> 0 | E95: =Reference!C197 -> 0 | F95: =Reference!D197 -> 0 | G95: =Reference!E197 -> 0 | H95: =Reference!F197 -> 0 | I95: =Reference!G197 -> 0 | J95: 0 | L95: =Test!B197 -> 0 | M95: =Test!C197 -> 0 | N95: =Test!D197 -> 0 | O95: =Test!E197 -> 0 | P95: =Test!F197 -> 0 | Q95: =Test!G197 -> 0 | R95: 0 | V95: =bdrate($D95:$D98,E95:E98,$L95:$L98,M95:M98) ->  | W95: =bdrate($D95:$D98,F95:F98,$L95:$L98,N95:N98) ->  | X95: =bdrate($D95:$D98,G95:G98,$L95:$L98,O95:O98) ->  | Y95: =bdrateOld($D95:$D98,E95:E98,$L95:$L98,M95:M98) ->  | Z95: =bdrateOld($D95:$D98,F95:F98,$L95:$L98,N95:N98) ->  | AA95: =bdrateOld($D95:$D98,G95:G98,$L95:$L98,O95:O98) -> 
C96: 27 | D96: =Reference!B198 -> 0 | E96: =Reference!C198 -> 0 | F96: =Reference!D198 -> 0 | G96: =Reference!E198 -> 0 | H96: =Reference!F198 -> 0 | I96: =Reference!G198 -> 0 | J96: 0 | L96: =Test!B198 -> 0 | M96: =Test!C198 -> 0 | N96: =Test!D198 -> 0 | O96: =Test!E198 -> 0 | P96: =Test!F198 -> 0 | Q96: =Test!G198 -> 0 | R96: 0
C97: 32 | D97: =Reference!B199 -> 0 | E97: =Reference!C199 -> 0 | F97: =Reference!D199 -> 0 | G97: =Reference!E199 -> 0 | H97: =Reference!F199 -> 0 | I97: =Reference!G199 -> 0 | J97: 0 | L97: =Test!B199 -> 0 | M97: =Test!C199 -> 0 | N97: =Test!D199 -> 0 | O97: =Test!E199 -> 0 | P97: =Test!F199 -> 0 | Q97: =Test!G199 -> 0 | R97: 0
C98: 37 | D98: =Reference!B200 -> 0 | E98: =Reference!C200 -> 0 | F98: =Reference!D200 -> 0 | G98: =Reference!E200 -> 0 | H98: =Reference!F200 -> 0 | I98: =Reference!G200 -> 0 | J98: 0 | L98: =Test!B200 -> 0 | M98: =Test!C200 -> 0 | N98: =Test!D200 -> 0 | O98: =Test!E200 -> 0 | P98: =Test!F200 -> 0 | Q98: =Test!G200 -> 0 | R98: 0
B99: SlideEditing | C99: 22 | D99: =Reference!B201 -> 761.2288 | E99: =Reference!C201 -> 51.0778 | F99: =Reference!D201 -> 47.7646 | G99: =Reference!E201 -> 48.3493 | H99: =Reference!F201 -> 11444.92 | I99: =Reference!G201 -> 8.52 | J99: 3.179144444 | L99: =Test!B201 -> 0 | M99: =Test!C201 -> 0 | N99: =Test!D201 -> 0 | O99: =Test!E201 -> 0 | P99: =Test!F201 -> 0 | Q99: =Test!G201 -> 0 | R99: 0 | S99: 0 | T99: 0 | V99: =bdrate($D99:$D102,E99:E102,$L99:$L102,M99:M102) ->  | W99: =bdrate($D99:$D102,F99:F102,$L99:$L102,N99:N102) ->  | X99: =bdrate($D99:$D102,G99:G102,$L99:$L102,O99:O102) ->  | Y99: =bdrateOld($D99:$D102,E99:E102,$L99:$L102,M99:M102) ->  | Z99: =bdrateOld($D99:$D102,F99:F102,$L99:$L102,N99:N102) ->  | AA99: =bdrateOld($D99:$D102,G99:G102,$L99:$L102,O99:O102) -> 
C100: 27 | D100: =Reference!B202 -> 557.0688 | E100: =Reference!C202 -> 47.1057 | F100: =Reference!D202 -> 43.7782 | G100: =Reference!E202 -> 44.7803 | H100: =Reference!F202 -> 9867.24 | I100: =Reference!G202 -> 7.95 | J100: 2.7409 | L100: =Test!B202 -> 0 | M100: =Test!C202 -> 0 | N100: =Test!D202 -> 0 | O100: =Test!E202 -> 0 | P100: =Test!F202 -> 0 | Q100: =Test!G202 -> 0 | R100: 0 | S100: 0 | T100: 0
C101: 32 | D101: =Reference!B203 -> 422.6768 | E101: =Reference!C203 -> 43.1912 | F101: =Reference!D203 -> 40.8149 | G101: =Reference!E203 -> 42.0418 | H101: =Reference!F203 -> 8712.07 | I101: =Reference!G203 -> 7.56 | J101: 2.420019444 | L101: =Test!B203 -> 0 | M101: =Test!C203 -> 0 | N101: =Test!D203 -> 0 | O101: =Test!E203 -> 0 | P101: =Test!F203 -> 0 | Q101: =Test!G203 -> 0 | R101: 0 | S101: 0 | T101: 0
C102: 37 | D102: =Reference!B204 -> 323.328 | E102: =Reference!C204 -> 38.5466 | F102: =Reference!D204 -> 38.9652 | G102: =Reference!E204 -> 40.2311 | H102: =Reference!F204 -> 7863.16 | I102: =Reference!G204 -> 7.35 | J102: 2.184211111 | L102: =Test!B204 -> 0 | M102: =Test!C204 -> 0 | N102: =Test!D204 -> 0 | O102: =Test!E204 -> 0 | P102: =Test!F204 -> 0 | Q102: =Test!G204 -> 0 | R102: 0 | S102: 0 | T102: 0
B103: SlideShow | C103: 22 | D103: =Reference!B205 -> 587.4016 | E103: =Reference!C205 -> 52.4152 | F103: =Reference!D205 -> 55.3064 | G103: =Reference!E205 -> 56.4039 | H103: =Reference!F205 -> 31604.17 | I103: =Reference!G205 -> 17.48 | J103: 8.778936111 | L103: =Test!B205 -> 0 | M103: =Test!C205 -> 0 | N103: =Test!D205 -> 0 | O103: =Test!E205 -> 0 | P103: =Test!F205 -> 0 | Q103: =Test!G205 -> 0 | R103: 0 | S103: 0 | T103: 0 | V103: =bdrate($D103:$D106,E103:E106,$L103:$L106,M103:M106) ->  | W103: =bdrate($D103:$D106,F103:F106,$L103:$L106,N103:N106) ->  | X103: =bdrate($D103:$D106,G103:G106,$L103:$L106,O103:O106) ->  | Y103: =bdrateOld($D103:$D106,E103:E106,$L103:$L106,M103:M106) ->  | Z103: =bdrateOld($D103:$D106,F103:F106,$L103:$L106,N103:N106) ->  | AA103: =bdrateOld($D103:$D106,G103:G106,$L103:$L106,O103:O106) -> 
C104: 27 | D104: =Reference!B206 -> 340.231 | E104: =Reference!C206 -> 48.6116 | F104: =Reference!D206 -> 52.3887 | G104: =Reference!E206 -> 53.6632 | H104: =Reference!F206 -> 23441.07 | I104: =Reference!G206 -> 16.27 | J104: 6.511408333 | L104: =Test!B206 -> 0 | M104: =Test!C206 -> 0 | N104: =Test!D206 -> 0 | O104: =Test!E206 -> 0 | P104: =Test!F206 -> 0 | Q104: =Test!G206 -> 0 | R104: 0 | S104: 0 | T104: 0
C105: 32 | D105: =Reference!B207 -> 211.6218 | E105: =Reference!C207 -> 45.1444 | F105: =Reference!D207 -> 49.9824 | G105: =Reference!E207 -> 51.4645 | H105: =Reference!F207 -> 17119.76 | I105: =Reference!G207 -> 15.5 | J105: 4.755488889 | L105: =Test!B207 -> 0 | M105: =Test!C207 -> 0 | N105: =Test!D207 -> 0 | O105: =Test!E207 -> 0 | P105: =Test!F207 -> 0 | Q105: =Test!G207 -> 0 | R105: 0 | S105: 0 | T105: 0
C106: 37 | D106: =Reference!B208 -> 137.097 | E106: =Reference!C208 -> 41.7816 | F106: =Reference!D208 -> 47.6999 | G106: =Reference!E208 -> 49.5949 | H106: =Reference!F208 -> 12884.76 | I106: =Reference!G208 -> 14.93 | J106: 3.5791 | L106: =Test!B208 -> 0 | M106: =Test!C208 -> 0 | N106: =Test!D208 -> 0 | O106: =Test!E208 -> 0 | P106: =Test!F208 -> 0 | Q106: =Test!G208 -> 0 | R106: 0 | S106: 0 | T106: 0
B107: Class A1 | I107: =GEOMEAN(I3:I14) ->  | J107: =GEOMEAN(J3:J14) ->  | Q107: =GEOMEAN(Q3:Q14) ->  | R107: =GEOMEAN(R3:R14) ->  | S107: =GEOMEAN(S3:S14) ->  | T107: =GEOMEAN(T3:T14) ->  | V107: =AVERAGE(V3:V14) -> 
B108: Class A2 | I108: =GEOMEAN(I15:I26) ->  | J108: =GEOMEAN(J15:J26) ->  | Q108: =GEOMEAN(Q15:Q26) ->  | R108: =GEOMEAN(R15:R26) ->  | S108: =GEOMEAN(S15:S26) ->  | T108: =GEOMEAN(T15:T26) ->  | V108: =AVERAGE(V15:V26) -> 
B109: Class B | I109: =GEOMEAN(I27:I46) ->  | J109: =GEOMEAN(J27:J46) ->  | Q109: =GEOMEAN(Q27:Q46) ->  | R109: =GEOMEAN(R27:R46) ->  | S109: =GEOMEAN(S27:S46) ->  | V109: =AVERAGE(V27:V46) ->  | W109: =AVERAGE(W27:W46) -> 
B110: Class C | I110: =GEOMEAN(I47:I62) ->  | J110: =GEOMEAN(J47:J62) ->  | Q110: =GEOMEAN(Q47:Q62) ->  | R110: =GEOMEAN(R47:R62) ->  | S110: =GEOMEAN(S47:S62) ->  | V110: =AVERAGE(V47:V62) ->  | W110: =AVERAGE(W47:W62) -> 
B111: Class D | I111: =GEOMEAN(I63:I78) -> 3.457751611 | J111: =GEOMEAN(J63:J78) -> 2.971886756 | Q111: =GEOMEAN(Q63:Q78) ->  | R111: =GEOMEAN(R63:R78) ->  | S111: =GEOMEAN(S63:S78) ->  | V111: =AVERAGE(V63:V78) ->  | W111: =AVERAGE(W63:W78) -> 
B112: Class E
B113: Class F | I113: =GEOMEAN(I91:I106) ->  | J113: =GEOMEAN(J91:J106) ->  | Q113: =GEOMEAN(Q91:Q106) ->  | R113: =GEOMEAN(R91:R106) ->  | S113: =GEOMEAN(S91:S106) ->  | V113: =AVERAGE(V91:V106) ->  | W113: =AVERAGE(W91:W106) -> 
B114: All | I114: =GEOMEAN(I3:I62,I79:I90) ->  | J114: =GEOMEAN(J3:J62,J79:J90) ->  | Q114: =GEOMEAN(Q3:Q62,Q79:Q90) ->  | R114: =GEOMEAN(R3:R62,R79:R90) ->  | S114: =GEOMEAN(S3:S62,S79:S90) ->  | V114: =AVERAGE(V3:V62,V79:V90) ->  | W114: =AVERAGE(W3:W62,W79:W90) -> 
B115: Time geomean | I115: =GEOMEAN(I3:I106) ->  | J115: =GEOMEAN(J3:J106) ->  | Q115: =GEOMEAN(Q3:Q106) ->  | R115: =GEOMEAN(R3:R106) -> 
B116: Time ratio | Q116: =Q115/I115 ->  | R116: =R115/J115 -> 
B117: Time sum (hours)

Sheet LDB-10
D1: Reference | L1: Tested | V1: BD-rate (piecewise cubic) | Y1: BD-rate (cubic)
C2: QPISlice | D2: kbps | E2: Y psnr | F2: U psnr | G2: V psnr | H2: Enc T [s] | I2: Dec T [s] | J2: Enc T [h] | L2: kbps | M2: Y psnr | N2: U psnr | O2: V psnr | P2: Enc T [s] | Q2: Dec T [s] | R2: Enc T [h] | S2: Enc | T2: Dec | V2: Y | W2: U | X2: V | Y2: Y | Z2: U | AA2: V
A3: Class A1 | B3: Tango2 | C3: 22
A4: 4K | C4: 27
C5: 32
C6: 37
B7: FoodMarket4 | C7: 22
C8: 27
C9: 32
C10: 37
B11: Campfire | C11: 22
C12: 27
C13: 32
C14: 37
A15: Class A2 | B15: CatRobot1 | C15: 22
A16: 4K | C16: 27
C17: 32
C18: 37
B19: DaylightRoad2 | C19: 22
C20: 27
C21: 32
C22: 37
B23: ParkRunning3 | C23: 22
C24: 27
C25: 32
C26: 37
A27: Class B | B27: MarketPlace | C27: 22 | D27: =Reference!B233 -> 0 | E27: =Reference!C233 -> 0 | F27: =Reference!D233 -> 0 | G27: =Reference!E233 -> 0 | H27: =Reference!F233 -> 0 | I27: =Reference!G233 -> 0 | J27: =H27/3600 -> 0 | L27: =Test!B233 -> 0 | M27: =Test!C233 -> 0 | N27: =Test!D233 -> 0 | O27: =Test!E233 -> 0 | P27: =Test!F233 -> 0 | Q27: =Test!G233 -> 0 | R27: =P27/3600 -> 0 | S27: =P27/H27 ->  | V27: =bdrate($D27:$D30,E27:E30,$L27:$L30,M27:M30) ->  | W27: =bdrate($D27:$D30,F27:F30,$L27:$L30,N27:N30) ->  | X27: =bdrate($D27:$D30,G27:G30,$L27:$L30,O27:O30) ->  | Y27: =bdrateOld($D27:$D30,E27:E30,$L27:$L30,M27:M30) ->  | Z27: =bdrateOld($D27:$D30,F27:F30,$L27:$L30,N27:N30) ->  | AA27: =bdrateOld($D27:$D30,G27:G30,$L27:$L30,O27:O30) -> 
A28: 1080p | C28: 27 | D28: =Reference!B234 -> 0 | E28: =Reference!C234 -> 0 | F28: =Reference!D234 -> 0 | G28: =Reference!E234 -> 0 | H28: =Reference!F234 -> 0 | I28: =Reference!G234 -> 0 | J28: =H28/3600 -> 0 | L28: =Test!B234 -> 0 | M28: =Test!C234 -> 0 | N28: =Test!D234 -> 0 | O28: =Test!E234 -> 0 | P28: =Test!F234 -> 0 | Q28: =Test!G234 -> 0 | R28: 0
C29: 32 | D29: =Reference!B235 -> 0 | E29: =Reference!C235 -> 0 | F29: =Reference!D235 -> 0 | G29: =Reference!E235 -> 0 | H29: =Reference!F235 -> 0 | I29: =Reference!G235 -> 0 | J29: 0 | L29: =Test!B235 -> 0 | M29: =Test!C235 -> 0 | N29: =Test!D235 -> 0 | O29: =Test!E235 -> 0 | P29: =Test!F235 -> 0 | Q29: =Test!G235 -> 0 | R29: 0
C30: 37 | D30: =Reference!B236 -> 0 | E30: =Reference!C236 -> 0 | F30: =Reference!D236 -> 0 | G30: =Reference!E236 -> 0 | H30: =Reference!F236 -> 0 | I30: =Reference!G236 -> 0 | J30: 0 | L30: =Test!B236 -> 0 | M30: =Test!C236 -> 0 | N30: =Test!D236 -> 0 | O30: =Test!E236 -> 0 | P30: =Test!F236 -> 0 | Q30: =Test!G236 -> 0 | R30: 0
B31: RitualDance | C31: 22 | D31: =Reference!B237 -> 0 | E31: =Reference!C237 -> 0 | F31: =Reference!D237 -> 0 | G31: =Reference!E237 -> 0 | H31: =Reference!F237 -> 0 | I31: =Reference!G237 -> 0 | J31: 0 | L31: =Test!B237 -> 0 | M31: =Test!C237 -> 0 | N31: =Test!D237 -> 0 | O31: =Test!E237 -> 0 | P31: =Test!F237 -> 0 | Q31: =Test!G237 -> 0 | R31: 0 | V31: =bdrate($D31:$D34,E31:E34,$L31:$L34,M31:M34) ->  | W31: =bdrate($D31:$D34,F31:F34,$L31:$L34,N31:N34) ->  | X31: =bdrate($D31:$D34,G31:G34,$L31:$L34,O31:O34) ->  | Y31: =bdrateOld($D31:$D34,E31:E34,$L31:$L34,M31:M34) ->  | Z31: =bdrateOld($D31:$D34,F31:F34,$L31:$L34,N31:N34) ->  | AA31: =bdrateOld($D31:$D34,G31:G34,$L31:$L34,O31:O34) -> 
C32: 27 | D32: =Reference!B238 -> 0 | E32: =Reference!C238 -> 0 | F32: =Reference!D238 -> 0 | G32: =Reference!E238 -> 0 | H32: =Reference!F238 -> 0 | I32: =Reference!G238 -> 0 | J32: 0 | L32: =Test!B238 -> 0 | M32: =Test!C238 -> 0 | N32: =Test!D238 -> 0 | O32: =Test!E238 -> 0 | P32: =Test!F238 -> 0 | Q32: =Test!G238 -> 0 | R32: 0
C33: 32 | D33: =Reference!B239 -> 0 | E33: =Reference!C239 -> 0 | F33: =Reference!D239 -> 0 | G33: =Reference!E239 -> 0 | H33: =Reference!F239 -> 0 | I33: =Reference!G239 -> 0 | J33: 0 | L33: =Test!B239 -> 0 | M33: =Test!C239 -> 0 | N33: =Test!D239 -> 0 | O33: =Test!E239 -> 0 | P33: =Test!F239 -> 0 | Q33: =Test!G239 -> 0 | R33: 0
C34: 37 | D34: =Reference!B240 -> 0 | E34: =Reference!C240 -> 0 | F34: =Reference!D240 -> 0 | G34: =Reference!E240 -> 0 | H34: =Reference!F240 -> 0 | I34: =Reference!G240 -> 0 | J34: 0 | L34: =Test!B240 -> 0 | M34: =Test!C240 -> 0 | N34: =Test!D240 -> 0 | O34: =Test!E240 -> 0 | P34: =Test!F240 -> 0 | Q34: =Test!G240 -> 0 | R34: 0
B35: Cactus | C35: 22 | D35: =Reference!B241 -> 0 | E35: =Reference!C241 -> 0 | F35: =Reference!D241 -> 0 | G35: =Reference!E241 -> 0 | H35: =Reference!F241 -> 0 | I35: =Reference!G241 -> 0 | J35: 0 | L35: =Test!B241 -> 0 | M35: =Test!C241 -> 0 | N35: =Test!D241 -> 0 | O35: =Test!E241 -> 0 | P35: =Test!F241 -> 0 | Q35: =Test!G241 -> 0 | R35: 0 | V35: =bdrate($D35:$D38,E35:E38,$L35:$L38,M35:M38) ->  | W35: =bdrate($D35:$D38,F35:F38,$L35:$L38,N35:N38) ->  | X35: =bdrate($D35:$D38,G35:G38,$L35:$L38,O35:O38) ->  | Y35: =bdrateOld($D35:$D38,E35:E38,$L35:$L38,M35:M38) ->  | Z35: =bdrateOld($D35:$D38,F35:F38,$L35:$L38,N35:N38) ->  | AA35: =bdrateOld($D35:$D38,G35:G38,$L35:$L38,O35:O38) -> 
C36: 27 | D36: =Reference!B242 -> 0 | E36: =Reference!C242 -> 0 | F36: =Reference!D242 -> 0 | G36: =Reference!E242 -> 0 | H36: =Reference!F242 -> 0 | I36: =Reference!G242 -> 0 | J36: 0 | L36: =Test!B242 -> 0 | M36: =Test!C242 -> 0 | N36: =Test!D242 -> 0 | O36: =Test!E242 -> 0 | P36: =Test!F242 -> 0 | Q36: =Test!G242 -> 0 | R36: 0
C37: 32 | D37: =Reference!B243 -> 0 | E37: =Reference!C243 -> 0 | F37: =Reference!D243 -> 0 | G37: =Reference!E243 -> 0 | H37: =Reference!F243 -> 0 | I37: =Reference!G243 -> 0 | J37: 0 | L37: =Test!B243 -> 0 | M37: =Test!C243 -> 0 | N37: =Test!D243 -> 0 | O37: =Test!E243 -> 0 | P37: =Test!F243 -> 0 | Q37: =Test!G243 -> 0 | R37: 0
C38: 37 | D38: =Reference!B244 -> 0 | E38: =Reference!C244 -> 0 | F38: =Reference!D244 -> 0 | G38: =Reference!E244 -> 0 | H38: =Reference!F244 -> 0 | I38: =Reference!G244 -> 0 | J38: 0 | L38: =Test!B244 -> 0 | M38: =Test!C244 -> 0 | N38: =Test!D244 -> 0 | O38: =Test!E244 -> 0 | P38: =Test!F244 -> 0 | Q38: =Test!G244 -> 0 | R38: 0
B39: BasketballDrive | C39: 22 | D39: =Reference!B245 -> 0 | E39: =Reference!C245 -> 0 | F39: =Reference!D245 -> 0 | G39: =Reference!E245 -> 0 | H39: =Reference!F245 -> 0 | I39: =Reference!G245 -> 0 | J39: 0 | L39: =Test!B245 -> 0 | M39: =Test!C245 -> 0 | N39: =Test!D245 -> 0 | O39: =Test!E245 -> 0 | P39: =Test!F245 -> 0 | Q39: =Test!G245 -> 0 | R39: 0 | V39: =bdrate($D39:$D42,E39:E42,$L39:$L42,M39:M42) ->  | W39: =bdrate($D39:$D42,F39:F42,$L39:$L42,N39:N42) ->  | X39: =bdrate($D39:$D42,G39:G42,$L39:$L42,O39:O42) ->  | Y39: =bdrateOld($D39:$D42,E39:E42,$L39:$L42,M39:M42) ->  | Z39: =bdrateOld($D39:$D42,F39:F42,$L39:$L42,N39:N42) ->  | AA39: =bdrateOld($D39:$D42,G39:G42,$L39:$L42,O39:O42) -> 
C40: 27 | D40: =Reference!B246 -> 0 | E40: =Reference!C246 -> 0 | F40: =Reference!D246 -> 0 | G40: =Reference!E246 -> 0 | H40: =Reference!F246 -> 0 | I40: =Reference!G246 -> 0 | J40: 0 | L40: =Test!B246 -> 0 | M40: =Test!C246 -> 0 | N40: =Test!D246 -> 0 | O40: =Test!E246 -> 0 | P40: =Test!F246 -> 0 | Q40: =Test!G246 -> 0 | R40: 0
C41: 32 | D41: =Reference!B247 -> 0 | E41: =Reference!C247 -> 0 | F41: =Reference!D247 -> 0 | G41: =Reference!E247 -> 0 | H41: =Reference!F247 -> 0 | I41: =Reference!G247 -> 0 | J41: 0 | L41: =Test!B247 -> 0 | M41: =Test!C247 -> 0 | N41: =Test!D247 -> 0 | O41: =Test!E247 -> 0 | P41: =Test!F247 -> 0 | Q41: =Test!G247 -> 0 | R41: 0
C42: 37 | D42: =Reference!B248 -> 0 | E42: =Reference!C248 -> 0 | F42: =Reference!D248 -> 0 | G42: =Reference!E248 -> 0 | H42: =Reference!F248 -> 0 | I42: =Reference!G248 -> 0 | J42: 0 | L42: =Test!B248 -> 0 | M42: =Test!C248 -> 0 | N42: =Test!D248 -> 0 | O42: =Test!E248 -> 0 | P42: =Test!F248 -> 0 | Q42: =Test!G248 -> 0 | R42: 0
B43: BQTerrace | C43: 22 | D43: =Reference!B249 -> 0 | E43: =Reference!C249 -> 0 | F43: =Reference!D249 -> 0 | G43: =Reference!E249 -> 0 | H43: =Reference!F249 -> 0 | I43: =Reference!G249 -> 0 | J43: 0 | L43: =Test!B249 -> 0 | M43: =Test!C249 -> 0 | N43: =Test!D249 -> 0 | O43: =Test!E249 -> 0 | P43: =Test!F249 -> 0 | Q43: =Test!G249 -> 0 | R43: 0 | V43: =bdrate($D43:$D46,E43:E46,$L43:$L46,M43:M46) ->  | W43: =bdrate($D43:$D46,F43:F46,$L43:$L46,N43:N46) ->  | X43: =bdrate($D43:$D46,G43:G46,$L43:$L46,O43:O46) ->  | Y43: =bdrateOld($D43:$D46,E43:E46,$L43:$L46,M43:M46) ->  | Z43: =bdrateOld($D43:$D46,F43:F46,$L43:$L46,N43:N46) ->  | AA43: =bdrateOld($D43:$D46,G43:G46,$L43:$L46,O43:O46) -> 
C44: 27 | D44: =Reference!B250 -> 0 | E44: =Reference!C250 -> 0 | F44: =Reference!D250 -> 0 | G44: =Reference!E250 -> 0 | H44: =Reference!F250 -> 0 | I44: =Reference!G250 -> 0 | J44: 0 | L44: =Test!B250 -> 0 | M44: =Test!C250 -> 0 | N44: =Test!D250 -> 0 | O44: =Test!E250 -> 0 | P44: =Test!F250 -> 0 | Q44: =Test!G250 -> 0 | R44: 0
C45: 32 | D45: =Reference!B251 -> 0 | E45: =Reference!C251 -> 0 | F45: =Reference!D251 -> 0 | G45: =Reference!E251 -> 0 | H45: =Reference!F251 -> 0 | I45: =Reference!G251 -> 0 | J45: 0 | L45: =Test!B251 -> 0 | M45: =Test!C251 -> 0 | N45: =Test!D251 -> 0 | O45: =Test!E251 -> 0 | P45: =Test!F251 -> 0 | Q45: =Test!G251 -> 0 | R45: 0
C46: 37 | D46: =Reference!B252 -> 0 | E46: =Reference!C252 -> 0 | F46: =Reference!D252 -> 0 | G46: =Reference!E252 -> 0 | H46: =Reference!F252 -> 0 | I46: =Reference!G252 -> 0 | J46: 0 | L46: =Test!B252 -> 0 | M46: =Test!C252 -> 0 | N46: =Test!D252 -> 0 | O46: =Test!E252 -> 0 | P46: =Test!F252 -> 0 | Q46: =Test!G252 -> 0 | R46: 0
A47: Class C | B47: BasketballDrill | C47: 22 | D47: =Reference!B253 -> 0 | E47: =Reference!C253 -> 0 | F47: =Reference!D253 -> 0 | G47: =Reference!E253 -> 0 | H47: =Reference!F253 -> 0 | I47: =Reference!G253 -> 0 | J47: 0 | L47: =Test!B253 -> 0 | M47: =Test!C253 -> 0 | N47: =Test!D253 -> 0 | O47: =Test!E253 -> 0 | P47: =Test!F253 -> 0 | Q47: =Test!G253 -> 0 | R47: 0 | S47: =P47/H47 ->  | V47: =bdrate($D47:$D50,E47:E50,$L47:$L50,M47:M50) ->  | W47: =bdrate($D47:$D50,F47:F50,$L47:$L50,N47:N50) ->  | X47: =bdrate($D47:$D50,G47:G50,$L47:$L50,O47:O50) ->  | Y47: =bdrateOld($D47:$D50,E47:E50,$L47:$L50,M47:M50) ->  | Z47: =bdrateOld($D47:$D50,F47:F50,$L47:$L50,N47:N50) ->  | AA47: =bdrateOld($D47:$D50,G47:G50,$L47:$L50,O47:O50) -> 
A48: WVGA | C48: 27 | D48: =Reference!B254 -> 0 | E48: =Reference!C254 -> 0 | F48: =Reference!D254 -> 0 | G48: =Reference!E254 -> 0 | H48: =Reference!F254 -> 0 | I48: =Reference!G254 -> 0 | J48: 0 | L48: =Test!B254 -> 0 | M48: =Test!C254 -> 0 | N48: =Test!D254 -> 0 | O48: =Test!E254 -> 0 | P48: =Test!F254 -> 0 | Q48: =Test!G254 -> 0 | R48: 0
C49: 32 | D49: =Reference!B255 -> 0 | E49: =Reference!C255 -> 0 | F49: =Reference!D255 -> 0 | G49: =Reference!E255 -> 0 | H49: =Reference!F255 -> 0 | I49: =Reference!G255 -> 0 | J49: 0 | L49: =Test!B255 -> 0 | M49: =Test!C255 -> 0 | N49: =Test!D255 -> 0 | O49: =Test!E255 -> 0 | P49: =Test!F255 -> 0 | Q49: =Test!G255 -> 0 | R49: 0
C50: 37 | D50: =Reference!B256 -> 0 | E50: =Reference!C256 -> 0 | F50: =Reference!D256 -> 0 | G50: =Reference!E256 -> 0 | H50: =Reference!F256 -> 0 | I50: =Reference!G256 -> 0 | J50: 0 | L50: =Test!B256 -> 0 | M50: =Test!C256 -> 0 | N50: =Test!D256 -> 0 | O50: =Test!E256 -> 0 | P50: =Test!F256 -> 0 | Q50: =Test!G256 -> 0 | R50: 0
B51: BQMall | C51: 22 | D51: =Reference!B257 -> 0 | E51: =Reference!C257 -> 0 | F51: =Reference!D257 -> 0 | G51: =Reference!E257 -> 0 | H51: =Reference!F257 -> 0 | I51: =Reference!G257 -> 0 | J51: 0 | L51: =Test!B257 -> 0 | M51: =Test!C257 -> 0 | N51: =Test!D257 -> 0 | O51: =Test!E257 -> 0 | P51: =Test!F257 -> 0 | Q51: =Test!G257 -> 0 | R51: 0 | V51: =bdrate($D51:$D54,E51:E54,$L51:$L54,M51:M54) ->  | W51: =bdrate($D51:$D54,F51:F54,$L51:$L54,N51:N54) ->  | X51: =bdrate($D51:$D54,G51:G54,$L51:$L54,O51:O54) ->  | Y51: =bdrateOld($D51:$D54,E51:E54,$L51:$L54,M51:M54) ->  | Z51: =bdrateOld($D51:$D54,F51:F54,$L51:$L54,N51:N54) ->  | AA51: =bdrateOld($D51:$D54,G51:G54,$L51:$L54,O51:O54) -> 
C52: 27 | D52: =Reference!B258 -> 0 | E52: =Reference!C258 -> 0 | F52: =Reference!D258 -> 0 | G52: =Reference!E258 -> 0 | H52: =Reference!F258 -> 0 | I52: =Reference!G258 -> 0 | J52: 0 | L52: =Test!B258 -> 0 | M52: =Test!C258 -> 0 | N52: =Test!D258 -> 0 | O52: =Test!E258 -> 0 | P52: =Test!F258 -> 0 | Q52: =Test!G258 -> 0 | R52: 0
C53: 32 | D53: =Reference!B259 -> 0 | E53: =Reference!C259 -> 0 | F53: =Reference!D259 -> 0 | G53: =Reference!E259 -> 0 | H53: =Reference!F259 -> 0 | I53: =Reference!G259 -> 0 | J53: 0 | L53: =Test!B259 -> 0 | M53: =Test!C259 -> 0 | N53: =Test!D259 -> 0 | O53: =Test!E259 -> 0 | P53: =Test!F259 -> 0 | Q53: =Test!G259 -> 0 | R53: 0
C54: 37 | D54: =Reference!B260 -> 0 | E54: =Reference!C260 -> 0 | F54: =Reference!D260 -> 0 | G54: =Reference!E260 -> 0 | H54: =Reference!F260 -> 0 | I54: =Reference!G260 -> 0 | J54: 0 | L54: =Test!B260 -> 0 | M54: =Test!C260 -> 0 | N54: =Test!D260 -> 0 | O54: =Test!E260 -> 0 | P54: =Test!F260 -> 0 | Q54: =Test!G260 -> 0 | R54: 0
B55: PartyScene | C55: 22 | D55: =Reference!B261 -> 0 | E55: =Reference!C261 -> 0 | F55: =Reference!D261 -> 0 | G55: =Reference!E261 -> 0 | H55: =Reference!F261 -> 0 | I55: =Reference!G261 -> 0 | J55: 0 | L55: =Test!B261 -> 0 | M55: =Test!C261 -> 0 | N55: =Test!D261 -> 0 | O55: =Test!E261 -> 0 | P55: =Test!F261 -> 0 | Q55: =Test!G261 -> 0 | R55: 0 | V55: =bdrate($D55:$D58,E55:E58,$L55:$L58,M55:M58) ->  | W55: =bdrate($D55:$D58,F55:F58,$L55:$L58,N55:N58) ->  | X55: =bdrate($D55:$D58,G55:G58,$L55:$L58,O55:O58) ->  | Y55: =bdrateOld($D55:$D58,E55:E58,$L55:$L58,M55:M58) ->  | Z55: =bdrateOld($D55:$D58,F55:F58,$L55:$L58,N55:N58) ->  | AA55: =bdrateOld($D55:$D58,G55:G58,$L55:$L58,O55:O58) -> 
C56: 27 | D56: =Reference!B262 -> 0 | E56: =Reference!C262 -> 0 | F56: =Reference!D262 -> 0 | G56: =Reference!E262 -> 0 | H56: =Reference!F262 -> 0 | I56: =Reference!G262 -> 0 | J56: 0 | L56: =Test!B262 -> 0 | M56: =Test!C262 -> 0 | N56: =Test!D262 -> 0 | O56: =Test!E262 -> 0 | P56: =Test!F262 -> 0 | Q56: =Test!G262 -> 0 | R56: 0
C57: 32 | D57: =Reference!B263 -> 0 | E57: =Reference!C263 -> 0 | F57: =Reference!D263 -> 0 | G57: =Reference!E263 -> 0 | H57: =Reference!F263 -> 0 | I57: =Reference!G263 -> 0 | J57: 0 | L57: =Test!B263 -> 0 | M57: =Test!C263 -> 0 | N57: =Test!D263 -> 0 | O57: =Test!E263 -> 0 | P57: =Test!F263 -> 0 | Q57: =Test!G263 -> 0 | R57: 0
C58: 37 | D58: =Reference!B264 -> 0 | E58: =Reference!C264 -> 0 | F58: =Reference!D264 -> 0 | G58: =Reference!E264 -> 0 | H58: =Reference!F264 -> 0 | I58: =Reference!G264 -> 0 | J58: 0 | L58: =Test!B264 -> 0 | M58: =Test!C264 -> 0 | N58: =Test!D264 -> 0 | O58: =Test!E264 -> 0 | P58: =Test!F264 -> 0 | Q58: =Test!G264 -> 0 | R58: 0
B59: RaceHorses | C59: 22 | D59: =Reference!B265 -> 0 | E59: =Reference!C265 -> 0 | F59: =Reference!D265 -> 0 | G59: =Reference!E265 -> 0 | H59: =Reference!F265 -> 0 | I59: =Reference!G265 -> 0 | J59: 0 | L59: =Test!B265 -> 0 | M59: =Test!C265 -> 0 | N59: =Test!D265 -> 0 | O59: =Test!E265 -> 0 | P59: =Test!F265 -> 0 | Q59: =Test!G265 -> 0 | R59: 0 | V59: =bdrate($D59:$D62,E59:E62,$L59:$L62,M59:M62) ->  | W59: =bdrate($D59:$D62,F59:F62,$L59:$L62,N59:N62) ->  | X59: =bdrate($D59:$D62,G59:G62,$L59:$L62,O59:O62) ->  | Y59: =bdrateOld($D59:$D62,E59:E62,$L59:$L62,M59:M62) ->  | Z59: =bdrateOld($D59:$D62,F59:F62,$L59:$L62,N59:N62) ->  | AA59: =bdrateOld($D59:$D62,G59:G62,$L59:$L62,O59:O62) -> 
C60: 27 | D60: =Reference!B266 -> 0 | E60: =Reference!C266 -> 0 | F60: =Reference!D266 -> 0 | G60: =Reference!E266 -> 0 | H60: =Reference!F266 -> 0 | I60: =Reference!G266 -> 0 | J60: 0 | L60: =Test!B266 -> 0 | M60: =Test!C266 -> 0 | N60: =Test!D266 -> 0 | O60: =Test!E266 -> 0 | P60: =Test!F266 -> 0 | Q60: =Test!G266 -> 0 | R60: 0
C61: 32 | D61: =Reference!B267 -> 0 | E61: =Reference!C267 -> 0 | F61: =Reference!D267 -> 0 | G61: =Reference!E267 -> 0 | H61: =Reference!F267 -> 0 | I61: =Reference!G267 -> 0 | J61: 0 | L61: =Test!B267 -> 0 | M61: =Test!C267 -> 0 | N61: =Test!D267 -> 0 | O61: =Test!E267 -> 0 | P61: =Test!F267 -> 0 | Q61: =Test!G267 -> 0 | R61: 0
C62: 37 | D62: =Reference!B268 -> 0 | E62: =Reference!C268 -> 0 | F62: =Reference!D268 -> 0 | G62: =Reference!E268 -> 0 | H62: =Reference!F268 -> 0 | I62: =Reference!G268 -> 0 | J62: 0 | L62: =Test!B268 -> 0 | M62: =Test!C268 -> 0 | N62: =Test!D268 -> 0 | O62: =Test!E268 -> 0 | P62: =Test!F268 -> 0 | Q62: =Test!G268 -> 0 | R62: 0
A63: Class D | B63: BasketballPass | C63: =C59 -> 22 | D63: =Reference!B269 -> 0 | E63: =Reference!C269 -> 0 | F63: =Reference!D269 -> 0 | G63: =Reference!E269 -> 0 | H63: =Reference!F269 -> 0 | I63: =Reference!G269 -> 0 | J63: 0 | L63: =Test!B269 -> 0 | M63: =Test!C269 -> 0 | N63: =Test!D269 -> 0 | O63: =Test!E269 -> 0 | P63: =Test!F269 -> 0 | Q63: =Test!G269 -> 0 | R63: 0 | S63: =P63/H63 ->  | V63: =bdrate($D63:$D66,E63:E66,$L63:$L66,M63:M66) ->  | W63: =bdrate($D63:$D66,F63:F66,$L63:$L66,N63:N66) ->  | X63: =bdrate($D63:$D66,G63:G66,$L63:$L66,O63:O66) ->  | Y63: =bdrateOld($D63:$D66,E63:E66,$L63:$L66,M63:M66) ->  | Z63: =bdrateOld($D63:$D66,F63:F66,$L63:$L66,N63:N66) ->  | AA63: =bdrateOld($D63:$D66,G63:G66,$L63:$L66,O63:O66) -> 
A64: WQVGA | C64: =C60 -> 27 | D64: =Reference!B270 -> 0 | E64: =Reference!C270 -> 0 | F64: =Reference!D270 -> 0 | G64: =Reference!E270 -> 0 | H64: =Reference!F270 -> 0 | I64: =Reference!G270 -> 0 | J64: 0 | L64: =Test!B270 -> 0 | M64: =Test!C270 -> 0 | N64: =Test!D270 -> 0 | O64: =Test!E270 -> 0 | P64: =Test!F270 -> 0 | Q64: =Test!G270 -> 0 | R64: 0 | S64: =P64/H64 -> 
C65: =C61 -> 32 | D65: =Reference!B271 -> 0 | E65: =Reference!C271 -> 0 | F65: =Reference!D271 -> 0 | G65: =Reference!E271 -> 0 | H65: =Reference!F271 -> 0 | I65: =Reference!G271 -> 0 | J65: 0 | L65: =Test!B271 -> 0 | M65: =Test!C271 -> 0 | N65: =Test!D271 -> 0 | O65: =Test!E271 -> 0 | P65: =Test!F271 -> 0 | Q65: =Test!G271 -> 0 | R65: 0 | S65: =P65/H65 -> 
C66: =C62 -> 37 | D66: =Reference!B272 -> 0 | E66: =Reference!C272 -> 0 | F66: =Reference!D272 -> 0 | G66: =Reference!E272 -> 0 | H66: =Reference!F272 -> 0 | I66: =Reference!G272 -> 0 | J66: 0 | L66: =Test!B272 -> 0 | M66: =Test!C272 -> 0 | N66: =Test!D272 -> 0 | O66: =Test!E272 -> 0 | P66: =Test!F272 -> 0 | Q66: =Test!G272 -> 0 | R66: 0 | S66: =P66/H66 -> 
B67: BQSquare | C67: 22 | D67: =Reference!B273 -> 0 | E67: =Reference!C273 -> 0 | F67: =Reference!D273 -> 0 | G67: =Reference!E273 -> 0 | H67: =Reference!F273 -> 0 | I67: =Reference!G273 -> 0 | J67: 0 | L67: =Test!B273 -> 0 | M67: =Test!C273 -> 0 | N67: =Test!D273 -> 0 | O67: =Test!E273 -> 0 | P67: =Test!F273 -> 0 | Q67: =Test!G273 -> 0 | R67: 0 | V67: =bdrate($D67:$D70,E67:E70,$L67:$L70,M67:M70) ->  | W67: =bdrate($D67:$D70,F67:F70,$L67:$L70,N67:N70) ->  | X67: =bdrate($D67:$D70,G67:G70,$L67:$L70,O67:O70) ->  | Y67: =bdrateOld($D67:$D70,E67:E70,$L67:$L70,M67:M70) ->  | Z67: =bdrateOld($D67:$D70,F67:F70,$L67:$L70,N67:N70) ->  | AA67: =bdrateOld($D67:$D70,G67:G70,$L67:$L70,O67:O70) -> 
C68: 27 | D68: =Reference!B274 -> 0 | E68: =Reference!C274 -> 0 | F68: =Reference!D274 -> 0 | G68: =Reference!E274 -> 0 | H68: =Reference!F274 -> 0 | I68: =Reference!G274 -> 0 | J68: 0 | L68: =Test!B274 -> 0 | M68: =Test!C274 -> 0 | N68: =Test!D274 -> 0 | O68: =Test!E274 -> 0 | P68: =Test!F274 -> 0 | Q68: =Test!G274 -> 0 | R68: 0
C69: 32 | D69: =Reference!B275 -> 0 | E69: =Reference!C275 -> 0 | F69: =Reference!D275 -> 0 | G69: =Reference!E275 -> 0 | H69: =Reference!F275 -> 0 | I69: =Reference!G275 -> 0 | J69: 0 | L69: =Test!B275 -> 0 | M69: =Test!C275 -> 0 | N69: =Test!D275 -> 0 | O69: =Test!E275 -> 0 | P69: =Test!F275 -> 0 | Q69: =Test!G275 -> 0 | R69: 0
C70: 37 | D70: =Reference!B276 -> 0 | E70: =Reference!C276 -> 0 | F70: =Reference!D276 -> 0 | G70: =Reference!E276 -> 0 | H70: =Reference!F276 -> 0 | I70: =Reference!G276 -> 0 | J70: 0 | L70: =Test!B276 -> 0 | M70: =Test!C276 -> 0 | N70: =Test!D276 -> 0 | O70: =Test!E276 -> 0 | P70: =Test!F276 -> 0 | Q70: =Test!G276 -> 0 | R70: 0
B71: BlowingBubbles | C71: 22 | D71: =Reference!B277 -> 0 | E71: =Reference!C277 -> 0 | F71: =Reference!D277 -> 0 | G71: =Reference!E277 -> 0 | H71: =Reference!F277 -> 0 | I71: =Reference!G277 -> 0 | J71: 0 | L71: =Test!B277 -> 0 | M71: =Test!C277 -> 0 | N71: =Test!D277 -> 0 | O71: =Test!E277 -> 0 | P71: =Test!F277 -> 0 | Q71: =Test!G277 -> 0 | R71: 0 | S71: =P71/H71 ->  | V71: =bdrate($D71:$D74,E71:E74,$L71:$L74,M71:M74) ->  | W71: =bdrate($D71:$D74,F71:F74,$L71:$L74,N71:N74) ->  | X71: =bdrate($D71:$D74,G71:G74,$L71:$L74,O71:O74) ->  | Y71: =bdrateOld($D71:$D74,E71:E74,$L71:$L74,M71:M74) ->  | Z71: =bdrateOld($D71:$D74,F71:F74,$L71:$L74,N71:N74) ->  | AA71: =bdrateOld($D71:$D74,G71:G74,$L71:$L74,O71:O74) -> 
C72: 27 | D72: =Reference!B278 -> 0 | E72: =Reference!C278 -> 0 | F72: =Reference!D278 -> 0 | G72: =Reference!E278 -> 0 | H72: =Reference!F278 -> 0 | I72: =Reference!G278 -> 0 | J72: 0 | L72: =Test!B278 -> 0 | M72: =Test!C278 -> 0 | N72: =Test!D278 -> 0 | O72: =Test!E278 -> 0 | P72: =Test!F278 -> 0 | Q72: =Test!G278 -> 0 | R72: 0
C73: 32 | D73: =Reference!B279 -> 0 | E73: =Reference!C279 -> 0 | F73: =Reference!D279 -> 0 | G73: =Reference!E279 -> 0 | H73: =Reference!F279 -> 0 | I73: =Reference!G279 -> 0 | J73: 0 | L73: =Test!B279 -> 0 | M73: =Test!C279 -> 0 | N73: =Test!D279 -> 0 | O73: =Test!E279 -> 0 | P73: =Test!F279 -> 0 | Q73: =Test!G279 -> 0 | R73: 0
C74: 37 | D74: =Reference!B280 -> 0 | E74: =Reference!C280 -> 0 | F74: =Reference!D280 -> 0 | G74: =Reference!E280 -> 0 | H74: =Reference!F280 -> 0 | I74: =Reference!G280 -> 0 | J74: 0 | L74: =Test!B280 -> 0 | M74: =Test!C280 -> 0 | N74: =Test!D280 -> 0 | O74: =Test!E280 -> 0 | P74: =Test!F280 -> 0 | Q74: =Test!G280 -> 0 | R74: 0
B75: RaceHorses | C75: 22 | D75: =Reference!B281 -> 0 | E75: =Reference!C281 -> 0 | F75: =Reference!D281 -> 0 | G75: =Reference!E281 -> 0 | H75: =Reference!F281 -> 0 | I75: =Reference!G281 -> 0 | J75: 0 | L75: =Test!B281 -> 0 | M75: =Test!C281 -> 0 | N75: =Test!D281 -> 0 | O75: =Test!E281 -> 0 | P75: =Test!F281 -> 0 | Q75: =Test!G281 -> 0 | R75: 0 | V75: =bdrate($D75:$D78,E75:E78,$L75:$L78,M75:M78) ->  | W75: =bdrate($D75:$D78,F75:F78,$L75:$L78,N75:N78) ->  | X75: =bdrate($D75:$D78,G75:G78,$L75:$L78,O75:O78) ->  | Y75: =bdrateOld($D75:$D78,E75:E78,$L75:$L78,M75:M78) ->  | Z75: =bdrateOld($D75:$D78,F75:F78,$L75:$L78,N75:N78) ->  | AA75: =bdrateOld($D75:$D78,G75:G78,$L75:$L78,O75:O78) -> 
C76: 27 | D76: =Reference!B282 -> 0 | E76: =Reference!C282 -> 0 | F76: =Reference!D282 -> 0 | G76: =Reference!E282 -> 0 | H76: =Reference!F282 -> 0 | I76: =Reference!G282 -> 0 | J76: 0 | L76: =Test!B282 -> 0 | M76: =Test!C282 -> 0 | N76: =Test!D282 -> 0 | O76: =Test!E282 -> 0 | P76: =Test!F282 -> 0 | Q76: =Test!G282 -> 0 | R76: 0
C77: 32 | D77: =Reference!B283 -> 0 | E77: =Reference!C283 -> 0 | F77: =Reference!D283 -> 0 | G77: =Reference!E283 -> 0 | H77: =Reference!F283 -> 0 | I77: =Reference!G283 -> 0 | J77: 0 | L77: =Test!B283 -> 0 | M77: =Test!C283 -> 0 | N77: =Test!D283 -> 0 | O77: =Test!E283 -> 0 | P77: =Test!F283 -> 0 | Q77: =Test!G283 -> 0 | R77: 0
C78: 37 | D78: =Reference!B284 -> 0 | E78: =Reference!C284 -> 0 | F78: =Reference!D284 -> 0 | G78: =Reference!E284 -> 0 | H78: =Reference!F284 -> 0 | I78: =Reference!G284 -> 0 | J78: 0 | L78: =Test!B284 -> 0 | M78: =Test!C284 -> 0 | N78: =Test!D284 -> 0 | O78: =Test!E284 -> 0 | P78: =Test!F284 -> 0 | Q78: =Test!G284 -> 0 | R78: 0
A79: ClassE | B79: FourPeople | C79: 22 | D79: =Reference!B285 -> 0 | E79: =Reference!C285 -> 0 | F79: =Reference!D285 -> 0 | G79: =Reference!E285 -> 0 | H79: =Reference!F285 -> 0 | I79: =Reference!G285 -> 0 | J79: 0 | L79: =Test!B285 -> 0 | M79: =Test!C285 -> 0 | N79: =Test!D285 -> 0 | O79: =Test!E285 -> 0 | P79: =Test!F285 -> 0 | Q79: =Test!G285 -> 0 | R79: 0 | V79: =bdrate($D79:$D82,E79:E82,$L79:$L82,M79:M82) ->  | W79: =bdrate($D79:$D82,F79:F82,$L79:$L82,N79:N82) ->  | X79: =bdrate($D79:$D82,G79:G82,$L79:$L82,O79:O82) ->  | Y79: =bdrateOld($D79:$D82,E79:E82,$L79:$L82,M79:M82) ->  | Z79: =bdrateOld($D79:$D82,F79:F82,$L79:$L82,N79:N82) ->  | AA79: =bdrateOld($D79:$D82,G79:G82,$L79:$L82,O79:O82) -> 
A80: 720p | C80: 27 | D80: =Reference!B286 -> 0 | E80: =Reference!C286 -> 0 | F80: =Reference!D286 -> 0 | G80: =Reference!E286 -> 0 | H80: =Reference!F286 -> 0 | I80: =Reference!G286 -> 0 | J80: 0 | L80: =Test!B286 -> 0 | M80: =Test!C286 -> 0 | N80: =Test!D286 -> 0 | O80: =Test!E286 -> 0 | P80: =Test!F286 -> 0 | Q80: =Test!G286 -> 0 | R80: =P80/3600 -> 0
C81: 32 | D81: =Reference!B287 -> 0 | E81: =Reference!C287 -> 0 | F81: =Reference!D287 -> 0 | G81: =Reference!E287 -> 0 | H81: =Reference!F287 -> 0 | I81: =Reference!G287 -> 0 | J81: 0 | L81: =Test!B287 -> 0 | M81: =Test!C287 -> 0 | N81: =Test!D287 -> 0 | O81: =Test!E287 -> 0 | P81: =Test!F287 -> 0 | Q81: =Test!G287 -> 0 | R81: 0
C82: 37 | D82: =Reference!B288 -> 0 | E82: =Reference!C288 -> 0 | F82: =Reference!D288 -> 0 | G82: =Reference!E288 -> 0 | H82: =Reference!F288 -> 0 | I82: =Reference!G288 -> 0 | J82: 0 | L82: =Test!B288 -> 0 | M82: =Test!C288 -> 0 | N82: =Test!D288 -> 0 | O82: =Test!E288 -> 0 | P82: =Test!F288 -> 0 | Q82: =Test!G288 -> 0 | R82: 0
B83: Johnny | C83: 22 | D83: =Reference!B289 -> 0 | E83: =Reference!C289 -> 0 | F83: =Reference!D289 -> 0 | G83: =Reference!E289 -> 0 | H83: =Reference!F289 -> 0 | I83: =Reference!G289 -> 0 | J83: 0 | L83: =Test!B289 -> 0 | M83: =Test!C289 -> 0 | N83: =Test!D289 -> 0 | O83: =Test!E289 -> 0 | P83: =Test!F289 -> 0 | Q83: =Test!G289 -> 0 | R83: 0 | V83: =bdrate($D83:$D86,E83:E86,$L83:$L86,M83:M86) ->  | W83: =bdrate($D83:$D86,F83:F86,$L83:$L86,N83:N86) ->  | X83: =bdrate($D83:$D86,G83:G86,$L83:$L86,O83:O86) ->  | Y83: =bdrateOld($D83:$D86,E83:E86,$L83:$L86,M83:M86) ->  | Z83: =bdrateOld($D83:$D86,F83:F86,$L83:$L86,N83:N86) ->  | AA83: =bdrateOld($D83:$D86,G83:G86,$L83:$L86,O83:O86) -> 
C84: 27 | D84: =Reference!B290 -> 0 | E84: =Reference!C290 -> 0 | F84: =Reference!D290 -> 0 | G84: =Reference!E290 -> 0 | H84: =Reference!F290 -> 0 | I84: =Reference!G290 -> 0 | J84: 0 | L84: =Test!B290 -> 0 | M84: =Test!C290 -> 0 | N84: =Test!D290 -> 0 | O84: =Test!E290 -> 0 | P84: =Test!F290 -> 0 | Q84: =Test!G290 -> 0 | R84: 0
C85: 32 | D85: =Reference!B291 -> 0 | E85: =Reference!C291 -> 0 | F85: =Reference!D291 -> 0 | G85: =Reference!E291 -> 0 | H85: =Reference!F291 -> 0 | I85: =Reference!G291 -> 0 | J85: 0 | L85: =Test!B291 -> 0 | M85: =Test!C291 -> 0 | N85: =Test!D291 -> 0 | O85: =Test!E291 -> 0 | P85: =Test!F291 -> 0 | Q85: =Test!G291 -> 0 | R85: 0
C86: 37 | D86: =Reference!B292 -> 0 | E86: =Reference!C292 -> 0 | F86: =Reference!D292 -> 0 | G86: =Reference!E292 -> 0 | H86: =Reference!F292 -> 0 | I86: =Reference!G292 -> 0 | J86: 0 | L86: =Test!B292 -> 0 | M86: =Test!C292 -> 0 | N86: =Test!D292 -> 0 | O86: =Test!E292 -> 0 | P86: =Test!F292 -> 0 | Q86: =Test!G292 -> 0 | R86: 0
B87: KristenAndSara | C87: 22 | D87: =Reference!B293 -> 0 | E87: =Reference!C293 -> 0 | F87: =Reference!D293 -> 0 | G87: =Reference!E293 -> 0 | H87: =Reference!F293 -> 0 | I87: =Reference!G293 -> 0 | J87: 0 | L87: =Test!B293 -> 0 | M87: =Test!C293 -> 0 | N87: =Test!D293 -> 0 | O87: =Test!E293 -> 0 | P87: =Test!F293 -> 0 | Q87: =Test!G293 -> 0 | R87: 0 | S87: =P87/H87 ->  | V87: =bdrate($D87:$D90,E87:E90,$L87:$L90,M87:M90) ->  | W87: =bdrate($D87:$D90,F87:F90,$L87:$L90,N87:N90) ->  | X87: =bdrate($D87:$D90,G87:G90,$L87:$L90,O87:O90) ->  | Y87: =bdrateOld($D87:$D90,E87:E90,$L87:$L90,M87:M90) ->  | Z87: =bdrateOld($D87:$D90,F87:F90,$L87:$L90,N87:N90) ->  | AA87: =bdrateOld($D87:$D90,G87:G90,$L87:$L90,O87:O90) -> 
C88: 27 | D88: =Reference!B294 -> 0 | E88: =Reference!C294 -> 0 | F88: =Reference!D294 -> 0 | G88: =Reference!E294 -> 0 | H88: =Reference!F294 -> 0 | I88: =Reference!G294 -> 0 | J88: 0 | L88: =Test!B294 -> 0 | M88: =Test!C294 -> 0 | N88: =Test!D294 -> 0 | O88: =Test!E294 -> 0 | P88: =Test!F294 -> 0 | Q88: =Test!G294 -> 0 | R88: 0
C89: 32 | D89: =Reference!B295 -> 0 | E89: =Reference!C295 -> 0 | F89: =Reference!D295 -> 0 | G89: =Reference!E295 -> 0 | H89: =Reference!F295 -> 0 | I89: =Reference!G295 -> 0 | J89: 0 | L89: =Test!B295 -> 0 | M89: =Test!C295 -> 0 | N89: =Test!D295 -> 0 | O89: =Test!E295 -> 0 | P89: =Test!F295 -> 0 | Q89: =Test!G295 -> 0 | R89: 0
C90: 37 | D90: =Reference!B296 -> 0 | E90: =Reference!C296 -> 0 | F90: =Reference!D296 -> 0 | G90: =Reference!E296 -> 0 | H90: =Reference!F296 -> 0 | I90: =Reference!G296 -> 0 | J90: 0 | L90: =Test!B296 -> 0 | M90: =Test!C296 -> 0 | N90: =Test!D296 -> 0 | O90: =Test!E296 -> 0 | P90: =Test!F296 -> 0 | Q90: =Test!G296 -> 0 | R90: 0
A91: ClassF | B91: BasketballDrillText | C91: 22 | D91: =Reference!B297 -> 0 | E91: =Reference!C297 -> 0 | F91: =Reference!D297 -> 0 | G91: =Reference!E297 -> 0 | H91: =Reference!F297 -> 0 | I91: =Reference!G297 -> 0 | J91: 0 | L91: =Test!B297 -> 0 | M91: =Test!C297 -> 0 | N91: =Test!D297 -> 0 | O91: =Test!E297 -> 0 | P91: =Test!F297 -> 0 | Q91: =Test!G297 -> 0 | R91: 0 | V91: =bdrate($D91:$D94,E91:E94,$L91:$L94,M91:M94) ->  | W91: =bdrate($D91:$D94,F91:F94,$L91:$L94,N91:N94) ->  | X91: =bdrate($D91:$D94,G91:G94,$L91:$L94,O91:O94) ->  | Y91: =bdrateOld($D91:$D94,E91:E94,$L91:$L94,M91:M94) ->  | Z91: =bdrateOld($D91:$D94,F91:F94,$L91:$L94,N91:N94) ->  | AA91: =bdrateOld($D91:$D94,G91:G94,$L91:$L94,O91:O94) -> 
C92: 27 | D92: =Reference!B298 -> 0 | E92: =Reference!C298 -> 0 | F92: =Reference!D298 -> 0 | G92: =Reference!E298 -> 0 | H92: =Reference!F298 -> 0 | I92: =Reference!G298 -> 0 | J92: =H92/3600 -> 0 | L92: =Test!B298 -> 0 | M92: =Test!C298 -> 0 | N92: =Test!D298 -> 0 | O92: =Test!E298 -> 0 | P92: =Test!F298 -> 0 | Q92: =Test!G298 -> 0 | R92: 0
C93: 32 | D93: =Reference!B299 -> 0 | E93: =Reference!C299 -> 0 | F93: =Reference!D299 -> 0 | G93: =Reference!E299 -> 0 | H93: =Reference!F299 -> 0 | I93: =Reference!G299 -> 0 | J93: 0 | L93: =Test!B299 -> 0 | M93: =Test!C299 -> 0 | N93: =Test!D299 -> 0 | O93: =Test!E299 -> 0 | P93: =Test!F299 -> 0 | Q93: =Test!G299 -> 0 | R93: 0
C94: 37 | D94: =Reference!B300 -> 0 | E94: =Reference!C300 -> 0 | F94: =Reference!D300 -> 0 | G94: =Reference!E300 -> 0 | H94: =Reference!F300 -> 0 | I94: =Reference!G300 -> 0 | J94: 0 | L94: =Test!B300 -> 0 | M94: =Test!C300 -> 0 | N94: =Test!D300 -> 0 | O94: =Test!E300 -> 0 | P94: =Test!F300 -> 0 | Q94: =Test!G300 -> 0 | R94: 0
B95: ArenaOfValor | C95: 22 | D95: =Reference!B301 -> 0 | E95: =Reference!C301 -> 0 | F95: =Reference!D301 -> 0 | G95: =Reference!E301 -> 0 | H95: =Reference!F301 -> 0 | I95: =Reference!G301 -> 0 | J95: 0 | L95: =Test!B301 -> 0 | M95: =Test!C301 -> 0 | N95: =Test!D301 -> 0 | O95: =Test!E301 -> 0 | P95: =Test!F301 -> 0 | Q95: =Test!G301 -> 0 | R95: 0 | V95: =bdrate($D95:$D98,E95:E98,$L95:$L98,M95:M98) ->  | W95: =bdrate($D95:$D98,F95:F98,$L95:$L98,N95:N98) ->  | X95: =bdrate($D95:$D98,G95:G98,$L95:$L98,O95:O98) ->  | Y95: =bdrateOld($D95:$D98,E95:E98,$L95:$L98,M95:M98) ->  | Z95: =bdrateOld($D95:$D98,F95:F98,$L95:$L98,N95:N98) ->  | AA95: =bdrateOld($D95:$D98,G95:G98,$L95:$L98,O95:O98) -> 
C96: 27 | D96: =Reference!B302 -> 0 | E96: =Reference!C302 -> 0 | F96: =Reference!D302 -> 0 | G96: =Reference!E302 -> 0 | H96: =Reference!F302 -> 0 | I96: =Reference!G302 -> 0 | J96: 0 | L96: =Test!B302 -> 0 | M96: =Test!C302 -> 0 | N96: =Test!D302 -> 0 | O96: =Test!E302 -> 0 | P96: =Test!F302 -> 0 | Q96: =Test!G302 -> 0 | R96: 0
C97: 32 | D97: =Reference!B303 -> 0 | E97: =Reference!C303 -> 0 | F97: =Reference!D303 -> 0 | G97: =Reference!E303 -> 0 | H97: =Reference!F303 -> 0 | I97: =Reference!G303 -> 0 | J97: 0 | L97: =Test!B303 -> 0 | M97: =Test!C303 -> 0 | N97: =Test!D303 -> 0 | O97: =Test!E303 -> 0 | P97: =Test!F303 -> 0 | Q97: =Test!G303 -> 0 | R97: 0
C98: 37 | D98: =Reference!B304 -> 0 | E98: =Reference!C304 -> 0 | F98: =Reference!D304 -> 0 | G98: =Reference!E304 -> 0 | H98: =Reference!F304 -> 0 | I98: =Reference!G304 -> 0 | J98: 0 | L98: =Test!B304 -> 0 | M98: =Test!C304 -> 0 | N98: =Test!D304 -> 0 | O98: =Test!E304 -> 0 | P98: =Test!F304 -> 0 | Q98: =Test!G304 -> 0 | R98: 0
B99: SlideEditing | C99: 22 | D99: =Reference!B305 -> 0 | E99: =Reference!C305 -> 0 | F99: =Reference!D305 -> 0 | G99: =Reference!E305 -> 0 | H99: =Reference!F305 -> 0 | I99: =Reference!G305 -> 0 | J99: 0 | L99: =Test!B305 -> 0 | M99: =Test!C305 -> 0 | N99: =Test!D305 -> 0 | O99: =Test!E305 -> 0 | P99: =Test!F305 -> 0 | Q99: =Test!G305 -> 0 | R99: 0 | V99: =bdrate($D99:$D102,E99:E102,$L99:$L102,M99:M102) ->  | W99: =bdrate($D99:$D102,F99:F102,$L99:$L102,N99:N102) ->  | X99: =bdrate($D99:$D102,G99:G102,$L99:$L102,O99:O102) ->  | Y99: =bdrateOld($D99:$D102,E99:E102,$L99:$L102,M99:M102) ->  | Z99: =bdrateOld($D99:$D102,F99:F102,$L99:$L102,N99:N102) ->  | AA99: =bdrateOld($D99:$D102,G99:G102,$L99:$L102,O99:O102) -> 
C100: 27 | D100: =Reference!B306 -> 0 | E100: =Reference!C306 -> 0 | F100: =Reference!D306 -> 0 | G100: =Reference!E306 -> 0 | H100: =Reference!F306 -> 0 | I100: =Reference!G306 -> 0 | J100: 0 | L100: =Test!B306 -> 0 | M100: =Test!C306 -> 0 | N100: =Test!D306 -> 0 | O100: =Test!E306 -> 0 | P100: =Test!F306 -> 0 | Q100: =Test!G306 -> 0 | R100: 0
C101: 32 | D101: =Reference!B307 -> 0 | E101: =Reference!C307 -> 0 | F101: =Reference!D307 -> 0 | G101: =Reference!E307 -> 0 | H101: =Reference!F307 -> 0 | I101: =Reference!G307 -> 0 | J101: 0 | L101: =Test!B307 -> 0 | M101: =Test!C307 -> 0 | N101: =Test!D307 -> 0 | O101: =Test!E307 -> 0 | P101: =Test!F307 -> 0 | Q101: =Test!G307 -> 0 | R101: 0
C102: 37 | D102: =Reference!B308 -> 0 | E102: =Reference!C308 -> 0 | F102: =Reference!D308 -> 0 | G102: =Reference!E308 -> 0 | H102: =Reference!F308 -> 0 | I102: =Reference!G308 -> 0 | J102: 0 | L102: =Test!B308 -> 0 | M102: =Test!C308 -> 0 | N102: =Test!D308 -> 0 | O102: =Test!E308 -> 0 | P102: =Test!F308 -> 0 | Q102: =Test!G308 -> 0 | R102: 0
B103: SlideShow | C103: 22 | D103: =Reference!B309 -> 0 | E103: =Reference!C309 -> 0 | F103: =Reference!D309 -> 0 | G103: =Reference!E309 -> 0 | H103: =Reference!F309 -> 0 | I103: =Reference!G309 -> 0 | J103: 0 | L103: =Test!B309 -> 0 | M103: =Test!C309 -> 0 | N103: =Test!D309 -> 0 | O103: =Test!E309 -> 0 | P103: =Test!F309 -> 0 | Q103: =Test!G309 -> 0 | R103: 0 | V103: =bdrate($D103:$D106,E103:E106,$L103:$L106,M103:M106) ->  | W103: =bdrate($D103:$D106,F103:F106,$L103:$L106,N103:N106) ->  | X103: =bdrate($D103:$D106,G103:G106,$L103:$L106,O103:O106) ->  | Y103: =bdrateOld($D103:$D106,E103:E106,$L103:$L106,M103:M106) ->  | Z103: =bdrateOld($D103:$D106,F103:F106,$L103:$L106,N103:N106) ->  | AA103: =bdrateOld($D103:$D106,G103:G106,$L103:$L106,O103:O106) -> 
C104: 27 | D104: =Reference!B310 -> 0 | E104: =Reference!C310 -> 0 | F104: =Reference!D310 -> 0 | G104: =Reference!E310 -> 0 | H104: =Reference!F310 -> 0 | I104: =Reference!G310 -> 0 | J104: 0 | L104: =Test!B310 -> 0 | M104: =Test!C310 -> 0 | N104: =Test!D310 -> 0 | O104: =Test!E310 -> 0 | P104: =Test!F310 -> 0 | Q104: =Test!G310 -> 0 | R104: 0
C105: 32 | D105: =Reference!B311 -> 0 | E105: =Reference!C311 -> 0 | F105: =Reference!D311 -> 0 | G105: =Reference!E311 -> 0 | H105: =Reference!F311 -> 0 | I105: =Reference!G311 -> 0 | J105: 0 | L105: =Test!B311 -> 0 | M105: =Test!C311 -> 0 | N105: =Test!D311 -> 0 | O105: =Test!E311 -> 0 | P105: =Test!F311 -> 0 | Q105: =Test!G311 -> 0 | R105: 0
C106: 37 | D106: =Reference!B312 -> 0 | E106: =Reference!C312 -> 0 | F106: =Reference!D312 -> 0 | G106: =Reference!E312 -> 0 | H106: =Reference!F312 -> 0 | I106: =Reference!G312 -> 0 | J106: 0 | L106: =Test!B312 -> 0 | M106: =Test!C312 -> 0 | N106: =Test!D312 -> 0 | O106: =Test!E312 -> 0 | P106: =Test!F312 -> 0 | Q106: =Test!G312 -> 0 | R106: 0
B107: Class A1
B108: Class A2
B109: Class B | I109: =GEOMEAN(I27:I46) ->  | J109: =GEOMEAN(J27:J46) ->  | Q109: =GEOMEAN(Q27:Q46) ->  | R109: =GEOMEAN(R27:R46) ->  | S109: =GEOMEAN(S27:S46) ->  | V109: =AVERAGE(V27:V46) ->  | W109: =AVERAGE(W27:W46) -> 
B110: Class C | I110: =GEOMEAN(I47:I62) ->  | J110: =GEOMEAN(J47:J62) ->  | Q110: =GEOMEAN(Q47:Q62) ->  | R110: =GEOMEAN(R47:R62) ->  | S110: =GEOMEAN(S47:S62) ->  | V110: =AVERAGE(V47:V62) ->  | W110: =AVERAGE(W47:W62) -> 
B111: Class D | I111: =GEOMEAN(I63:I78) ->  | J111: =GEOMEAN(J63:J78) ->  | Q111: =GEOMEAN(Q63:Q78) ->  | R111: =GEOMEAN(R63:R78) ->  | S111: =GEOMEAN(S63:S78) ->  | V111: =AVERAGE(V63:V78) ->  | W111: =AVERAGE(W63:W78) -> 
B112: Class E | I112: =GEOMEAN(I79:I90) ->  | J112: =GEOMEAN(J79:J90) ->  | Q112: =GEOMEAN(Q79:Q90) ->  | R112: =GEOMEAN(R79:R90) ->  | S112: =GEOMEAN(S79:S90) ->  | V112: =AVERAGE(V79:V88) ->  | W112: =AVERAGE(W79:W88) -> 
B113: Class F | I113: =GEOMEAN(I91:I106) ->  | J113: =GEOMEAN(J91:J106) ->  | Q113: =GEOMEAN(Q91:Q106) ->  | R113: =GEOMEAN(R91:R106) ->  | S113: =GEOMEAN(S91:S106) ->  | V113: =AVERAGE(V91:V106) ->  | W113: =AVERAGE(W91:W106) -> 
B114: All | I114: =GEOMEAN(I3:I62,I79:I90) ->  | J114: =GEOMEAN(J3:J62,J79:J90) ->  | Q114: =GEOMEAN(Q3:Q62,Q79:Q90) ->  | R114: =GEOMEAN(R3:R62,R79:R90) ->  | V114: =AVERAGE(V3:V62,V79:V90) ->  | W114: =AVERAGE(W3:W62,W79:W90) -> 
B115: Time geomean | I115: =GEOMEAN(I3:I106) ->  | J115: =GEOMEAN(J3:J106) ->  | Q115: =GEOMEAN(Q3:Q106) ->  | R115: =GEOMEAN(R3:R106) -> 
B116: Time ratio | Q116: =Q115/I115 ->  | R116: =R115/J115 -> 
B117: Time sum (hours)

Sheet LDP-10
D1: Reference | L1: Tested | V1: BD-rate (piecewise cubic) | Y1: BD-rate (cubic)
C2: QPISlice | D2: kbps | E2: Y psnr | F2: U psnr | G2: V psnr | H2: Enc T [s] | I2: Dec T [s] | J2: Enc T [h] | L2: kbps | M2: Y psnr | N2: U psnr | O2: V psnr | P2: Enc T [s] | Q2: Dec T [s] | R2: Enc T [h] | S2: Enc | T2: Dec | V2: Y | W2: U | X2: V | Y2: Y | Z2: U | AA2: V
A3: Class A1 | B3: Tango2 | C3: 22
A4: 4K | C4: 27
C5: 32
C6: 37
B7: FoodMarket4 | C7: 22
C8: 27
C9: 32
C10: 37
B11: Campfire | C11: 22
C12: 27
C13: 32
C14: 37
A15: Class A2 | B15: CatRobot1 | C15: 22
A16: 4K | C16: 27
C17: 32
C18: 37
B19: DaylightRoad2 | C19: 22
C20: 27
C21: 32
C22: 37
B23: ParkRunning3 | C23: 22
C24: 27
C25: 32
C26: 37
A27: Class B | B27: MarketPlace | C27: 22 | D27: =Reference!B337 -> 0 | E27: =Reference!C337 -> 0 | F27: =Reference!D337 -> 0 | G27: =Reference!E337 -> 0 | H27: =Reference!F337 -> 0 | I27: =Reference!G337 -> 0 | J27: =H27/3600 -> 0 | L27: =Test!B337 -> 0 | M27: =Test!C337 -> 0 | N27: =Test!D337 -> 0 | O27: =Test!E337 -> 0 | P27: =Test!F337 -> 0 | Q27: =Test!G337 -> 0 | R27: =P27/3600 -> 0 | S27: =P27/H27 ->  | V27: =bdrate($D27:$D30,E27:E30,$L27:$L30,M27:M30) ->  | W27: =bdrate($D27:$D30,F27:F30,$L27:$L30,N27:N30) ->  | X27: =bdrate($D27:$D30,G27:G30,$L27:$L30,O27:O30) ->  | Y27: =bdrateOld($D27:$D30,E27:E30,$L27:$L30,M27:M30) ->  | Z27: =bdrateOld($D27:$D30,F27:F30,$L27:$L30,N27:N30) ->  | AA27: =bdrateOld($D27:$D30,G27:G30,$L27:$L30,O27:O30) -> 
A28: 1080p | C28: 27 | D28: =Reference!B338 -> 0 | E28: =Reference!C338 -> 0 | F28: =Reference!D338 -> 0 | G28: =Reference!E338 -> 0 | H28: =Reference!F338 -> 0 | I28: =Reference!G338 -> 0 | J28: =H28/3600 -> 0 | L28: =Test!B338 -> 0 | M28: =Test!C338 -> 0 | N28: =Test!D338 -> 0 | O28: =Test!E338 -> 0 | P28: =Test!F338 -> 0 | Q28: =Test!G338 -> 0 | R28: 0
C29: 32 | D29: =Reference!B339 -> 0 | E29: =Reference!C339 -> 0 | F29: =Reference!D339 -> 0 | G29: =Reference!E339 -> 0 | H29: =Reference!F339 -> 0 | I29: =Reference!G339 -> 0 | J29: 0 | L29: =Test!B339 -> 0 | M29: =Test!C339 -> 0 | N29: =Test!D339 -> 0 | O29: =Test!E339 -> 0 | P29: =Test!F339 -> 0 | Q29: =Test!G339 -> 0 | R29: 0
C30: 37 | D30: =Reference!B340 -> 0 | E30: =Reference!C340 -> 0 | F30: =Reference!D340 -> 0 | G30: =Reference!E340 -> 0 | H30: =Reference!F340 -> 0 | I30: =Reference!G340 -> 0 | J30: 0 | L30: =Test!B340 -> 0 | M30: =Test!C340 -> 0 | N30: =Test!D340 -> 0 | O30: =Test!E340 -> 0 | P30: =Test!F340 -> 0 | Q30: =Test!G340 -> 0 | R30: 0
B31: RitualDance | C31: 22 | D31: =Reference!B341 -> 0 | E31: =Reference!C341 -> 0 | F31: =Reference!D341 -> 0 | G31: =Reference!E341 -> 0 | H31: =Reference!F341 -> 0 | I31: =Reference!G341 -> 0 | J31: 0 | L31: =Test!B341 -> 0 | M31: =Test!C341 -> 0 | N31: =Test!D341 -> 0 | O31: =Test!E341 -> 0 | P31: =Test!F341 -> 0 | Q31: =Test!G341 -> 0 | R31: 0 | V31: =bdrate($D31:$D34,E31:E34,$L31:$L34,M31:M34) ->  | W31: =bdrate($D31:$D34,F31:F34,$L31:$L34,N31:N34) ->  | X31: =bdrate($D31:$D34,G31:G34,$L31:$L34,O31:O34) ->  | Y31: =bdrateOld($D31:$D34,E31:E34,$L31:$L34,M31:M34) ->  | Z31: =bdrateOld($D31:$D34,F31:F34,$L31:$L34,N31:N34) ->  | AA31: =bdrateOld($D31:$D34,G31:G34,$L31:$L34,O31:O34) -> 
C32: 27 | D32: =Reference!B342 -> 0 | E32: =Reference!C342 -> 0 | F32: =Reference!D342 -> 0 | G32: =Reference!E342 -> 0 | H32: =Reference!F342 -> 0 | I32: =Reference!G342 -> 0 | J32: 0 | L32: =Test!B342 -> 0 | M32: =Test!C342 -> 0 | N32: =Test!D342 -> 0 | O32: =Test!E342 -> 0 | P32: =Test!F342 -> 0 | Q32: =Test!G342 -> 0 | R32: 0
C33: 32 | D33: =Reference!B343 -> 0 | E33: =Reference!C343 -> 0 | F33: =Reference!D343 -> 0 | G33: =Reference!E343 -> 0 | H33: =Reference!F343 -> 0 | I33: =Reference!G343 -> 0 | J33: 0 | L33: =Test!B343 -> 0 | M33: =Test!C343 -> 0 | N33: =Test!D343 -> 0 | O33: =Test!E343 -> 0 | P33: =Test!F343 -> 0 | Q33: =Test!G343 -> 0 | R33: 0
C34: 37 | D34: =Reference!B344 -> 0 | E34: =Reference!C344 -> 0 | F34: =Reference!D344 -> 0 | G34: =Reference!E344 -> 0 | H34: =Reference!F344 -> 0 | I34: =Reference!G344 -> 0 | J34: 0 | L34: =Test!B344 -> 0 | M34: =Test!C344 -> 0 | N34: =Test!D344 -> 0 | O34: =Test!E344 -> 0 | P34: =Test!F344 -> 0 | Q34: =Test!G344 -> 0 | R34: 0
B35: Cactus | C35: 22 | D35: =Reference!B345 -> 0 | E35: =Reference!C345 -> 0 | F35: =Reference!D345 -> 0 | G35: =Reference!E345 -> 0 | H35: =Reference!F345 -> 0 | I35: =Reference!G345 -> 0 | J35: 0 | L35: =Test!B345 -> 0 | M35: =Test!C345 -> 0 | N35: =Test!D345 -> 0 | O35: =Test!E345 -> 0 | P35: =Test!F345 -> 0 | Q35: =Test!G345 -> 0 | R35: 0 | V35: =bdrate($D35:$D38,E35:E38,$L35:$L38,M35:M38) ->  | W35: =bdrate($D35:$D38,F35:F38,$L35:$L38,N35:N38) ->  | X35: =bdrate($D35:$D38,G35:G38,$L35:$L38,O35:O38) ->  | Y35: =bdrateOld($D35:$D38,E35:E38,$L35:$L38,M35:M38) ->  | Z35: =bdrateOld($D35:$D38,F35:F38,$L35:$L38,N35:N38) ->  | AA35: =bdrateOld($D35:$D38,G35:G38,$L35:$L38,O35:O38) -> 
C36: 27 | D36: =Reference!B346 -> 0 | E36: =Reference!C346 -> 0 | F36: =Reference!D346 -> 0 | G36: =Reference!E346 -> 0 | H36: =Reference!F346 -> 0 | I36: =Reference!G346 -> 0 | J36: 0 | L36: =Test!B346 -> 0 | M36: =Test!C346 -> 0 | N36: =Test!D346 -> 0 | O36: =Test!E346 -> 0 | P36: =Test!F346 -> 0 | Q36: =Test!G346 -> 0 | R36: 0
C37: 32 | D37: =Reference!B347 -> 0 | E37: =Reference!C347 -> 0 | F37: =Reference!D347 -> 0 | G37: =Reference!E347 -> 0 | H37: =Reference!F347 -> 0 | I37: =Reference!G347 -> 0 | J37: 0 | L37: =Test!B347 -> 0 | M37: =Test!C347 -> 0 | N37: =Test!D347 -> 0 | O37: =Test!E347 -> 0 | P37: =Test!F347 -> 0 | Q37: =Test!G347 -> 0 | R37: 0
C38: 37 | D38: =Reference!B348 -> 0 | E38: =Reference!C348 -> 0 | F38: =Reference!D348 -> 0 | G38: =Reference!E348 -> 0 | H38: =Reference!F348 -> 0 | I38: =Reference!G348 -> 0 | J38: 0 | L38: =Test!B348 -> 0 | M38: =Test!C348 -> 0 | N38: =Test!D348 -> 0 | O38: =Test!E348 -> 0 | P38: =Test!F348 -> 0 | Q38: =Test!G348 -> 0 | R38: 0
B39: BasketballDrive | C39: 22 | D39: =Reference!B349 -> 0 | E39: =Reference!C349 -> 0 | F39: =Reference!D349 -> 0 | G39: =Reference!E349 -> 0 | H39: =Reference!F349 -> 0 | I39: =Reference!G349 -> 0 | J39: 0 | L39: =Test!B349 -> 0 | M39: =Test!C349 -> 0 | N39: =Test!D349 -> 0 | O39: =Test!E349 -> 0 | P39: =Test!F349 -> 0 | Q39: =Test!G349 -> 0 | R39: 0 | V39: =bdrate($D39:$D42,E39:E42,$L39:$L42,M39:M42) ->  | W39: =bdrate($D39:$D42,F39:F42,$L39:$L42,N39:N42) ->  | X39: =bdrate($D39:$D42,G39:G42,$L39:$L42,O39:O42) ->  | Y39: =bdrateOld($D39:$D42,E39:E42,$L39:$L42,M39:M42) ->  | Z39: =bdrateOld($D39:$D42,F39:F42,$L39:$L42,N39:N42) ->  | AA39: =bdrateOld($D39:$D42,G39:G42,$L39:$L42,O39:O42) -> 
C40: 27 | D40: =Reference!B350 -> 0 | E40: =Reference!C350 -> 0 | F40: =Reference!D350 -> 0 | G40: =Reference!E350 -> 0 | H40: =Reference!F350 -> 0 | I40: =Reference!G350 -> 0 | J40: 0 | L40: =Test!B350 -> 0 | M40: =Test!C350 -> 0 | N40: =Test!D350 -> 0 | O40: =Test!E350 -> 0 | P40: =Test!F350 -> 0 | Q40: =Test!G350 -> 0 | R40: 0
C41: 32 | D41: =Reference!B351 -> 0 | E41: =Reference!C351 -> 0 | F41: =Reference!D351 -> 0 | G41: =Reference!E351 -> 0 | H41: =Reference!F351 -> 0 | I41: =Reference!G351 -> 0 | J41: 0 | L41: =Test!B351 -> 0 | M41: =Test!C351 -> 0 | N41: =Test!D351 -> 0 | O41: =Test!E351 -> 0 | P41: =Test!F351 -> 0 | Q41: =Test!G351 -> 0 | R41: 0
C42: 37 | D42: =Reference!B352 -> 0 | E42: =Reference!C352 -> 0 | F42: =Reference!D352 -> 0 | G42: =Reference!E352 -> 0 | H42: =Reference!F352 -> 0 | I42: =Reference!G352 -> 0 | J42: 0 | L42: =Test!B352 -> 0 | M42: =Test!C352 -> 0 | N42: =Test!D352 -> 0 | O42: =Test!E352 -> 0 | P42: =Test!F352 -> 0 | Q42: =Test!G352 -> 0 | R42: 0
B43: BQTerrace | C43: 22 | D43: =Reference!B353 -> 0 | E43: =Reference!C353 -> 0 | F43: =Reference!D353 -> 0 | G43: =Reference!E353 -> 0 | H43: =Reference!F353 -> 0 | I43: =Reference!G353 -> 0 | J43: 0 | L43: =Test!B353 -> 0 | M43: =Test!C353 -> 0 | N43: =Test!D353 -> 0 | O43: =Test!E353 -> 0 | P43: =Test!F353 -> 0 | Q43: =Test!G353 -> 0 | R43: 0 | V43: =bdrate($D43:$D46,E43:E46,$L43:$L46,M43:M46) ->  | W43: =bdrate($D43:$D46,F43:F46,$L43:$L46,N43:N46) ->  | X43: =bdrate($D43:$D46,G43:G46,$L43:$L46,O43:O46) ->  | Y43: =bdrateOld($D43:$D46,E43:E46,$L43:$L46,M43:M46) ->  | Z43: =bdrateOld($D43:$D46,F43:F46,$L43:$L46,N43:N46) ->  | AA43: =bdrateOld($D43:$D46,G43:G46,$L43:$L46,O43:O46) -> 
C44: 27 | D44: =Reference!B354 -> 0 | E44: =Reference!C354 -> 0 | F44: =Reference!D354 -> 0 | G44: =Reference!E354 -> 0 | H44: =Reference!F354 -> 0 | I44: =Reference!G354 -> 0 | J44: 0 | L44: =Test!B354 -> 0 | M44: =Test!C354 -> 0 | N44: =Test!D354 -> 0 | O44: =Test!E354 -> 0 | P44: =Test!F354 -> 0 | Q44: =Test!G354 -> 0 | R44: 0
C45: 32 | D45: =Reference!B355 -> 0 | E45: =Reference!C355 -> 0 | F45: =Reference!D355 -> 0 | G45: =Reference!E355 -> 0 | H45: =Reference!F355 -> 0 | I45: =Reference!G355 -> 0 | J45: 0 | L45: =Test!B355 -> 0 | M45: =Test!C355 -> 0 | N45: =Test!D355 -> 0 | O45: =Test!E355 -> 0 | P45: =Test!F355 -> 0 | Q45: =Test!G355 -> 0 | R45: 0
C46: 37 | D46: =Reference!B356 -> 0 | E46: =Reference!C356 -> 0 | F46: =Reference!D356 -> 0 | G46: =Reference!E356 -> 0 | H46: =Reference!F356 -> 0 | I46: =Reference!G356 -> 0 | J46: 0 | L46: =Test!B356 -> 0 | M46: =Test!C356 -> 0 | N46: =Test!D356 -> 0 | O46: =Test!E356 -> 0 | P46: =Test!F356 -> 0 | Q46: =Test!G356 -> 0 | R46: 0
A47: Class C | B47: BasketballDrill | C47: 22 | D47: =Reference!B357 -> 0 | E47: =Reference!C357 -> 0 | F47: =Reference!D357 -> 0 | G47: =Reference!E357 -> 0 | H47: =Reference!F357 -> 0 | I47: =Reference!G357 -> 0 | J47: 0 | L47: =Test!B357 -> 0 | M47: =Test!C357 -> 0 | N47: =Test!D357 -> 0 | O47: =Test!E357 -> 0 | P47: =Test!F357 -> 0 | Q47: =Test!G357 -> 0 | R47: 0 | S47: =P47/H47 ->  | V47: =bdrate($D47:$D50,E47:E50,$L47:$L50,M47:M50) ->  | W47: =bdrate($D47:$D50,F47:F50,$L47:$L50,N47:N50) ->  | X47: =bdrate($D47:$D50,G47:G50,$L47:$L50,O47:O50) ->  | Y47: =bdrateOld($D47:$D50,E47:E50,$L47:$L50,M47:M50) ->  | Z47: =bdrateOld($D47:$D50,F47:F50,$L47:$L50,N47:N50) ->  | AA47: =bdrateOld($D47:$D50,G47:G50,$L47:$L50,O47:O50) -> 
A48: WVGA | C48: 27 | D48: =Reference!B358 -> 0 | E48: =Reference!C358 -> 0 | F48: =Reference!D358 -> 0 | G48: =Reference!E358 -> 0 | H48: =Reference!F358 -> 0 | I48: =Reference!G358 -> 0 | J48: 0 | L48: =Test!B358 -> 0 | M48: =Test!C358 -> 0 | N48: =Test!D358 -> 0 | O48: =Test!E358 -> 0 | P48: =Test!F358 -> 0 | Q48: =Test!G358 -> 0 | R48: 0
C49: 32 | D49: =Reference!B359 -> 0 | E49: =Reference!C359 -> 0 | F49: =Reference!D359 -> 0 | G49: =Reference!E359 -> 0 | H49: =Reference!F359 -> 0 | I49: =Reference!G359 -> 0 | J49: 0 | L49: =Test!B359 -> 0 | M49: =Test!C359 -> 0 | N49: =Test!D359 -> 0 | O49: =Test!E359 -> 0 | P49: =Test!F359 -> 0 | Q49: =Test!G359 -> 0 | R49: 0
C50: 37 | D50: =Reference!B360 -> 0 | E50: =Reference!C360 -> 0 | F50: =Reference!D360 -> 0 | G50: =Reference!E360 -> 0 | H50: =Reference!F360 -> 0 | I50: =Reference!G360 -> 0 | J50: 0 | L50: =Test!B360 -> 0 | M50: =Test!C360 -> 0 | N50: =Test!D360 -> 0 | O50: =Test!E360 -> 0 | P50: =Test!F360 -> 0 | Q50: =Test!G360 -> 0 | R50: 0
B51: BQMall | C51: 22 | D51: =Reference!B361 -> 0 | E51: =Reference!C361 -> 0 | F51: =Reference!D361 -> 0 | G51: =Reference!E361 -> 0 | H51: =Reference!F361 -> 0 | I51: =Reference!G361 -> 0 | J51: 0 | L51: =Test!B361 -> 0 | M51: =Test!C361 -> 0 | N51: =Test!D361 -> 0 | O51: =Test!E361 -> 0 | P51: =Test!F361 -> 0 | Q51: =Test!G361 -> 0 | R51: 0 | V51: =bdrate($D51:$D54,E51:E54,$L51:$L54,M51:M54) ->  | W51: =bdrate($D51:$D54,F51:F54,$L51:$L54,N51:N54) ->  | X51: =bdrate($D51:$D54,G51:G54,$L51:$L54,O51:O54) ->  | Y51: =bdrateOld($D51:$D54,E51:E54,$L51:$L54,M51:M54) ->  | Z51: =bdrateOld($D51:$D54,F51:F54,$L51:$L54,N51:N54) ->  | AA51: =bdrateOld($D51:$D54,G51:G54,$L51:$L54,O51:O54) -> 
C52: 27 | D52: =Reference!B362 -> 0 | E52: =Reference!C362 -> 0 | F52: =Reference!D362 -> 0 | G52: =Reference!E362 -> 0 | H52: =Reference!F362 -> 0 | I52: =Reference!G362 -> 0 | J52: 0 | L52: =Test!B362 -> 0 | M52: =Test!C362 -> 0 | N52: =Test!D362 -> 0 | O52: =Test!E362 -> 0 | P52: =Test!F362 -> 0 | Q52: =Test!G362 -> 0 | R52: 0
C53: 32 | D53: =Reference!B363 -> 0 | E53: =Reference!C363 -> 0 | F53: =Reference!D363 -> 0 | G53: =Reference!E363 -> 0 | H53: =Reference!F363 -> 0 | I53: =Reference!G363 -> 0 | J53: 0 | L53: =Test!B363 -> 0 | M53: =Test!C363 -> 0 | N53: =Test!D363 -> 0 | O53: =Test!E363 -> 0 | P53: =Test!F363 -> 0 | Q53: =Test!G363 -> 0 | R53: 0
C54: 37 | D54: =Reference!B364 -> 0 | E54: =Reference!C364 -> 0 | F54: =Reference!D364 -> 0 | G54: =Reference!E364 -> 0 | H54: =Reference!F364 -> 0 | I54: =Reference!G364 -> 0 | J54: 0 | L54: =Test!B364 -> 0 | M54: =Test!C364 -> 0 | N54: =Test!D364 -> 0 | O54: =Test!E364 -> 0 | P54: =Test!F364 -> 0 | Q54: =Test!G364 -> 0 | R54: 0
B55: PartyScene | C55: 22 | D55: =Reference!B365 -> 0 | E55: =Reference!C365 -> 0 | F55: =Reference!D365 -> 0 | G55: =Reference!E365 -> 0 | H55: =Reference!F365 -> 0 | I55: =Reference!G365 -> 0 | J55: 0 | L55: =Test!B365 -> 0 | M55: =Test!C365 -> 0 | N55: =Test!D365 -> 0 | O55: =Test!E365 -> 0 | P55: =Test!F365 -> 0 | Q55: =Test!G365 -> 0 | R55: 0 | V55: =bdrate($D55:$D58,E55:E58,$L55:$L58,M55:M58) ->  | W55: =bdrate($D55:$D58,F55:F58,$L55:$L58,N55:N58) ->  | X55: =bdrate($D55:$D58,G55:G58,$L55:$L58,O55:O58) ->  | Y55: =bdrateOld($D55:$D58,E55:E58,$L55:$L58,M55:M58) ->  | Z55: =bdrateOld($D55:$D58,F55:F58,$L55:$L58,N55:N58) ->  | AA55: =bdrateOld($D55:$D58,G55:G58,$L55:$L58,O55:O58) -> 
C56: 27 | D56: =Reference!B366 -> 0 | E56: =Reference!C366 -> 0 | F56: =Reference!D366 -> 0 | G56: =Reference!E366 -> 0 | H56: =Reference!F366 -> 0 | I56: =Reference!G366 -> 0 | J56: 0 | L56: =Test!B366 -> 0 | M56: =Test!C366 -> 0 | N56: =Test!D366 -> 0 | O56: =Test!E366 -> 0 | P56: =Test!F366 -> 0 | Q56: =Test!G366 -> 0 | R56: 0
C57: 32 | D57: =Reference!B367 -> 0 | E57: =Reference!C367 -> 0 | F57: =Reference!D367 -> 0 | G57: =Reference!E367 -> 0 | H57: =Reference!F367 -> 0 | I57: =Reference!G367 -> 0 | J57: 0 | L57: =Test!B367 -> 0 | M57: =Test!C367 -> 0 | N57: =Test!D367 -> 0 | O57: =Test!E367 -> 0 | P57: =Test!F367 -> 0 | Q57: =Test!G367 -> 0 | R57: 0
C58: 37 | D58: =Reference!B368 -> 0 | E58: =Reference!C368 -> 0 | F58: =Reference!D368 -> 0 | G58: =Reference!E368 -> 0 | H58: =Reference!F368 -> 0 | I58: =Reference!G368 -> 0 | J58: 0 | L58: =Test!B368 -> 0 | M58: =Test!C368 -> 0 | N58: =Test!D368 -> 0 | O58: =Test!E368 -> 0 | P58: =Test!F368 -> 0 | Q58: =Test!G368 -> 0 | R58: 0
B59: RaceHorses | C59: 22 | D59: =Reference!B369 -> 0 | E59: =Reference!C369 -> 0 | F59: =Reference!D369 -> 0 | G59: =Reference!E369 -> 0 | H59: =Reference!F369 -> 0 | I59: =Reference!G369 -> 0 | J59: 0 | L59: =Test!B369 -> 0 | M59: =Test!C369 -> 0 | N59: =Test!D369 -> 0 | O59: =Test!E369 -> 0 | P59: =Test!F369 -> 0 | Q59: =Test!G369 -> 0 | R59: 0 | V59: =bdrate($D59:$D62,E59:E62,$L59:$L62,M59:M62) ->  | W59: =bdrate($D59:$D62,F59:F62,$L59:$L62,N59:N62) ->  | X59: =bdrate($D59:$D62,G59:G62,$L59:$L62,O59:O62) ->  | Y59: =bdrateOld($D59:$D62,E59:E62,$L59:$L62,M59:M62) ->  | Z59: =bdrateOld($D59:$D62,F59:F62,$L59:$L62,N59:N62) ->  | AA59: =bdrateOld($D59:$D62,G59:G62,$L59:$L62,O59:O62) -> 
C60: 27 | D60: =Reference!B370 -> 0 | E60: =Reference!C370 -> 0 | F60: =Reference!D370 -> 0 | G60: =Reference!E370 -> 0 | H60: =Reference!F370 -> 0 | I60: =Reference!G370 -> 0 | J60: 0 | L60: =Test!B370 -> 0 | M60: =Test!C370 -> 0 | N60: =Test!D370 -> 0 | O60: =Test!E370 -> 0 | P60: =Test!F370 -> 0 | Q60: =Test!G370 -> 0 | R60: 0
C61: 32 | D61: =Reference!B371 -> 0 | E61: =Reference!C371 -> 0 | F61: =Reference!D371 -> 0 | G61: =Reference!E371 -> 0 | H61: =Reference!F371 -> 0 | I61: =Reference!G371 -> 0 | J61: 0 | L61: =Test!B371 -> 0 | M61: =Test!C371 -> 0 | N61: =Test!D371 -> 0 | O61: =Test!E371 -> 0 | P61: =Test!F371 -> 0 | Q61: =Test!G371 -> 0 | R61: 0
C62: 37 | D62: =Reference!B372 -> 0 | E62: =Reference!C372 -> 0 | F62: =Reference!D372 -> 0 | G62: =Reference!E372 -> 0 | H62: =Reference!F372 -> 0 | I62: =Reference!G372 -> 0 | J62: 0 | L62: =Test!B372 -> 0 | M62: =Test!C372 -> 0 | N62: =Test!D372 -> 0 | O62: =Test!E372 -> 0 | P62: =Test!F372 -> 0 | Q62: =Test!G372 -> 0 | R62: 0
A63: Class D | B63: BasketballPass | C63: =C59 -> 22 | D63: =Reference!B373 -> 0 | E63: =Reference!C373 -> 0 | F63: =Reference!D373 -> 0 | G63: =Reference!E373 -> 0 | H63: =Reference!F373 -> 0 | I63: =Reference!G373 -> 0 | J63: 0 | L63: =Test!B373 -> 0 | M63: =Test!C373 -> 0 | N63: =Test!D373 -> 0 | O63: =Test!E373 -> 0 | P63: =Test!F373 -> 0 | Q63: =Test!G373 -> 0 | R63: 0 | S63: =P63/H63 ->  | V63: =bdrate($D63:$D66,E63:E66,$L63:$L66,M63:M66) ->  | W63: =bdrate($D63:$D66,F63:F66,$L63:$L66,N63:N66) ->  | X63: =bdrate($D63:$D66,G63:G66,$L63:$L66,O63:O66) ->  | Y63: =bdrateOld($D63:$D66,E63:E66,$L63:$L66,M63:M66) ->  | Z63: =bdrateOld($D63:$D66,F63:F66,$L63:$L66,N63:N66) ->  | AA63: =bdrateOld($D63:$D66,G63:G66,$L63:$L66,O63:O66) -> 
A64: WQVGA | C64: =C60 -> 27 | D64: =Reference!B374 -> 0 | E64: =Reference!C374 -> 0 | F64: =Reference!D374 -> 0 | G64: =Reference!E374 -> 0 | H64: =Reference!F374 -> 0 | I64: =Reference!G374 -> 0 | J64: 0 | L64: =Test!B374 -> 0 | M64: =Test!C374 -> 0 | N64: =Test!D374 -> 0 | O64: =Test!E374 -> 0 | P64: =Test!F374 -> 0 | Q64: =Test!G374 -> 0 | R64: 0 | S64: =P64/H64 -> 
C65: =C61 -> 32 | D65: =Reference!B375 -> 0 | E65: =Reference!C375 -> 0 | F65: =Reference!D375 -> 0 | G65: =Reference!E375 -> 0 | H65: =Reference!F375 -> 0 | I65: =Reference!G375 -> 0 | J65: 0 | L65: =Test!B375 -> 0 | M65: =Test!C375 -> 0 | N65: =Test!D375 -> 0 | O65: =Test!E375 -> 0 | P65: =Test!F375 -> 0 | Q65: =Test!G375 -> 0 | R65: 0 | S65: =P65/H65 -> 
C66: =C62 -> 37 | D66: =Reference!B376 -> 0 | E66: =Reference!C376 -> 0 | F66: =Reference!D376 -> 0 | G66: =Reference!E376 -> 0 | H66: =Reference!F376 -> 0 | I66: =Reference!G376 -> 0 | J66: 0 | L66: =Test!B376 -> 0 | M66: =Test!C376 -> 0 | N66: =Test!D376 -> 0 | O66: =Test!E376 -> 0 | P66: =Test!F376 -> 0 | Q66: =Test!G376 -> 0 | R66: 0 | S66: =P66/H66 -> 
B67: BQSquare | C67: 22 | D67: =Reference!B377 -> 0 | E67: =Reference!C377 -> 0 | F67: =Reference!D377 -> 0 | G67: =Reference!E377 -> 0 | H67: =Reference!F377 -> 0 | I67: =Reference!G377 -> 0 | J67: 0 | L67: =Test!B377 -> 0 | M67: =Test!C377 -> 0 | N67: =Test!D377 -> 0 | O67: =Test!E377 -> 0 | P67: =Test!F377 -> 0 | Q67: =Test!G377 -> 0 | R67: 0 | V67: =bdrate($D67:$D70,E67:E70,$L67:$L70,M67:M70) ->  | W67: =bdrate($D67:$D70,F67:F70,$L67:$L70,N67:N70) ->  | X67: =bdrate($D67:$D70,G67:G70,$L67:$L70,O67:O70) ->  | Y67: =bdrateOld($D67:$D70,E67:E70,$L67:$L70,M67:M70) ->  | Z67: =bdrateOld($D67:$D70,F67:F70,$L67:$L70,N67:N70) ->  | AA67: =bdrateOld($D67:$D70,G67:G70,$L67:$L70,O67:O70) -> 
C68: 27 | D68: =Reference!B378 -> 0 | E68: =Reference!C378 -> 0 | F68: =Reference!D378 -> 0 | G68: =Reference!E378 -> 0 | H68: =Reference!F378 -> 0 | I68: =Reference!G378 -> 0 | J68: 0 | L68: =Test!B378 -> 0 | M68: =Test!C378 -> 0 | N68: =Test!D378 -> 0 | O68: =Test!E378 -> 0 | P68: =Test!F378 -> 0 | Q68: =Test!G378 -> 0 | R68: 0
C69: 32 | D69: =Reference!B379 -> 0 | E69: =Reference!C379 -> 0 | F69: =Reference!D379 -> 0 | G69: =Reference!E379 -> 0 | H69: =Reference!F379 -> 0 | I69: =Reference!G379 -> 0 | J69: 0 | L69: =Test!B379 -> 0 | M69: =Test!C379 -> 0 | N69: =Test!D379 -> 0 | O69: =Test!E379 -> 0 | P69: =Test!F379 -> 0 | Q69: =Test!G379 -> 0 | R69: 0
C70: 37 | D70: =Reference!B380 -> 110.6152 | E70: =Reference!C380 -> 28.6753 | F70: =Reference!D380 -> 38.6221 | G70: =Reference!E380 -> 39.5317 | H70: =Reference!F380 -> 3822.02 | I70: =Reference!G380 -> 2.4 | J70: 1.061672222 | L70: =Test!B380 -> 0 | M70: =Test!C380 -> 0 | N70: =Test!D380 -> 0 | O70: =Test!E380 -> 0 | P70: =Test!F380 -> 0 | Q70: =Test!G380 -> 0 | R70: 0 | S70: 0 | T70: 0
B71: BlowingBubbles | C71: 22 | D71: =Reference!B381 -> 0 | E71: =Reference!C381 -> 0 | F71: =Reference!D381 -> 0 | G71: =Reference!E381 -> 0 | H71: =Reference!F381 -> 0 | I71: =Reference!G381 -> 0 | J71: 0 | L71: =Test!B381 -> 0 | M71: =Test!C381 -> 0 | N71: =Test!D381 -> 0 | O71: =Test!E381 -> 0 | P71: =Test!F381 -> 0 | Q71: =Test!G381 -> 0 | R71: 0 | S71: =P71/H71 ->  | V71: =bdrate($D71:$D74,E71:E74,$L71:$L74,M71:M74) ->  | W71: =bdrate($D71:$D74,F71:F74,$L71:$L74,N71:N74) ->  | X71: =bdrate($D71:$D74,G71:G74,$L71:$L74,O71:O74) ->  | Y71: =bdrateOld($D71:$D74,E71:E74,$L71:$L74,M71:M74) ->  | Z71: =bdrateOld($D71:$D74,F71:F74,$L71:$L74,N71:N74) ->  | AA71: =bdrateOld($D71:$D74,G71:G74,$L71:$L74,O71:O74) -> 
C72: 27 | D72: =Reference!B382 -> 0 | E72: =Reference!C382 -> 0 | F72: =Reference!D382 -> 0 | G72: =Reference!E382 -> 0 | H72: =Reference!F382 -> 0 | I72: =Reference!G382 -> 0 | J72: 0 | L72: =Test!B382 -> 0 | M72: =Test!C382 -> 0 | N72: =Test!D382 -> 0 | O72: =Test!E382 -> 0 | P72: =Test!F382 -> 0 | Q72: =Test!G382 -> 0 | R72: 0
C73: 32 | D73: =Reference!B383 -> 0 | E73: =Reference!C383 -> 0 | F73: =Reference!D383 -> 0 | G73: =Reference!E383 -> 0 | H73: =Reference!F383 -> 0 | I73: =Reference!G383 -> 0 | J73: 0 | L73: =Test!B383 -> 0 | M73: =Test!C383 -> 0 | N73: =Test!D383 -> 0 | O73: =Test!E383 -> 0 | P73: =Test!F383 -> 0 | Q73: =Test!G383 -> 0 | R73: 0
C74: 37 | D74: =Reference!B384 -> 146.5776 | E74: =Reference!C384 -> 28.3381 | F74: =Reference!D384 -> 35.1131 | G74: =Reference!E384 -> 35.6527 | H74: =Reference!F384 -> 4102.41 | I74: =Reference!G384 -> 1.91 | J74: 1.139558333 | L74: =Test!B384 -> 0 | M74: =Test!C384 -> 0 | N74: =Test!D384 -> 0 | O74: =Test!E384 -> 0 | P74: =Test!F384 -> 0 | Q74: =Test!G384 -> 0 | R74: 0 | S74: 0 | T74: 0
B75: RaceHorses | C75: 22 | D75: =Reference!B385 -> 0 | E75: =Reference!C385 -> 0 | F75: =Reference!D385 -> 0 | G75: =Reference!E385 -> 0 | H75: =Reference!F385 -> 0 | I75: =Reference!G385 -> 0 | J75: 0 | L75: =Test!B385 -> 0 | M75: =Test!C385 -> 0 | N75: =Test!D385 -> 0 | O75: =Test!E385 -> 0 | P75: =Test!F385 -> 0 | Q75: =Test!G385 -> 0 | R75: 0 | V75: =bdrate($D75:$D78,E75:E78,$L75:$L78,M75:M78) ->  | W75: =bdrate($D75:$D78,F75:F78,$L75:$L78,N75:N78) ->  | X75: =bdrate($D75:$D78,G75:G78,$L75:$L78,O75:O78) ->  | Y75: =bdrateOld($D75:$D78,E75:E78,$L75:$L78,M75:M78) ->  | Z75: =bdrateOld($D75:$D78,F75:F78,$L75:$L78,N75:N78) ->  | AA75: =bdrateOld($D75:$D78,G75:G78,$L75:$L78,O75:O78) -> 
C76: 27 | D76: =Reference!B386 -> 0 | E76: =Reference!C386 -> 0 | F76: =Reference!D386 -> 0 | G76: =Reference!E386 -> 0 | H76: =Reference!F386 -> 0 | I76: =Reference!G386 -> 0 | J76: 0 | L76: =Test!B386 -> 0 | M76: =Test!C386 -> 0 | N76: =Test!D386 -> 0 | O76: =Test!E386 -> 0 | P76: =Test!F386 -> 0 | Q76: =Test!G386 -> 0 | R76: 0
C77: 32 | D77: =Reference!B387 -> 0 | E77: =Reference!C387 -> 0 | F77: =Reference!D387 -> 0 | G77: =Reference!E387 -> 0 | H77: =Reference!F387 -> 0 | I77: =Reference!G387 -> 0 | J77: 0 | L77: =Test!B387 -> 0 | M77: =Test!C387 -> 0 | N77: =Test!D387 -> 0 | O77: =Test!E387 -> 0 | P77: =Test!F387 -> 0 | Q77: =Test!G387 -> 0 | R77: 0
C78: 37 | D78: =Reference!B388 -> 135.26 | E78: =Reference!C388 -> 29.9206 | F78: =Reference!D388 -> 35.525 | G78: =Reference!E388 -> 36.7518 | H78: =Reference!F388 -> 3657.4 | I78: =Reference!G388 -> 1.64 | J78: 1.015944444 | L78: =Test!B388 -> 0 | M78: =Test!C388 -> 0 | N78: =Test!D388 -> 0 | O78: =Test!E388 -> 0 | P78: =Test!F388 -> 0 | Q78: =Test!G388 -> 0 | R78: 0 | S78: 0 | T78: 0
A79: ClassE | B79: FourPeople | C79: 22 | D79: =Reference!B389 -> 0 | E79: =Reference!C389 -> 0 | F79: =Reference!D389 -> 0 | G79: =Reference!E389 -> 0 | H79: =Reference!F389 -> 0 | I79: =Reference!G389 -> 0 | J79: 0 | L79: =Test!B389 -> 0 | M79: =Test!C389 -> 0 | N79: =Test!D389 -> 0 | O79: =Test!E389 -> 0 | P79: =Test!F389 -> 0 | Q79: =Test!G389 -> 0 | R79: 0 | V79: =bdrate($D79:$D82,E79:E82,$L79:$L82,M79:M82) ->  | W79: =bdrate($D79:$D82,F79:F82,$L79:$L82,N79:N82) ->  | X79: =bdrate($D79:$D82,G79:G82,$L79:$L82,O79:O82) ->  | Y79: =bdrateOld($D79:$D82,E79:E82,$L79:$L82,M79:M82) ->  | Z79: =bdrateOld($D79:$D82,F79:F82,$L79:$L82,N79:N82) ->  | AA79: =bdrateOld($D79:$D82,G79:G82,$L79:$L82,O79:O82) -> 
A80: 720p | C80: 27 | D80: =Reference!B390 -> 0 | E80: =Reference!C390 -> 0 | F80: =Reference!D390 -> 0 | G80: =Reference!E390 -> 0 | H80: =Reference!F390 -> 0 | I80: =Reference!G390 -> 0 | J80: 0 | L80: =Test!B390 -> 0 | M80: =Test!C390 -> 0 | N80: =Test!D390 -> 0 | O80: =Test!E390 -> 0 | P80: =Test!F390 -> 0 | Q80: =Test!G390 -> 0 | R80: =P80/3600 -> 0
C81: 32 | D81: =Reference!B391 -> 0 | E81: =Reference!C391 -> 0 | F81: =Reference!D391 -> 0 | G81: =Reference!E391 -> 0 | H81: =Reference!F391 -> 0 | I81: =Reference!G391 -> 0 | J81: 0 | L81: =Test!B391 -> 0 | M81: =Test!C391 -> 0 | N81: =Test!D391 -> 0 | O81: =Test!E391 -> 0 | P81: =Test!F391 -> 0 | Q81: =Test!G391 -> 0 | R81: 0
C82: 37 | D82: =Reference!B392 -> 0 | E82: =Reference!C392 -> 0 | F82: =Reference!D392 -> 0 | G82: =Reference!E392 -> 0 | H82: =Reference!F392 -> 0 | I82: =Reference!G392 -> 0 | J82: 0 | L82: =Test!B392 -> 0 | M82: =Test!C392 -> 0 | N82: =Test!D392 -> 0 | O82: =Test!E392 -> 0 | P82: =Test!F392 -> 0 | Q82: =Test!G392 -> 0 | R82: 0
B83: Johnny | C83: 22 | D83: =Reference!B393 -> 0 | E83: =Reference!C393 -> 0 | F83: =Reference!D393 -> 0 | G83: =Reference!E393 -> 0 | H83: =Reference!F393 -> 0 | I83: =Reference!G393 -> 0 | J83: 0 | L83: =Test!B393 -> 0 | M83: =Test!C393 -> 0 | N83: =Test!D393 -> 0 | O83: =Test!E393 -> 0 | P83: =Test!F393 -> 0 | Q83: =Test!G393 -> 0 | R83: 0 | V83: =bdrate($D83:$D86,E83:E86,$L83:$L86,M83:M86) ->  | W83: =bdrate($D83:$D86,F83:F86,$L83:$L86,N83:N86) ->  | X83: =bdrate($D83:$D86,G83:G86,$L83:$L86,O83:O86) ->  | Y83: =bdrateOld($D83:$D86,E83:E86,$L83:$L86,M83:M86) ->  | Z83: =bdrateOld($D83:$D86,F83:F86,$L83:$L86,N83:N86) ->  | AA83: =bdrateOld($D83:$D86,G83:G86,$L83:$L86,O83:O86) -> 
C84: 27 | D84: =Reference!B394 -> 0 | E84: =Reference!C394 -> 0 | F84: =Reference!D394 -> 0 | G84: =Reference!E394 -> 0 | H84: =Reference!F394 -> 0 | I84: =Reference!G394 -> 0 | J84: 0 | L84: =Test!B394 -> 0 | M84: =Test!C394 -> 0 | N84: =Test!D394 -> 0 | O84: =Test!E394 -> 0 | P84: =Test!F394 -> 0 | Q84: =Test!G394 -> 0 | R84: 0
C85: 32 | D85: =Reference!B395 -> 0 | E85: =Reference!C395 -> 0 | F85: =Reference!D395 -> 0 | G85: =Reference!E395 -> 0 | H85: =Reference!F395 -> 0 | I85: =Reference!G395 -> 0 | J85: 0 | L85: =Test!B395 -> 0 | M85: =Test!C395 -> 0 | N85: =Test!D395 -> 0 | O85: =Test!E395 -> 0 | P85: =Test!F395 -> 0 | Q85: =Test!G395 -> 0 | R85: 0
C86: 37 | D86: =Reference!B396 -> 0 | E86: =Reference!C396 -> 0 | F86: =Reference!D396 -> 0 | G86: =Reference!E396 -> 0 | H86: =Reference!F396 -> 0 | I86: =Reference!G396 -> 0 | J86: 0 | L86: =Test!B396 -> 0 | M86: =Test!C396 -> 0 | N86: =Test!D396 -> 0 | O86: =Test!E396 -> 0 | P86: =Test!F396 -> 0 | Q86: =Test!G396 -> 0 | R86: 0
B87: KristenAndSara | C87: 22 | D87: =Reference!B397 -> 0 | E87: =Reference!C397 -> 0 | F87: =Reference!D397 -> 0 | G87: =Reference!E397 -> 0 | H87: =Reference!F397 -> 0 | I87: =Reference!G397 -> 0 | J87: 0 | L87: =Test!B397 -> 0 | M87: =Test!C397 -> 0 | N87: =Test!D397 -> 0 | O87: =Test!E397 -> 0 | P87: =Test!F397 -> 0 | Q87: =Test!G397 -> 0 | R87: 0 | S87: =P87/H87 ->  | V87: =bdrate($D87:$D90,E87:E90,$L87:$L90,M87:M90) ->  | W87: =bdrate($D87:$D90,F87:F90,$L87:$L90,N87:N90) ->  | X87: =bdrate($D87:$D90,G87:G90,$L87:$L90,O87:O90) ->  | Y87: =bdrateOld($D87:$D90,E87:E90,$L87:$L90,M87:M90) ->  | Z87: =bdrateOld($D87:$D90,F87:F90,$L87:$L90,N87:N90) ->  | AA87: =bdrateOld($D87:$D90,G87:G90,$L87:$L90,O87:O90) -> 
C88: 27 | D88: =Reference!B398 -> 0 | E88: =Reference!C398 -> 0 | F88: =Reference!D398 -> 0 | G88: =Reference!E398 -> 0 | H88: =Reference!F398 -> 0 | I88: =Reference!G398 -> 0 | J88: 0 | L88: =Test!B398 -> 0 | M88: =Test!C398 -> 0 | N88: =Test!D398 -> 0 | O88: =Test!E398 -> 0 | P88: =Test!F398 -> 0 | Q88: =Test!G398 -> 0 | R88: 0
C89: 32 | D89: =Reference!B399 -> 0 | E89: =Reference!C399 -> 0 | F89: =Reference!D399 -> 0 | G89: =Reference!E399 -> 0 | H89: =Reference!F399 -> 0 | I89: =Reference!G399 -> 0 | J89: 0 | L89: =Test!B399 -> 0 | M89: =Test!C399 -> 0 | N89: =Test!D399 -> 0 | O89: =Test!E399 -> 0 | P89: =Test!F399 -> 0 | Q89: =Test!G399 -> 0 | R89: 0
C90: 37 | D90: =Reference!B400 -> 0 | E90: =Reference!C400 -> 0 | F90: =Reference!D400 -> 0 | G90: =Reference!E400 -> 0 | H90: =Reference!F400 -> 0 | I90: =Reference!G400 -> 0 | J90: 0 | L90: =Test!B400 -> 0 | M90: =Test!C400 -> 0 | N90: =Test!D400 -> 0 | O90: =Test!E400 -> 0 | P90: =Test!F400 -> 0 | Q90: =Test!G400 -> 0 | R90: 0
A91: ClassF | B91: BasketballDrillText | C91: 22 | D91: =Reference!B401 -> 0 | E91: =Reference!C401 -> 0 | F91: =Reference!D401 -> 0 | G91: =Reference!E401 -> 0 | H91: =Reference!F401 -> 0 | I91: =Reference!G401 -> 0 | J91: 0 | L91: =Test!B401 -> 0 | M91: =Test!C401 -> 0 | N91: =Test!D401 -> 0 | O91: =Test!E401 -> 0 | P91: =Test!F401 -> 0 | Q91: =Test!G401 -> 0 | R91: 0 | V91: =bdrate($D91:$D94,E91:E94,$L91:$L94,M91:M94) ->  | W91: =bdrate($D91:$D94,F91:F94,$L91:$L94,N91:N94) ->  | X91: =bdrate($D91:$D94,G91:G94,$L91:$L94,O91:O94) ->  | Y91: =bdrateOld($D91:$D94,E91:E94,$L91:$L94,M91:M94) ->  | Z91: =bdrateOld($D91:$D94,F91:F94,$L91:$L94,N91:N94) ->  | AA91: =bdrateOld($D91:$D94,G91:G94,$L91:$L94,O91:O94) -> 
C92: 27 | D92: =Reference!B402 -> 0 | E92: =Reference!C402 -> 0 | F92: =Reference!D402 -> 0 | G92: =Reference!E402 -> 0 | H92: =Reference!F402 -> 0 | I92: =Reference!G402 -> 0 | J92: =H92/3600 -> 0 | L92: =Test!B402 -> 0 | M92: =Test!C402 -> 0 | N92: =Test!D402 -> 0 | O92: =Test!E402 -> 0 | P92: =Test!F402 -> 0 | Q92: =Test!G402 -> 0 | R92: 0
C93: 32 | D93: =Reference!B403 -> 0 | E93: =Reference!C403 -> 0 | F93: =Reference!D403 -> 0 | G93: =Reference!E403 -> 0 | H93: =Reference!F403 -> 0 | I93: =Reference!G403 -> 0 | J93: 0 | L93: =Test!B403 -> 0 | M93: =Test!C403 -> 0 | N93: =Test!D403 -> 0 | O93: =Test!E403 -> 0 | P93: =Test!F403 -> 0 | Q93: =Test!G403 -> 0 | R93: 0
C94: 37 | D94: =Reference!B404 -> 0 | E94: =Reference!C404 -> 0 | F94: =Reference!D404 -> 0 | G94: =Reference!E404 -> 0 | H94: =Reference!F404 -> 0 | I94: =Reference!G404 -> 0 | J94: 0 | L94: =Test!B404 -> 0 | M94: =Test!C404 -> 0 | N94: =Test!D404 -> 0 | O94: =Test!E404 -> 0 | P94: =Test!F404 -> 0 | Q94: =Test!G404 -> 0 | R94: 0
B95: ArenaOfValor | C95: 22 | D95: =Reference!B405 -> 0 | E95: =Reference!C405 -> 0 | F95: =Reference!D405 -> 0 | G95: =Reference!E405 -> 0 | H95: =Reference!F405 -> 0 | I95: =Reference!G405 -> 0 | J95: 0 | L95: =Test!B405 -> 0 | M95: =Test!C405 -> 0 | N95: =Test!D405 -> 0 | O95: =Test!E405 -> 0 | P95: =Test!F405 -> 0 | Q95: =Test!G405 -> 0 | R95: 0 | V95: =bdrate($D95:$D98,E95:E98,$L95:$L98,M95:M98) ->  | W95: =bdrate($D95:$D98,F95:F98,$L95:$L98,N95:N98) ->  | X95: =bdrate($D95:$D98,G95:G98,$L95:$L98,O95:O98) ->  | Y95: =bdrateOld($D95:$D98,E95:E98,$L95:$L98,M95:M98) ->  | Z95: =bdrateOld($D95:$D98,F95:F98,$L95:$L98,N95:N98) ->  | AA95: =bdrateOld($D95:$D98,G95:G98,$L95:$L98,O95:O98) -> 
C96: 27 | D96: =Reference!B406 -> 0 | E96: =Reference!C406 -> 0 | F96: =Reference!D406 -> 0 | G96: =Reference!E406 -> 0 | H96: =Reference!F406 -> 0 | I96: =Reference!G406 -> 0 | J96: 0 | L96: =Test!B406 -> 0 | M96: =Test!C406 -> 0 | N96: =Test!D406 -> 0 | O96: =Test!E406 -> 0 | P96: =Test!F406 -> 0 | Q96: =Test!G406 -> 0 | R96: 0
C97: 32 | D97: =Reference!B407 -> 0 | E97: =Reference!C407 -> 0 | F97: =Reference!D407 -> 0 | G97: =Reference!E407 -> 0 | H97: =Reference!F407 -> 0 | I97: =Reference!G407 -> 0 | J97: 0 | L97: =Test!B407 -> 0 | M97: =Test!C407 -> 0 | N97: =Test!D407 -> 0 | O97: =Test!E407 -> 0 | P97: =Test!F407 -> 0 | Q97: =Test!G407 -> 0 | R97: 0
C98: 37 | D98: =Reference!B408 -> 0 | E98: =Reference!C408 -> 0 | F98: =Reference!D408 -> 0 | G98: =Reference!E408 -> 0 | H98: =Reference!F408 -> 0 | I98: =Reference!G408 -> 0 | J98: 0 | L98: =Test!B408 -> 0 | M98: =Test!C408 -> 0 | N98: =Test!D408 -> 0 | O98: =Test!E408 -> 0 | P98: =Test!F408 -> 0 | Q98: =Test!G408 -> 0 | R98: 0
B99: SlideEditing | C99: 22 | D99: =Reference!B409 -> 0 | E99: =Reference!C409 -> 0 | F99: =Reference!D409 -> 0 | G99: =Reference!E409 -> 0 | H99: =Reference!F409 -> 0 | I99: =Reference!G409 -> 0 | J99: 0 | L99: =Test!B409 -> 0 | M99: =Test!C409 -> 0 | N99: =Test!D409 -> 0 | O99: =Test!E409 -> 0 | P99: =Test!F409 -> 0 | Q99: =Test!G409 -> 0 | R99: 0 | V99: =bdrate($D99:$D102,E99:E102,$L99:$L102,M99:M102) ->  | W99: =bdrate($D99:$D102,F99:F102,$L99:$L102,N99:N102) ->  | X99: =bdrate($D99:$D102,G99:G102,$L99:$L102,O99:O102) ->  | Y99: =bdrateOld($D99:$D102,E99:E102,$L99:$L102,M99:M102) ->  | Z99: =bdrateOld($D99:$D102,F99:F102,$L99:$L102,N99:N102) ->  | AA99: =bdrateOld($D99:$D102,G99:G102,$L99:$L102,O99:O102) -> 
C100: 27 | D100: =Reference!B410 -> 0 | E100: =Reference!C410 -> 0 | F100: =Reference!D410 -> 0 | G100: =Reference!E410 -> 0 | H100: =Reference!F410 -> 0 | I100: =Reference!G410 -> 0 | J100: 0 | L100: =Test!B410 -> 0 | M100: =Test!C410 -> 0 | N100: =Test!D410 -> 0 | O100: =Test!E410 -> 0 | P100: =Test!F410 -> 0 | Q100: =Test!G410 -> 0 | R100: 0
C101: 32 | D101: =Reference!B411 -> 0 | E101: =Reference!C411 -> 0 | F101: =Reference!D411 -> 0 | G101: =Reference!E411 -> 0 | H101: =Reference!F411 -> 0 | I101: =Reference!G411 -> 0 | J101: 0 | L101: =Test!B411 -> 0 | M101: =Test!C411 -> 0 | N101: =Test!D411 -> 0 | O101: =Test!E411 -> 0 | P101: =Test!F411 -> 0 | Q101: =Test!G411 -> 0 | R101: 0
C102: 37 | D102: =Reference!B412 -> 0 | E102: =Reference!C412 -> 0 | F102: =Reference!D412 -> 0 | G102: =Reference!E412 -> 0 | H102: =Reference!F412 -> 0 | I102: =Reference!G412 -> 0 | J102: 0 | L102: =Test!B412 -> 0 | M102: =Test!C412 -> 0 | N102: =Test!D412 -> 0 | O102: =Test!E412 -> 0 | P102: =Test!F412 -> 0 | Q102: =Test!G412 -> 0 | R102: 0
B103: SlideShow | C103: 22 | D103: =Reference!B413 -> 0 | E103: =Reference!C413 -> 0 | F103: =Reference!D413 -> 0 | G103: =Reference!E413 -> 0 | H103: =Reference!F413 -> 0 | I103: =Reference!G413 -> 0 | J103: 0 | L103: =Test!B413 -> 0 | M103: =Test!C413 -> 0 | N103: =Test!D413 -> 0 | O103: =Test!E413 -> 0 | P103: =Test!F413 -> 0 | Q103: =Test!G413 -> 0 | R103: 0 | V103: =bdrate($D103:$D106,E103:E106,$L103:$L106,M103:M106) ->  | W103: =bdrate($D103:$D106,F103:F106,$L103:$L106,N103:N106) ->  | X103: =bdrate($D103:$D106,G103:G106,$L103:$L106,O103:O106) ->  | Y103: =bdrateOld($D103:$D106,E103:E106,$L103:$L106,M103:M106) ->  | Z103: =bdrateOld($D103:$D106,F103:F106,$L103:$L106,N103:N106) ->  | AA103: =bdrateOld($D103:$D106,G103:G106,$L103:$L106,O103:O106) -> 
C104: 27 | D104: =Reference!B414 -> 0 | E104: =Reference!C414 -> 0 | F104: =Reference!D414 -> 0 | G104: =Reference!E414 -> 0 | H104: =Reference!F414 -> 0 | I104: =Reference!G414 -> 0 | J104: 0 | L104: =Test!B414 -> 0 | M104: =Test!C414 -> 0 | N104: =Test!D414 -> 0 | O104: =Test!E414 -> 0 | P104: =Test!F414 -> 0 | Q104: =Test!G414 -> 0 | R104: 0
C105: 32 | D105: =Reference!B415 -> 0 | E105: =Reference!C415 -> 0 | F105: =Reference!D415 -> 0 | G105: =Reference!E415 -> 0 | H105: =Reference!F415 -> 0 | I105: =Reference!G415 -> 0 | J105: 0 | L105: =Test!B415 -> 0 | M105: =Test!C415 -> 0 | N105: =Test!D415 -> 0 | O105: =Test!E415 -> 0 | P105: =Test!F415 -> 0 | Q105: =Test!G415 -> 0 | R105: 0
C106: 37 | D106: =Reference!B416 -> 0 | E106: =Reference!C416 -> 0 | F106: =Reference!D416 -> 0 | G106: =Reference!E416 -> 0 | H106: =Reference!F416 -> 0 | I106: =Reference!G416 -> 0 | J106: 0 | L106: =Test!B416 -> 0 | M106: =Test!C416 -> 0 | N106: =Test!D416 -> 0 | O106: =Test!E416 -> 0 | P106: =Test!F416 -> 0 | Q106: =Test!G416 -> 0 | R106: 0
B107: Class A1
B108: Class A2
B109: Class B | I109: =GEOMEAN(I27:I46) ->  | J109: =GEOMEAN(J27:J46) ->  | Q109: =GEOMEAN(Q27:Q46) ->  | R109: =GEOMEAN(R27:R46) ->  | S109: =GEOMEAN(S27:S46) ->  | V109: =AVERAGE(V27:V46) ->  | W109: =AVERAGE(W27:W46) -> 
B110: Class C | I110: =GEOMEAN(I47:I62) ->  | J110: =GEOMEAN(J47:J62) ->  | Q110: =GEOMEAN(Q47:Q62) ->  | R110: =GEOMEAN(R47:R62) ->  | S110: =GEOMEAN(S47:S62) ->  | V110: =AVERAGE(V47:V62) ->  | W110: =AVERAGE(W47:W62) -> 
B111: Class D | I111: =GEOMEAN(I63:I78) ->  | J111: =GEOMEAN(J63:J78) ->  | Q111: =GEOMEAN(Q63:Q78) ->  | R111: =GEOMEAN(R63:R78) ->  | S111: =GEOMEAN(S63:S78) ->  | V111: =AVERAGE(V63:V78) ->  | W111: =AVERAGE(W63:W78) -> 
B112: Class E | I112: =GEOMEAN(I79:I90) ->  | J112: =GEOMEAN(J79:J90) ->  | Q112: =GEOMEAN(Q79:Q90) ->  | R112: =GEOMEAN(R79:R90) ->  | S112: =GEOMEAN(S79:S90) ->  | V112: =AVERAGE(V79:V88) ->  | W112: =AVERAGE(W79:W88) -> 
B113: Class F | I113: =GEOMEAN(I91:I106) ->  | J113: =GEOMEAN(J91:J106) ->  | Q113: =GEOMEAN(Q91:Q106) ->  | R113: =GEOMEAN(R91:R106) ->  | S113: =GEOMEAN(S91:S106) ->  | V113: =AVERAGE(V91:V106) ->  | W113: =AVERAGE(W91:W106) -> 
B114: All | I114: =GEOMEAN(I3:I62,I79:I90) ->  | J114: =GEOMEAN(J3:J62,J79:J90) ->  | Q114: =GEOMEAN(Q3:Q62,Q79:Q90) ->  | R114: =GEOMEAN(R3:R62,R79:R90) ->  | V114: =AVERAGE(V3:V62,V79:V90) ->  | W114: =AVERAGE(W3:W62,W79:W90) -> 
B115: Time geomean | I115: =GEOMEAN(I3:I106) ->  | J115: =GEOMEAN(J3:J106) ->  | Q115: =GEOMEAN(Q3:Q106) ->  | R115: =GEOMEAN(R3:R106) -> 
B116: Time ratio | Q116: =Q115/I115 ->  | R116: =R115/J115 -> 
B117: Time sum (hours)

Sheet Reference
A1: -w1--MIP=0_T1AI_A1_S01_R1_qp22_s0_f294_t8 | B1: 0 | C1: 0 | D1: 0 | E1: 0 | F1: 0 | G1: 0
A2: -w1--MIP=0_T1AI_A1_S01_R2_qp27_s0_f294_t8 | B2: 0 | C2: 0 | D2: 0 | E2: 0 | F2: 0 | G2: 0
A3: -w1--MIP=0_T1AI_A1_S01_R3_qp32_s0_f294_t8 | B3: 0 | C3: 0 | D3: 0 | E3: 0 | F3: 0 | G3: 0
A4: -w1--MIP=0_T1AI_A1_S01_R4_qp37_s0_f294_t8 | B4: 0 | C4: 0 | D4: 0 | E4: 0 | F4: 0 | G4: 0
A5: -w1--MIP=0_T1AI_A1_S02_R1_qp22_s0_f300_t8 | B5: 0 | C5: 0 | D5: 0 | E5: 0 | F5: 0 | G5: 0
A6: -w1--MIP=0_T1AI_A1_S02_R2_qp27_s0_f300_t8 | B6: 0 | C6: 0 | D6: 0 | E6: 0 | F6: 0 | G6: 0
A7: -w1--MIP=0_T1AI_A1_S02_R3_qp32_s0_f300_t8 | B7: 0 | C7: 0 | D7: 0 | E7: 0 | F7: 0 | G7: 0
A8: -w1--MIP=0_T1AI_A1_S02_R4_qp37_s0_f300_t8 | B8: 0 | C8: 0 | D8: 0 | E8: 0 | F8: 0 | G8: 0
A9: -w1--MIP=0_T1AI_A1_S03_R1_qp22_s0_f300_t8 | B9: 0 | C9: 0 | D9: 0 | E9: 0 | F9: 0 | G9: 0
A10: -w1--MIP=0_T1AI_A1_S03_R2_qp27_s0_f300_t8 | B10: 0 | C10: 0 | D10: 0 | E10: 0 | F10: 0 | G10: 0
A11: -w1--MIP=0_T1AI_A1_S03_R3_qp32_s0_f300_t8 | B11: 0 | C11: 0 | D11: 0 | E11: 0 | F11: 0 | G11: 0
A12: -w1--MIP=0_T1AI_A1_S03_R4_qp37_s0_f300_t8 | B12: 0 | C12: 0 | D12: 0 | E12: 0 | F12: 0 | G12: 0
A13: -w1--MIP=0_T1AI_A2_S01_R1_qp22_s0_f300_t8 | B13: 0 | C13: 0 | D13: 0 | E13: 0 | F13: 0 | G13: 0
A14: -w1--MIP=0_T1AI_A2_S01_R2_qp27_s0_f300_t8 | B14: 0 | C14: 0 | D14: 0 | E14: 0 | F14: 0 | G14: 0
A15: -w1--MIP=0_T1AI_A2_S01_R3_qp32_s0_f300_t8 | B15: 0 | C15: 0 | D15: 0 | E15: 0 | F15: 0 | G15: 0
A16: -w1--MIP=0_T1AI_A2_S01_R4_qp37_s0_f300_t8 | B16: 0 | C16: 0 | D16: 0 | E16: 0 | F16: 0 | G16: 0
A17: -w1--MIP=0_T1AI_A2_S02_R1_qp22_s0_f300_t8 | B17: 0 | C17: 0 | D17: 0 | E17: 0 | F17: 0 | G17: 0
A18: -w1--MIP=0_T1AI_A2_S02_R2_qp27_s0_f300_t8 | B18: 0 | C18: 0 | D18: 0 | E18: 0 | F18: 0 | G18: 0
A19: -w1--MIP=0_T1AI_A2_S02_R3_qp32_s0_f300_t8 | B19: 0 | C19: 0 | D19: 0 | E19: 0 | F19: 0 | G19: 0
A20: -w1--MIP=0_T1AI_A2_S02_R4_qp37_s0_f300_t8 | B20: 0 | C20: 0 | D20: 0 | E20: 0 | F20: 0 | G20: 0
A21: -w1--MIP=0_T1AI_A2_S03_R1_qp22_s0_f300_t8 | B21: 0 | C21: 0 | D21: 0 | E21: 0 | F21: 0 | G21: 0
A22: -w1--MIP=0_T1AI_A2_S03_R2_qp27_s0_f300_t8 | B22: 0 | C22: 0 | D22: 0 | E22: 0 | F22: 0 | G22: 0
A23: -w1--MIP=0_T1AI_A2_S03_R3_qp32_s0_f300_t8 | B23: 0 | C23: 0 | D23: 0 | E23: 0 | F23: 0 | G23: 0
A24: -w1--MIP=0_T1AI_A2_S03_R4_qp37_s0_f300_t8 | B24: 0 | C24: 0 | D24: 0 | E24: 0 | F24: 0 | G24: 0
A25: -w1--MIP=0_T1AI_B_S01_R1_qp22_s0_f600_t8 | B25: 0 | C25: 0 | D25: 0 | E25: 0 | F25: 0 | G25: 0
A26: -w1--MIP=0_T1AI_B_S01_R2_qp27_s0_f600_t8 | B26: 0 | C26: 0 | D26: 0 | E26: 0 | F26: 0 | G26: 0
A27: -w1--MIP=0_T1AI_B_S01_R3_qp32_s0_f600_t8 | B27: 0 | C27: 0 | D27: 0 | E27: 0 | F27: 0 | G27: 0
A28: -w1--MIP=0_T1AI_B_S01_R4_qp37_s0_f600_t8 | B28: 0 | C28: 0 | D28: 0 | E28: 0 | F28: 0 | G28: 0
A29: -w1--MIP=0_T1AI_B_S02_R1_qp22_s0_f600_t8 | B29: 0 | C29: 0 | D29: 0 | E29: 0 | F29: 0 | G29: 0
A30: -w1--MIP=0_T1AI_B_S02_R2_qp27_s0_f600_t8 | B30: 0 | C30: 0 | D30: 0 | E30: 0 | F30: 0 | G30: 0
A31: -w1--MIP=0_T1AI_B_S02_R3_qp32_s0_f600_t8 | B31: 0 | C31: 0 | D31: 0 | E31: 0 | F31: 0 | G31: 0
A32: -w1--MIP=0_T1AI_B_S02_R4_qp37_s0_f600_t8 | B32: 0 | C32: 0 | D32: 0 | E32: 0 | F32: 0 | G32: 0
A33: -w1--MIP=0_T1AI_B_S03_R1_qp22_s0_f500_t8 | B33: 0 | C33: 0 | D33: 0 | E33: 0 | F33: 0 | G33: 0
A34: -w1--MIP=0_T1AI_B_S03_R2_qp27_s0_f500_t8 | B34: 0 | C34: 0 | D34: 0 | E34: 0 | F34: 0 | G34: 0
A35: -w1--MIP=0_T1AI_B_S03_R3_qp32_s0_f500_t8 | B35: 0 | C35: 0 | D35: 0 | E35: 0 | F35: 0 | G35: 0
A36: -w1--MIP=0_T1AI_B_S03_R4_qp37_s0_f500_t8 | B36: 0 | C36: 0 | D36: 0 | E36: 0 | F36: 0 | G36: 0
A37: -w1--MIP=0_T1AI_B_S04_R1_qp22_s0_f500_t8 | B37: 0 | C37: 0 | D37: 0 | E37: 0 | F37: 0 | G37: 0
A38: -w1--MIP=0_T1AI_B_S04_R2_qp27_s0_f500_t8 | B38: 0 | C38: 0 | D38: 0 | E38: 0 | F38: 0 | G38: 0
A39: -w1--MIP=0_T1AI_B_S04_R3_qp32_s0_f500_t8 | B39: 0 | C39: 0 | D39: 0 | E39: 0 | F39: 0 | G39: 0
A40: -w1--MIP=0_T1AI_B_S04_R4_qp37_s0_f500_t8 | B40: 0 | C40: 0 | D40: 0 | E40: 0 | F40: 0 | G40: 0
A41: -w1--MIP=0_T1AI_B_S05_R1_qp22_s0_f600_t8 | B41: 0 | C41: 0 | D41: 0 | E41: 0 | F41: 0 | G41: 0
A42: -w1--MIP=0_T1AI_B_S05_R2_qp27_s0_f600_t8 | B42: 0 | C42: 0 | D42: 0 | E42: 0 | F42: 0 | G42: 0
A43: -w1--MIP=0_T1AI_B_S05_R3_qp32_s0_f600_t8 | B43: 0 | C43: 0 | D43: 0 | E43: 0 | F43: 0 | G43: 0
A44: -w1--MIP=0_T1AI_B_S05_R4_qp37_s0_f600_t8 | B44: 0 | C44: 0 | D44: 0 | E44: 0 | F44: 0 | G44: 0
A45: -w1--MIP=0_T1AI_C_S01_R1_qp22_s0_f500_t8 | B45: 0 | C45: 0 | D45: 0 | E45: 0 | F45: 0 | G45: 0
A46: -w1--MIP=0_T1AI_C_S01_R2_qp27_s0_f500_t8 | B46: 0 | C46: 0 | D46: 0 | E46: 0 | F46: 0 | G46: 0
A47: -w1--MIP=0_T1AI_C_S01_R3_qp32_s0_f500_t8 | B47: 0 | C47: 0 | D47: 0 | E47: 0 | F47: 0 | G47: 0
A48: -w1--MIP=0_T1AI_C_S01_R4_qp37_s0_f500_t8 | B48: 368.773 | C48: 33.8746 | D48: 38.6622 | E48: 38.8187 | F48: 3304.7 | G48: 2.54
A49: -w1--MIP=0_T1AI_C_S02_R1_qp22_s0_f600_t8 | B49: 0 | C49: 0 | D49: 0 | E49: 0 | F49: 0 | G49: 0
A50: -w1--MIP=0_T1AI_C_S02_R2_qp27_s0_f600_t8 | B50: 0 | C50: 0 | D50: 0 | E50: 0 | F50: 0 | G50: 0
A51: -w1--MIP=0_T1AI_C_S02_R3_qp32_s0_f600_t8 | B51: 0 | C51: 0 | D51: 0 | E51: 0 | F51: 0 | G51: 0
A52: -w1--MIP=0_T1AI_C_S02_R4_qp37_s0_f600_t8 | B52: 541.4408 | C52: 33.8518 | D52: 39.2866 | E52: 40.3888 | F52: 4436.44 | G52: 3.22
A53: -w1--MIP=0_T1AI_C_S03_R1_qp22_s0_f500_t8 | B53: 0 | C53: 0 | D53: 0 | E53: 0 | F53: 0 | G53: 0
A54: -w1--MIP=0_T1AI_C_S03_R2_qp27_s0_f500_t8 | B54: 0 | C54: 0 | D54: 0 | E54: 0 | F54: 0 | G54: 0
A55: -w1--MIP=0_T1AI_C_S03_R3_qp32_s0_f500_t8 | B55: 0 | C55: 0 | D55: 0 | E55: 0 | F55: 0 | G55: 0
A56: -w1--MIP=0_T1AI_C_S03_R4_qp37_s0_f500_t8 | B56: 0 | C56: 0 | D56: 0 | E56: 0 | F56: 0 | G56: 0
A57: -w1--MIP=0_T1AI_C_S04_R1_qp22_s0_f300_t8 | B57: 0 | C57: 0 | D57: 0 | E57: 0 | F57: 0 | G57: 0
A58: -w1--MIP=0_T1AI_C_S04_R2_qp27_s0_f300_t8 | B58: 0 | C58: 0 | D58: 0 | E58: 0 | F58: 0 | G58: 0
A59: -w1--MIP=0_T1AI_C_S04_R3_qp32_s0_f300_t8 | B59: 616.7321 | C59: 36.4442 | D59: 38.1341 | E59: 40.2345 | F59: 3828.16 | G59: 2.03
A60: -w1--MIP=0_T1AI_C_S04_R4_qp37_s0_f300_t8 | B60: 316.6753 | C60: 33.0265 | D60: 36.8614 | E60: 38.9516 | F60: 2596.88 | G60: 1.72
A61: -w1--MIP=0_T1AI_D_S01_R1_qp22_s0_f500_t8 | B61: 584.9421 | C61: 43.5925 | D61: 45.5835 | E61: 45.3973 | F61: 2725.9 | G61: 1.16
A62: -w1--MIP=0_T1AI_D_S01_R2_qp27_s0_f500_t8 | B62: 350.0389 | C62: 39.9976 | D62: 42.8645 | E62: 42.2878 | F62: 2098.99 | G62: 0.95
A63: -w1--MIP=0_T1AI_D_S01_R3_qp32_s0_f500_t8 | B63: 203.3706 | C63: 36.6283 | D63: 40.7 | E63: 39.9525 | F63: 1569.35 | G63: 0.78
A64: -w1--MIP=0_T1AI_D_S01_R4_qp37_s0_f500_t8 | B64: 114.6183 | C64: 33.4605 | D64: 39.0174 | E64: 38.0901 | F64: 1040.54 | G64: 0.6
A65: -w1--MIP=0_T1AI_D_S02_R1_qp22_s0_f600_t8 | B65: 1529.6456 | C65: 41.8754 | D65: 43.3638 | E65: 44.6173 | F65: 3796.53 | G65: 1.98
A66: -w1--MIP=0_T1AI_D_S02_R2_qp27_s0_f600_t8 | B66: 971.6568 | C66: 37.4354 | D66: 40.8716 | E66: 42.2565 | F66: 3031.61 | G66: 1.55
A67: -w1--MIP=0_T1AI_D_S02_R3_qp32_s0_f600_t8 | B67: 592.8416 | C67: 33.6263 | D67: 39.3838 | E67: 40.6173 | F67: 2369.87 | G67: 1.26
A68: -w1--MIP=0_T1AI_D_S02_R4_qp37_s0_f600_t8 | B68: 351.7328 | C68: 30.1524 | D68: 38.4302 | E68: 39.3933 | F68: 1775.83 | G68: 0.99
A69: -w1--MIP=0_T1AI_D_S03_R1_qp22_s0_f500_t8 | B69: 1330.9683 | C69: 41.6688 | D69: 42.0738 | E69: 43.0247 | F69: 3599.65 | G69: 1.81
A70: -w1--MIP=0_T1AI_D_S03_R2_qp27_s0_f500_t8 | B70: 829.1222 | C70: 37.4322 | D70: 39.3074 | E70: 40.0021 | F70: 3034.66 | G70: 1.55
A71: -w1--MIP=0_T1AI_D_S03_R3_qp32_s0_f500_t8 | B71: 478.1357 | C71: 33.5063 | D71: 37.3197 | E71: 37.8686 | F71: 2543.23 | G71: 1.24
A72: -w1--MIP=0_T1AI_D_S03_R4_qp37_s0_f500_t8 | B72: 246.3484 | C72: 29.8873 | D72: 35.8261 | E72: 36.3404 | F72: 1974.45 | G72: 0.94
A73: -w1--MIP=0_T1AI_D_S04_R1_qp22_s0_f300_t8 | B73: 512.9147 | C73: 43.3208 | D73: 42.9938 | E73: 44.057 | F73: 1753.37 | G73: 0.81
A74: -w1--MIP=0_T1AI_D_S04_R2_qp27_s0_f300_t8 | B74: 323.5089 | C74: 39.6085 | D74: 39.9006 | E74: 41.4289 | F74: 1442.28 | G74: 0.69
A75: -w1--MIP=0_T1AI_D_S04_R3_qp32_s0_f300_t8 | B75: 182.3574 | C75: 35.6999 | D75: 37.9838 | E75: 39.3977 | F75: 1169.02 | G75: 0.57
A76: -w1--MIP=0_T1AI_D_S04_R4_qp37_s0_f300_t8 | B76: 91.8229 | C76: 32.1627 | D76: 36.5449 | E76: 37.7385 | F76: 854.17 | G76: 0.43
A77: -w1--MIP=0_T1AI_E_S01_R1_qp22_s0_f600_t8 | B77: 0 | C77: 0 | D77: 0 | E77: 0 | F77: 0 | G77: 0
A78: -w1--MIP=0_T1AI_E_S01_R2_qp27_s0_f600_t8 | B78: 0 | C78: 0 | D78: 0 | E78: 0 | F78: 0 | G78: 0 | H78: 0.79
A79: -w1--MIP=0_T1AI_E_S01_R3_qp32_s0_f600_t8 | B79: 0 | C79: 0 | D79: 0 | E79: 0 | F79: 0 | G79: 0
A80: -w1--MIP=0_T1AI_E_S01_R4_qp37_s0_f600_t8 | B80: 0 | C80: 0 | D80: 0 | E80: 0 | F80: 0 | G80: 0
A81: -w1--MIP=0_T1AI_E_S02_R1_qp22_s0_f600_t8 | B81: 0 | C81: 0 | D81: 0 | E81: 0 | F81: 0 | G81: 0
A82: -w1--MIP=0_T1AI_E_S02_R2_qp27_s0_f600_t8 | B82: 0 | C82: 0 | D82: 0 | E82: 0 | F82: 0 | G82: 0
A83: -w1--MIP=0_T1AI_E_S02_R3_qp32_s0_f600_t8 | B83: 0 | C83: 0 | D83: 0 | E83: 0 | F83: 0 | G83: 0
A84: -w1--MIP=0_T1AI_E_S02_R4_qp37_s0_f600_t8 | B84: 427.4856 | C84: 38.0901 | D84: 43.7302 | E84: 44.5788 | F84: 3658.76 | G84: 4.97
A85: -w1--MIP=0_T1AI_E_S03_R1_qp22_s0_f600_t8 | B85: 0 | C85: 0 | D85: 0 | E85: 0 | F85: 0 | G85: 0
A86: -w1--MIP=0_T1AI_E_S03_R2_qp27_s0_f600_t8 | B86: 0 | C86: 0 | D86: 0 | E86: 0 | F86: 0 | G86: 0
A87: -w1--MIP=0_T1AI_E_S03_R3_qp32_s0_f600_t8 | B87: 0 | C87: 0 | D87: 0 | E87: 0 | F87: 0 | G87: 0
A88: -w1--MIP=0_T1AI_E_S03_R4_qp37_s0_f600_t8 | B88: 559.0296 | C88: 37.8308 | D88: 42.9662 | E88: 44.1358 | F88: 4208.1 | G88: 5.51
A89: -w1--MIP=0_T1AI_F_S01_R1_qp22_s0_f500_t8 | B89: 0 | C89: 0 | D89: 0 | E89: 0 | F89: 0 | G89: 0
A90: -w1--MIP=0_T1AI_F_S01_R2_qp27_s0_f500_t8 | B90: 0 | C90: 0 | D90: 0 | E90: 0 | F90: 0 | G90: 0
A91: -w1--MIP=0_T1AI_F_S01_R3_qp32_s0_f500_t8 | B91: 0 | C91: 0 | D91: 0 | E91: 0 | F91: 0 | G91: 0
A92: -w1--MIP=0_T1AI_F_S01_R4_qp37_s0_f500_t8 | B92: 0 | C92: 0 | D92: 0 | E92: 0 | F92: 0 | G92: 0
A93: -w1--MIP=0_T1AI_F_S02_R1_qp22_s0_f600_t8 | B93: 0 | C93: 0 | D93: 0 | E93: 0 | F93: 0 | G93: 0
A94: -w1--MIP=0_T1AI_F_S02_R2_qp27_s0_f600_t8 | B94: 0 | C94: 0 | D94: 0 | E94: 0 | F94: 0 | G94: 0
A95: -w1--MIP=0_T1AI_F_S02_R3_qp32_s0_f600_t8 | B95: 0 | C95: 0 | D95: 0 | E95: 0 | F95: 0 | G95: 0
A96: -w1--MIP=0_T1AI_F_S02_R4_qp37_s0_f600_t8 | B96: 0 | C96: 0 | D96: 0 | E96: 0 | F96: 0 | G96: 0
A97: -w1--MIP=0_T1AI_F_S03_R1_qp22_s0_f300_t8 | B97: 0 | C97: 0 | D97: 0 | E97: 0 | F97: 0 | G97: 0
A98: -w1--MIP=0_T1AI_F_S03_R2_qp27_s0_f300_t8 | B98: 0 | C98: 0 | D98: 0 | E98: 0 | F98: 0 | G98: 0
A99: -w1--MIP=0_T1AI_F_S03_R3_qp32_s0_f300_t8 | B99: 0 | C99: 0 | D99: 0 | E99: 0 | F99: 0 | G99: 0
A100: -w1--MIP=0_T1AI_F_S03_R4_qp37_s0_f300_t8 | B100: 0 | C100: 0 | D100: 0 | E100: 0 | F100: 0 | G100: 0
A101: -w1--MIP=0_T1AI_F_S04_R1_qp22_s0_f500_t8 | B101: 0 | C101: 0 | D101: 0 | E101: 0 | F101: 0 | G101: 0
A102: -w1--MIP=0_T1AI_F_S04_R2_qp27_s0_f500_t8 | B102: 0 | C102: 0 | D102: 0 | E102: 0 | F102: 0 | G102: 0
A103: -w1--MIP=0_T1AI_F_S04_R3_qp32_s0_f500_t8 | B103: 0 | C103: 0 | D103: 0 | E103: 0 | F103: 0 | G103: 0
A104: -w1--MIP=0_T1AI_F_S04_R4_qp37_s0_f500_t8 | B104: 145.4768 | C104: 40.7672 | D104: 46.6121 | E104: 48.6668 | F104: 4187.33 | G104: 3.74
A105: -w1--MIP=0_T2RA_A1_S01_R1_qp22_s0_f294_t1 | B105: 0 | C105: 0 | D105: 0 | E105: 0 | F105: 0 | G105: 0
A106: -w1--MIP=0_T2RA_A1_S01_R2_qp27_s0_f294_t1 | B106: 0 | C106: 0 | D106: 0 | E106: 0 | F106: 0 | G106: 0
A107: -w1--MIP=0_T2RA_A1_S01_R3_qp32_s0_f294_t1 | B107: 0 | C107: 0 | D107: 0 | E107: 0 | F107: 0 | G107: 0
A108: -w1--MIP=0_T2RA_A1_S01_R4_qp37_s0_f294_t1 | B108: 0 | C108: 0 | D108: 0 | E108: 0 | F108: 0 | G108: 0
A109: -w1--MIP=0_T2RA_A1_S02_R1_qp22_s0_f300_t1 | B109: 0 | C109: 0 | D109: 0 | E109: 0 | F109: 0 | G109: 0
A110: -w1--MIP=0_T2RA_A1_S02_R2_qp27_s0_f300_t1 | B110: 0 | C110: 0 | D110: 0 | E110: 0 | F110: 0 | G110: 0
A111: -w1--MIP=0_T2RA_A1_S02_R3_qp32_s0_f300_t1 | B111: 0 | C111: 0 | D111: 0 | E111: 0 | F111: 0 | G111: 0
A112: -w1--MIP=0_T2RA_A1_S02_R4_qp37_s0_f300_t1 | B112: 0 | C112: 0 | D112: 0 | E112: 0 | F112: 0 | G112: 0
A113: -w1--MIP=0_T2RA_A1_S03_R1_qp22_s0_f300_t1 | B113: 0 | C113: 0 | D113: 0 | E113: 0 | F113: 0 | G113: 0
A114: -w1--MIP=0_T2RA_A1_S03_R2_qp27_s0_f300_t1 | B114: 0 | C114: 0 | D114: 0 | E114: 0 | F114: 0 | G114: 0
A115: -w1--MIP=0_T2RA_A1_S03_R3_qp32_s0_f300_t1 | B115: 0 | C115: 0 | D115: 0 | E115: 0 | F115: 0 | G115: 0
A116: -w1--MIP=0_T2RA_A1_S03_R4_qp37_s0_f300_t1 | B116: 0 | C116: 0 | D116: 0 | E116: 0 | F116: 0 | G116: 0
A117: -w1--MIP=0_T2RA_A2_S01_R1_qp22_s0_f300_t1 | B117: 0 | C117: 0 | D117: 0 | E117: 0 | F117: 0 | G117: 0
A118: -w1--MIP=0_T2RA_A2_S01_R2_qp27_s0_f300_t1 | B118: 0 | C118: 0 | D118: 0 | E118: 0 | F118: 0 | G118: 0
A119: -w1--MIP=0_T2RA_A2_S01_R3_qp32_s0_f300_t1 | B119: 0 | C119: 0 | D119: 0 | E119: 0 | F119: 0 | G119: 0
A120: -w1--MIP=0_T2RA_A2_S01_R4_qp37_s0_f300_t1 | B120: 0 | C120: 0 | D120: 0 | E120: 0 | F120: 0 | G120: 0
A121: -w1--MIP=0_T2RA_A2_S02_R1_qp22_s0_f300_t1 | B121: 0 | C121: 0 | D121: 0 | E121: 0 | F121: 0 | G121: 0
A122: -w1--MIP=0_T2RA_A2_S02_R2_qp27_s0_f300_t1 | B122: 0 | C122: 0 | D122: 0 | E122: 0 | F122: 0 | G122: 0
A123: -w1--MIP=0_T2RA_A2_S02_R3_qp32_s0_f300_t1 | B123: 0 | C123: 0 | D123: 0 | E123: 0 | F123: 0 | G123: 0
A124: -w1--MIP=0_T2RA_A2_S02_R4_qp37_s0_f300_t1 | B124: 0 | C124: 0 | D124: 0 | E124: 0 | F124: 0 | G124: 0
A125: -w1--MIP=0_T2RA_A2_S03_R1_qp22_s0_f300_t1 | B125: 0 | C125: 0 | D125: 0 | E125: 0 | F125: 0 | G125: 0
A126: -w1--MIP=0_T2RA_A2_S03_R2_qp27_s0_f300_t1 | B126: 0 | C126: 0 | D126: 0 | E126: 0 | F126: 0 | G126: 0
A127: -w1--MIP=0_T2RA_A2_S03_R3_qp32_s0_f300_t1 | B127: 0 | C127: 0 | D127: 0 | E127: 0 | F127: 0 | G127: 0
A128: -w1--MIP=0_T2RA_A2_S03_R4_qp37_s0_f300_t1 | B128: 0 | C128: 0 | D128: 0 | E128: 0 | F128: 0 | G128: 0
A129: -w1--MIP=0_T2RA_B_S01_R1_qp22_s0_f600_t1 | B129: 0 | C129: 0 | D129: 0 | E129: 0 | F129: 0 | G129: 0
A130: -w1--MIP=0_T2RA_B_S01_R2_qp27_s0_f600_t1 | B130: 0 | C130: 0 | D130: 0 | E130: 0 | F130: 0 | G130: 0
A131: -w1--MIP=0_T2RA_B_S01_R3_qp32_s0_f600_t1 | B131: 0 | C131: 0 | D131: 0 | E131: 0 | F131: 0 | G131: 0
A132: -w1--MIP=0_T2RA_B_S01_R4_qp37_s0_f600_t1 | B132: 0 | C132: 0 | D132: 0 | E132: 0 | F132: 0 | G132: 0
A133: -w1--MIP=0_T2RA_B_S02_R1_qp22_s0_f600_t1 | B133: 0 | C133: 0 | D133: 0 | E133: 0 | F133: 0 | G133: 0
A134: -w1--MIP=0_T2RA_B_S02_R2_qp27_s0_f600_t1 | B134: 0 | C134: 0 | D134: 0 | E134: 0 | F134: 0 | G134: 0
A135: -w1--MIP=0_T2RA_B_S02_R3_qp32_s0_f600_t1 | B135: 0 | C135: 0 | D135: 0 | E135: 0 | F135: 0 | G135: 0
A136: -w1--MIP=0_T2RA_B_S02_R4_qp37_s0_f600_t1 | B136: 0 | C136: 0 | D136: 0 | E136: 0 | F136: 0 | G136: 0
A137: -w1--MIP=0_T2RA_B_S03_R1_qp22_s0_f500_t1 | B137: 0 | C137: 0 | D137: 0 | E137: 0 | F137: 0 | G137: 0
A138: -w1--MIP=0_T2RA_B_S03_R2_qp27_s0_f500_t1 | B138: 0 | C138: 0 | D138: 0 | E138: 0 | F138: 0 | G138: 0
A139: -w1--MIP=0_T2RA_B_S03_R3_qp32_s0_f500_t1 | B139: 0 | C139: 0 | D139: 0 | E139: 0 | F139: 0 | G139: 0
A140: -w1--MIP=0_T2RA_B_S03_R4_qp37_s0_f500_t1 | B140: 0 | C140: 0 | D140: 0 | E140: 0 | F140: 0 | G140: 0
A141: -w1--MIP=0_T2RA_B_S04_R1_qp22_s0_f500_t1 | B141: 0 | C141: 0 | D141: 0 | E141: 0 | F141: 0 | G141: 0
A142: -w1--MIP=0_T2RA_B_S04_R2_qp27_s0_f500_t1 | B142: 0 | C142: 0 | D142: 0 | E142: 0 | F142: 0 | G142: 0
A143: -w1--MIP=0_T2RA_B_S04_R3_qp32_s0_f500_t1 | B143: 0 | C143: 0 | D143: 0 | E143: 0 | F143: 0 | G143: 0
A144: -w1--MIP=0_T2RA_B_S04_R4_qp37_s0_f500_t1 | B144: 0 | C144: 0 | D144: 0 | E144: 0 | F144: 0 | G144: 0
A145: -w1--MIP=0_T2RA_B_S05_R1_qp22_s0_f600_t1 | B145: 0 | C145: 0 | D145: 0 | E145: 0 | F145: 0 | G145: 0
A146: -w1--MIP=0_T2RA_B_S05_R2_qp27_s0_f600_t1 | B146: 0 | C146: 0 | D146: 0 | E146: 0 | F146: 0 | G146: 0
A147: -w1--MIP=0_T2RA_B_S05_R3_qp32_s0_f600_t1 | B147: 0 | C147: 0 | D147: 0 | E147: 0 | F147: 0 | G147: 0
A148: -w1--MIP=0_T2RA_B_S05_R4_qp37_s0_f600_t1 | B148: 0 | C148: 0 | D148: 0 | E148: 0 | F148: 0 | G148: 0
A149: -w1--MIP=0_T2RA_C_S01_R1_qp22_s0_f500_t1 | B149: 0 | C149: 0 | D149: 0 | E149: 0 | F149: 0 | G149: 0
A150: -w1--MIP=0_T2RA_C_S01_R2_qp27_s0_f500_t1 | B150: 0 | C150: 0 | D150: 0 | E150: 0 | F150: 0 | G150: 0
A151: -w1--MIP=0_T2RA_C_S01_R3_qp32_s0_f500_t1 | B151: 676.444 | C151: 35.6816 | D151: 39.9028 | E151: 40.2505 | F151: 33608.37 | G151: 11.03
A152: -w1--MIP=0_T2RA_C_S01_R4_qp37_s0_f500_t1 | B152: 347.1832 | C152: 33.0509 | D152: 38.4734 | E152: 38.5747 | F152: 20089.19 | G152: 9.16
A153: -w1--MIP=0_T2RA_C_S02_R1_qp22_s0_f600_t1 | B153: 0 | C153: 0 | D153: 0 | E153: 0 | F153: 0 | G153: 0
A154: -w1--MIP=0_T2RA_C_S02_R2_qp27_s0_f600_t1 | B154: 0 | C154: 0 | D154: 0 | E154: 0 | F154: 0 | G154: 0
A155: -w1--MIP=0_T2RA_C_S02_R3_qp32_s0_f600_t1 | B155: 0 | C155: 0 | D155: 0 | E155: 0 | F155: 0 | G155: 0
A156: -w1--MIP=0_T2RA_C_S02_R4_qp37_s0_f600_t1 | B156: 351.5968 | C156: 33.0892 | D156: 39.5272 | E156: 40.5307 | F156: 20771.07 | G156: 10.38
A157: -w1--MIP=0_T2RA_C_S03_R1_qp22_s0_f500_t1 | B157: 0 | C157: 0 | D157: 0 | E157: 0 | F157: 0 | G157: 0
A158: -w1--MIP=0_T2RA_C_S03_R2_qp27_s0_f500_t1 | B158: 0 | C158: 0 | D158: 0 | E158: 0 | F158: 0 | G158: 0
A159: -w1--MIP=0_T2RA_C_S03_R3_qp32_s0_f500_t1 | B159: 1209.5112 | C159: 32.5662 | D159: 37.9843 | E159: 38.9655 | F159: 33731.2 | G159: 12.43
A160: -w1--MIP=0_T2RA_C_S03_R4_qp37_s0_f500_t1 | B160: 577.0456 | C160: 29.7594 | D160: 36.6069 | E160: 37.4392 | F160: 21620.98 | G160: 11.82
A161: -w1--MIP=0_T2RA_C_S04_R1_qp22_s0_f300_t1 | B161: 0 | C161: 0 | D161: 0 | E161: 0 | F161: 0 | G161: 0
A162: -w1--MIP=0_T2RA_C_S04_R2_qp27_s0_f300_t1 | B162: 0 | C162: 0 | D162: 0 | E162: 0 | F162: 0 | G162: 0
A163: -w1--MIP=0_T2RA_C_S04_R3_qp32_s0_f300_t1 | B163: 811.9912 | C163: 33.735 | D163: 37.8952 | E163: 39.7311 | F163: 30662.27 | G163: 8.82
A164: -w1--MIP=0_T2RA_C_S04_R4_qp37_s0_f300_t1 | B164: 388.8688 | C164: 31.0961 | D164: 36.5047 | E164: 38.453 | F164: 19294.08 | G164: 7.19
A165: -w1--MIP=0_T2RA_D_S01_R1_qp22_s0_f500_t1 | B165: 1264.6688 | C165: 41.4951 | D165: 44.4429 | E165: 43.5757 | F165: 22420.83 | G165: 5.36
A166: -w1--MIP=0_T2RA_D_S01_R2_qp27_s0_f500_t1 | B166: 608.1856 | C166: 37.5175 | D166: 42.0643 | E166: 40.8436 | F166: 16363.35 | G166: 4.25
A167: -w1--MIP=0_T2RA_D_S01_R3_qp32_s0_f500_t1 | B167: 305.852 | C167: 34.2117 | D167: 40.3157 | E167: 38.8815 | F167: 11718.48 | G167: 3.34
A168: -w1--MIP=0_T2RA_D_S01_R4_qp37_s0_f500_t1 | B168: 153.6488 | C168: 31.2782 | D168: 38.7637 | E168: 37.053 | F168: 7471.97 | G168: 2.64
A169: -w1--MIP=0_T2RA_D_S02_R1_qp22_s0_f600_t1 | B169: 1307.1984 | C169: 38.684 | D169: 43.8392 | E169: 45.2226 | F169: 23546.84 | G169: 5.99
A170: -w1--MIP=0_T2RA_D_S02_R2_qp27_s0_f600_t1 | B170: 475.1168 | C170: 35.4735 | D170: 41.8568 | E170: 43.2008 | F170: 11201.47 | G170: 4.17
A171: -w1--MIP=0_T2RA_D_S02_R3_qp32_s0_f600_t1 | B171: 215.1992 | C171: 32.7417 | D171: 40.228 | E171: 41.532 | F171: 6902.16 | G171: 3.25
A172: -w1--MIP=0_T2RA_D_S02_R4_qp37_s0_f600_t1 | B172: 113.2688 | C172: 30.2584 | D172: 39.0645 | E172: 40.2159 | F172: 4575.26 | G172: 2.94
A173: -w1--MIP=0_T2RA_D_S03_R1_qp22_s0_f500_t1 | B173: 1361.272 | C173: 38.7148 | D173: 41.6286 | E173: 42.8423 | F173: 20951.83 | G173: 5.4
A174: -w1--MIP=0_T2RA_D_S03_R2_qp27_s0_f500_t1 | B174: 649.232 | C174: 35.7017 | D174: 39.3683 | E174: 40.3314 | F174: 14028.98 | G174: 4.14
A175: -w1--MIP=0_T2RA_D_S03_R3_qp32_s0_f500_t1 | B175: 313.34 | C175: 32.7103 | D175: 37.5724 | E175: 38.3588 | F175: 9147.49 | G175: 3.27
A176: -w1--MIP=0_T2RA_D_S03_R4_qp37_s0_f500_t1 | B176: 148.552 | C176: 29.835 | D176: 36.0641 | E176: 36.7231 | F176: 5791.13 | G176: 2.47
A177: -w1--MIP=0_T2RA_D_S04_R1_qp22_s0_f300_t1 | B177: 1017.9808 | C177: 40.1175 | D177: 41.734 | E177: 42.8678 | F177: 16017.18 | G177: 4.06
A178: -w1--MIP=0_T2RA_D_S04_R2_qp27_s0_f300_t1 | B178: 493.8776 | C178: 36.3447 | D178: 39.2956 | E178: 40.553 | F178: 11195.96 | G178: 2.97
A179: -w1--MIP=0_T2RA_D_S04_R3_qp32_s0_f300_t1 | B179: 245.6136 | C179: 33.0671 | D179: 37.5118 | E179: 38.8489 | F179: 7857.87 | G179: 2.26
A180: -w1--MIP=0_T2RA_D_S04_R4_qp37_s0_f300_t1 | B180: 118.7576 | C180: 30.1604 | D180: 36.0876 | E180: 37.3906 | F180: 5019.4 | G180: 1.77
A181: -w1--MIP=0_T2RA_E_S01_R1_qp22_s0_f600_t1 | B181: 0 | C181: 0 | D181: 0 | E181: 0 | F181: 0 | G181: 0
A182: -w1--MIP=0_T2RA_E_S01_R2_qp27_s0_f600_t1 | B182: 0 | C182: 0 | D182: 0 | E182: 0 | F182: 0 | G182: 0
A183: -w1--MIP=0_T2RA_E_S01_R3_qp32_s0_f600_t1 | B183: 0 | C183: 0 | D183: 0 | E183: 0 | F183: 0 | G183: 0
A184: -w1--MIP=0_T2RA_E_S01_R4_qp37_s0_f600_t1 | B184: 0 | C184: 0 | D184: 0 | E184: 0 | F184: 0 | G184: 0
A185: -w1--MIP=0_T2RA_E_S02_R1_qp22_s0_f600_t1 | B185: 0 | C185: 0 | D185: 0 | E185: 0 | F185: 0 | G185: 0
A186: -w1--MIP=0_T2RA_E_S02_R2_qp27_s0_f600_t1 | B186: 0 | C186: 0 | D186: 0 | E186: 0 | F186: 0 | G186: 0
A187: -w1--MIP=0_T2RA_E_S02_R3_qp32_s0_f600_t1 | B187: 0 | C187: 0 | D187: 0 | E187: 0 | F187: 0 | G187: 0
A188: -w1--MIP=0_T2RA_E_S02_R4_qp37_s0_f600_t1 | B188: 0 | C188: 0 | D188: 0 | E188: 0 | F188: 0 | G188: 0
A189: -w1--MIP=0_T2RA_E_S03_R1_qp22_s0_f600_t1 | B189: 0 | C189: 0 | D189: 0 | E189: 0 | F189: 0 | G189: 0
A190: -w1--MIP=0_T2RA_E_S03_R2_qp27_s0_f600_t1 | B190: 0 | C190: 0 | D190: 0 | E190: 0 | F190: 0 | G190: 0
A191: -w1--MIP=0_T2RA_E_S03_R3_qp32_s0_f600_t1 | B191: 0 | C191: 0 | D191: 0 | E191: 0 | F191: 0 | G191: 0
A192: -w1--MIP=0_T2RA_E_S03_R4_qp37_s0_f600_t1 | B192: 0 | C192: 0 | D192: 0 | E192: 0 | F192: 0 | G192: 0
A193: -w1--MIP=0_T2RA_F_S01_R1_qp22_s0_f500_t1 | B193: 0 | C193: 0 | D193: 0 | E193: 0 | F193: 0 | G193: 0
A194: -w1--MIP=0_T2RA_F_S01_R2_qp27_s0_f500_t1 | B194: 0 | C194: 0 | D194: 0 | E194: 0 | F194: 0 | G194: 0
A195: -w1--MIP=0_T2RA_F_S01_R3_qp32_s0_f500_t1 | B195: 720.6112 | C195: 35.6443 | D195: 39.4908 | E195: 39.8593 | F195: 39356.42 | G195: 11.19
A196: -w1--MIP=0_T2RA_F_S01_R4_qp37_s0_f500_t1 | B196: 375.3128 | C196: 32.9303 | D196: 37.8618 | E196: 38.0445 | F196: 23466.6 | G196: 9.14
A197: -w1--MIP=0_T2RA_F_S02_R1_qp22_s0_f600_t1 | B197: 0 | C197: 0 | D197: 0 | E197: 0 | F197: 0 | G197: 0
A198: -w1--MIP=0_T2RA_F_S02_R2_qp27_s0_f600_t1 | B198: 0 | C198: 0 | D198: 0 | E198: 0 | F198: 0 | G198: 0
A199: -w1--MIP=0_T2RA_F_S02_R3_qp32_s0_f600_t1 | B199: 0 | C199: 0 | D199: 0 | E199: 0 | F199: 0 | G199: 0
A200: -w1--MIP=0_T2RA_F_S02_R4_qp37_s0_f600_t1 | B200: 0 | C200: 0 | D200: 0 | E200: 0 | F200: 0 | G200: 0
... 216 more rows

Sheet Test
A1: =-w1_T1AI_A1_S01_R1_qp22_s0_f294_t8 ->  | B1: 0 | C1: 0 | D1: 0 | E1: 0 | F1: 0 | G1: 0
A2: =-w1_T1AI_A1_S01_R2_qp27_s0_f294_t8 ->  | B2: 0 | C2: 0 | D2: 0 | E2: 0 | F2: 0 | G2: 0
A3: =-w1_T1AI_A1_S01_R3_qp32_s0_f294_t8 ->  | B3: 0 | C3: 0 | D3: 0 | E3: 0 | F3: 0 | G3: 0
A4: =-w1_T1AI_A1_S01_R4_qp37_s0_f294_t8 ->  | B4: 0 | C4: 0 | D4: 0 | E4: 0 | F4: 0 | G4: 0
A5: =-w1_T1AI_A1_S02_R1_qp22_s0_f300_t8 ->  | B5: 0 | C5: 0 | D5: 0 | E5: 0 | F5: 0 | G5: 0
A6: =-w1_T1AI_A1_S02_R2_qp27_s0_f300_t8 ->  | B6: 0 | C6: 0 | D6: 0 | E6: 0 | F6: 0 | G6: 0
A7: =-w1_T1AI_A1_S02_R3_qp32_s0_f300_t8 ->  | B7: 0 | C7: 0 | D7: 0 | E7: 0 | F7: 0 | G7: 0
A8: =-w1_T1AI_A1_S02_R4_qp37_s0_f300_t8 ->  | B8: 0 | C8: 0 | D8: 0 | E8: 0 | F8: 0 | G8: 0
A9: =-w1_T1AI_A1_S03_R1_qp22_s0_f300_t8 ->  | B9: 0 | C9: 0 | D9: 0 | E9: 0 | F9: 0 | G9: 0
A10: =-w1_T1AI_A1_S03_R2_qp27_s0_f300_t8 ->  | B10: 0 | C10: 0 | D10: 0 | E10: 0 | F10: 0 | G10: 0
A11: =-w1_T1AI_A1_S03_R3_qp32_s0_f300_t8 ->  | B11: 0 | C11: 0 | D11: 0 | E11: 0 | F11: 0 | G11: 0
A12: =-w1_T1AI_A1_S03_R4_qp37_s0_f300_t8 ->  | B12: 0 | C12: 0 | D12: 0 | E12: 0 | F12: 0 | G12: 0
A13: =-w1_T1AI_A2_S01_R1_qp22_s0_f300_t8 ->  | B13: 0 | C13: 0 | D13: 0 | E13: 0 | F13: 0 | G13: 0
A14: =-w1_T1AI_A2_S01_R2_qp27_s0_f300_t8 ->  | B14: 0 | C14: 0 | D14: 0 | E14: 0 | F14: 0 | G14: 0
A15: =-w1_T1AI_A2_S01_R3_qp32_s0_f300_t8 ->  | B15: 0 | C15: 0 | D15: 0 | E15: 0 | F15: 0 | G15: 0
A16: =-w1_T1AI_A2_S01_R4_qp37_s0_f300_t8 ->  | B16: 0 | C16: 0 | D16: 0 | E16: 0 | F16: 0 | G16: 0
A17: =-w1_T1AI_A2_S02_R1_qp22_s0_f300_t8 ->  | B17: 0 | C17: 0 | D17: 0 | E17: 0 | F17: 0 | G17: 0
A18: =-w1_T1AI_A2_S02_R2_qp27_s0_f300_t8 ->  | B18: 0 | C18: 0 | D18: 0 | E18: 0 | F18: 0 | G18: 0
A19: =-w1_T1AI_A2_S02_R3_qp32_s0_f300_t8 ->  | B19: 0 | C19: 0 | D19: 0 | E19: 0 | F19: 0 | G19: 0
A20: =-w1_T1AI_A2_S02_R4_qp37_s0_f300_t8 ->  | B20: 0 | C20: 0 | D20: 0 | E20: 0 | F20: 0 | G20: 0
A21: =-w1_T1AI_A2_S03_R1_qp22_s0_f300_t8 ->  | B21: 0 | C21: 0 | D21: 0 | E21: 0 | F21: 0 | G21: 0
A22: =-w1_T1AI_A2_S03_R2_qp27_s0_f300_t8 ->  | B22: 0 | C22: 0 | D22: 0 | E22: 0 | F22: 0 | G22: 0
A23: =-w1_T1AI_A2_S03_R3_qp32_s0_f300_t8 ->  | B23: 0 | C23: 0 | D23: 0 | E23: 0 | F23: 0 | G23: 0
A24: =-w1_T1AI_A2_S03_R4_qp37_s0_f300_t8 ->  | B24: 0 | C24: 0 | D24: 0 | E24: 0 | F24: 0 | G24: 0
A25: =-w1_T1AI_B_S01_R1_qp22_s0_f600_t8 ->  | B25: 0 | C25: 0 | D25: 0 | E25: 0 | F25: 0 | G25: 0
A26: =-w1_T1AI_B_S01_R2_qp27_s0_f600_t8 ->  | B26: 0 | C26: 0 | D26: 0 | E26: 0 | F26: 0 | G26: 0
A27: =-w1_T1AI_B_S01_R3_qp32_s0_f600_t8 ->  | B27: 0 | C27: 0 | D27: 0 | E27: 0 | F27: 0 | G27: 0
A28: =-w1_T1AI_B_S01_R4_qp37_s0_f600_t8 ->  | B28: 0 | C28: 0 | D28: 0 | E28: 0 | F28: 0 | G28: 0
A29: =-w1_T1AI_B_S02_R1_qp22_s0_f600_t8 ->  | B29: 0 | C29: 0 | D29: 0 | E29: 0 | F29: 0 | G29: 0
A30: =-w1_T1AI_B_S02_R2_qp27_s0_f600_t8 ->  | B30: 0 | C30: 0 | D30: 0 | E30: 0 | F30: 0 | G30: 0
A31: =-w1_T1AI_B_S02_R3_qp32_s0_f600_t8 ->  | B31: 0 | C31: 0 | D31: 0 | E31: 0 | F31: 0 | G31: 0
A32: =-w1_T1AI_B_S02_R4_qp37_s0_f600_t8 ->  | B32: 0 | C32: 0 | D32: 0 | E32: 0 | F32: 0 | G32: 0
A33: =-w1_T1AI_B_S03_R1_qp22_s0_f500_t8 ->  | B33: 0 | C33: 0 | D33: 0 | E33: 0 | F33: 0 | G33: 0
A34: =-w1_T1AI_B_S03_R2_qp27_s0_f500_t8 ->  | B34: 0 | C34: 0 | D34: 0 | E34: 0 | F34: 0 | G34: 0
A35: =-w1_T1AI_B_S03_R3_qp32_s0_f500_t8 ->  | B35: 0 | C35: 0 | D35: 0 | E35: 0 | F35: 0 | G35: 0
A36: =-w1_T1AI_B_S03_R4_qp37_s0_f500_t8 ->  | B36: 0 | C36: 0 | D36: 0 | E36: 0 | F36: 0 | G36: 0
A37: =-w1_T1AI_B_S04_R1_qp22_s0_f500_t8 ->  | B37: 0 | C37: 0 | D37: 0 | E37: 0 | F37: 0 | G37: 0
A38: =-w1_T1AI_B_S04_R2_qp27_s0_f500_t8 ->  | B38: 0 | C38: 0 | D38: 0 | E38: 0 | F38: 0 | G38: 0
A39: =-w1_T1AI_B_S04_R3_qp32_s0_f500_t8 ->  | B39: 0 | C39: 0 | D39: 0 | E39: 0 | F39: 0 | G39: 0
A40: =-w1_T1AI_B_S04_R4_qp37_s0_f500_t8 ->  | B40: 0 | C40: 0 | D40: 0 | E40: 0 | F40: 0 | G40: 0
A41: =-w1_T1AI_B_S05_R1_qp22_s0_f600_t8 ->  | B41: 0 | C41: 0 | D41: 0 | E41: 0 | F41: 0 | G41: 0
A42: =-w1_T1AI_B_S05_R2_qp27_s0_f600_t8 ->  | B42: 0 | C42: 0 | D42: 0 | E42: 0 | F42: 0 | G42: 0
A43: =-w1_T1AI_B_S05_R3_qp32_s0_f600_t8 ->  | B43: 0 | C43: 0 | D43: 0 | E43: 0 | F43: 0 | G43: 0
A44: =-w1_T1AI_B_S05_R4_qp37_s0_f600_t8 ->  | B44: 0 | C44: 0 | D44: 0 | E44: 0 | F44: 0 | G44: 0
A45: =-w1_T1AI_C_S01_R1_qp22_s0_f500_t8 ->  | B45: 0 | C45: 0 | D45: 0 | E45: 0 | F45: 0 | G45: 0
A46: =-w1_T1AI_C_S01_R2_qp27_s0_f500_t8 ->  | B46: 0 | C46: 0 | D46: 0 | E46: 0 | F46: 0 | G46: 0
A47: =-w1_T1AI_C_S01_R3_qp32_s0_f500_t8 ->  | B47: 0 | C47: 0 | D47: 0 | E47: 0 | F47: 0 | G47: 0
A48: =-w1_T1AI_C_S01_R4_qp37_s0_f500_t8 ->  | B48: 368.7659 | C48: 33.8744 | D48: 38.6647 | E48: 38.8323 | F48: 3240.51 | G48: 2.45
A49: =-w1_T1AI_C_S02_R1_qp22_s0_f600_t8 ->  | B49: 0 | C49: 0 | D49: 0 | E49: 0 | F49: 0 | G49: 0
A50: =-w1_T1AI_C_S02_R2_qp27_s0_f600_t8 ->  | B50: 0 | C50: 0 | D50: 0 | E50: 0 | F50: 0 | G50: 0
A51: =-w1_T1AI_C_S02_R3_qp32_s0_f600_t8 ->  | B51: 0 | C51: 0 | D51: 0 | E51: 0 | F51: 0 | G51: 0
A52: =-w1_T1AI_C_S02_R4_qp37_s0_f600_t8 ->  | B52: 0 | C52: 0 | D52: 0 | E52: 0 | F52: 0 | G52: 0
A53: =-w1_T1AI_C_S03_R1_qp22_s0_f500_t8 ->  | B53: 0 | C53: 0 | D53: 0 | E53: 0 | F53: 0 | G53: 0
A54: =-w1_T1AI_C_S03_R2_qp27_s0_f500_t8 ->  | B54: 0 | C54: 0 | D54: 0 | E54: 0 | F54: 0 | G54: 0
A55: =-w1_T1AI_C_S03_R3_qp32_s0_f500_t8 ->  | B55: 0 | C55: 0 | D55: 0 | E55: 0 | F55: 0 | G55: 0
A56: =-w1_T1AI_C_S03_R4_qp37_s0_f500_t8 ->  | B56: 0 | C56: 0 | D56: 0 | E56: 0 | F56: 0 | G56: 0
A57: =-w1_T1AI_C_S04_R1_qp22_s0_f300_t8 ->  | B57: 0 | C57: 0 | D57: 0 | E57: 0 | F57: 0 | G57: 0
A58: =-w1_T1AI_C_S04_R2_qp27_s0_f300_t8 ->  | B58: 0 | C58: 0 | D58: 0 | E58: 0 | F58: 0 | G58: 0
A59: =-w1_T1AI_C_S04_R3_qp32_s0_f300_t8 ->  | B59: 617.3147 | C59: 36.4473 | D59: 38.1297 | E59: 40.23 | F59: 3660.05 | G59: 1.98
A60: =-w1_T1AI_C_S04_R4_qp37_s0_f300_t8 ->  | B60: 316.8189 | C60: 33.0303 | D60: 36.8688 | E60: 38.9475 | F60: 2495.35 | G60: 1.67
A61: =-w1_T1AI_D_S01_R1_qp22_s0_f500_t8 ->  | B61: 585.2913 | C61: 43.5961 | D61: 45.5884 | E61: 45.3801 | F61: 2624.84 | G61: 1.13
A62: =-w1_T1AI_D_S01_R2_qp27_s0_f500_t8 ->  | B62: 349.7389 | C62: 39.9966 | D62: 42.8631 | E62: 42.3018 | F62: 2032.1 | G62: 0.95
A63: =-w1_T1AI_D_S01_R3_qp32_s0_f500_t8 ->  | B63: 203.0611 | C63: 36.6228 | D63: 40.7216 | E63: 39.9352 | F63: 1535.44 | G63: 0.75
A64: =-w1_T1AI_D_S01_R4_qp37_s0_f500_t8 ->  | B64: 114.3825 | C64: 33.4551 | D64: 39.0217 | E64: 38.1017 | F64: 1036.82 | G64: 0.62
A65: =-w1_T1AI_D_S02_R1_qp22_s0_f600_t8 ->  | B65: 1529.1816 | C65: 41.8724 | D65: 43.3582 | E65: 44.6164 | F65: 3623.25 | G65: 1.93
A66: =-w1_T1AI_D_S02_R2_qp27_s0_f600_t8 ->  | B66: 972.0128 | C66: 37.4347 | D66: 40.869 | E66: 42.2811 | F66: 2958.19 | G66: 1.53
A67: =-w1_T1AI_D_S02_R3_qp32_s0_f600_t8 ->  | B67: 592.7112 | C67: 33.6249 | D67: 39.397 | E67: 40.6262 | F67: 2290.1 | G67: 1.23
A68: =-w1_T1AI_D_S02_R4_qp37_s0_f600_t8 ->  | B68: 351.4176 | C68: 30.1497 | D68: 38.4218 | E68: 39.4012 | F68: 1713.48 | G68: 1.02
A69: =-w1_T1AI_D_S03_R1_qp22_s0_f500_t8 ->  | B69: 1330.5317 | C69: 41.6657 | D69: 42.0671 | E69: 43.0286 | F69: 3498.36 | G69: 1.8
A70: =-w1_T1AI_D_S03_R2_qp27_s0_f500_t8 ->  | B70: 828.9079 | C70: 37.4287 | D70: 39.3098 | E70: 40.0252 | F70: 2916.45 | G70: 1.51
A71: =-w1_T1AI_D_S03_R3_qp32_s0_f500_t8 ->  | B71: 477.5516 | C71: 33.4968 | D71: 37.3199 | E71: 37.865 | F71: 2462.98 | G71: 1.23
A72: =-w1_T1AI_D_S03_R4_qp37_s0_f500_t8 ->  | B72: 246.2556 | C72: 29.89 | D72: 35.8095 | E72: 36.343 | F72: 1931.91 | G72: 0.95
A73: =-w1_T1AI_D_S04_R1_qp22_s0_f300_t8 ->  | B73: 513.1437 | C73: 43.3219 | D73: 43.0052 | E73: 44.041 | F73: 1699.38 | G73: 0.83
A74: =-w1_T1AI_D_S04_R2_qp27_s0_f300_t8 ->  | B74: 323.595 | C74: 39.6153 | D74: 39.9135 | E74: 41.4042 | F74: 1379.47 | G74: 0.67
A75: =-w1_T1AI_D_S04_R3_qp32_s0_f300_t8 ->  | B75: 182.2247 | C75: 35.701 | D75: 37.9994 | E75: 39.3843 | F75: 1147.93 | G75: 0.56
A76: =-w1_T1AI_D_S04_R4_qp37_s0_f300_t8 ->  | B76: 92.0045 | C76: 32.1687 | D76: 36.5236 | E76: 37.7063 | F76: 818.14 | G76: 0.44
A77: =-w1_T1AI_E_S01_R1_qp22_s0_f600_t8 ->  | B77: 0 | C77: 0 | D77: 0 | E77: 0 | F77: 0 | G77: 0
A78: =-w1_T1AI_E_S01_R2_qp27_s0_f600_t8 ->  | B78: 0 | C78: 0 | D78: 0 | E78: 0 | F78: 0 | G78: 0
A79: =-w1_T1AI_E_S01_R3_qp32_s0_f600_t8 ->  | B79: 0 | C79: 0 | D79: 0 | E79: 0 | F79: 0 | G79: 0
A80: =-w1_T1AI_E_S01_R4_qp37_s0_f600_t8 ->  | B80: 0 | C80: 0 | D80: 0 | E80: 0 | F80: 0 | G80: 0
A81: =-w1_T1AI_E_S02_R1_qp22_s0_f600_t8 ->  | B81: 0 | C81: 0 | D81: 0 | E81: 0 | F81: 0 | G81: 0
A82: =-w1_T1AI_E_S02_R2_qp27_s0_f600_t8 ->  | B82: 0 | C82: 0 | D82: 0 | E82: 0 | F82: 0 | G82: 0
A83: =-w1_T1AI_E_S02_R3_qp32_s0_f600_t8 ->  | B83: 0 | C83: 0 | D83: 0 | E83: 0 | F83: 0 | G83: 0
A84: =-w1_T1AI_E_S02_R4_qp37_s0_f600_t8 ->  | B84: 427.6272 | C84: 38.0903 | D84: 43.735 | E84: 44.5616 | F84: 3570.95 | G84: 4.94
A85: =-w1_T1AI_E_S03_R1_qp22_s0_f600_t8 ->  | B85: 0 | C85: 0 | D85: 0 | E85: 0 | F85: 0 | G85: 0
A86: =-w1_T1AI_E_S03_R2_qp27_s0_f600_t8 ->  | B86: 0 | C86: 0 | D86: 0 | E86: 0 | F86: 0 | G86: 0
A87: =-w1_T1AI_E_S03_R3_qp32_s0_f600_t8 ->  | B87: 0 | C87: 0 | D87: 0 | E87: 0 | F87: 0 | G87: 0
A88: =-w1_T1AI_E_S03_R4_qp37_s0_f600_t8 ->  | B88: 558.944 | C88: 37.8318 | D88: 42.9693 | E88: 44.1438 | F88: 4045.99 | G88: 5.65
A89: =-w1_T1AI_F_S01_R1_qp22_s0_f500_t8 ->  | B89: 0 | C89: 0 | D89: 0 | E89: 0 | F89: 0 | G89: 0
A90: =-w1_T1AI_F_S01_R2_qp27_s0_f500_t8 ->  | B90: 0 | C90: 0 | D90: 0 | E90: 0 | F90: 0 | G90: 0
A91: =-w1_T1AI_F_S01_R3_qp32_s0_f500_t8 ->  | B91: 0 | C91: 0 | D91: 0 | E91: 0 | F91: 0 | G91: 0
A92: =-w1_T1AI_F_S01_R4_qp37_s0_f500_t8 ->  | B92: 0 | C92: 0 | D92: 0 | E92: 0 | F92: 0 | G92: 0
A93: =-w1_T1AI_F_S02_R1_qp22_s0_f600_t8 ->  | B93: 0 | C93: 0 | D93: 0 | E93: 0 | F93: 0 | G93: 0
A94: =-w1_T1AI_F_S02_R2_qp27_s0_f600_t8 ->  | B94: 0 | C94: 0 | D94: 0 | E94: 0 | F94: 0 | G94: 0
A95: =-w1_T1AI_F_S02_R3_qp32_s0_f600_t8 ->  | B95: 0 | C95: 0 | D95: 0 | E95: 0 | F95: 0 | G95: 0
A96: =-w1_T1AI_F_S02_R4_qp37_s0_f600_t8 ->  | B96: 0 | C96: 0 | D96: 0 | E96: 0 | F96: 0 | G96: 0
A97: =-w1_T1AI_F_S03_R1_qp22_s0_f300_t8 ->  | B97: 0 | C97: 0 | D97: 0 | E97: 0 | F97: 0 | G97: 0
A98: =-w1_T1AI_F_S03_R2_qp27_s0_f300_t8 ->  | B98: 0 | C98: 0 | D98: 0 | E98: 0 | F98: 0 | G98: 0
A99: =-w1_T1AI_F_S03_R3_qp32_s0_f300_t8 ->  | B99: 0 | C99: 0 | D99: 0 | E99: 0 | F99: 0 | G99: 0
A100: =-w1_T1AI_F_S03_R4_qp37_s0_f300_t8 ->  | B100: 0 | C100: 0 | D100: 0 | E100: 0 | F100: 0 | G100: 0
A101: =-w1_T1AI_F_S04_R1_qp22_s0_f500_t8 ->  | B101: 0 | C101: 0 | D101: 0 | E101: 0 | F101: 0 | G101: 0
A102: =-w1_T1AI_F_S04_R2_qp27_s0_f500_t8 ->  | B102: 0 | C102: 0 | D102: 0 | E102: 0 | F102: 0 | G102: 0
A103: =-w1_T1AI_F_S04_R3_qp32_s0_f500_t8 ->  | B103: 0 | C103: 0 | D103: 0 | E103: 0 | F103: 0 | G103: 0
A104: =-w1_T1AI_F_S04_R4_qp37_s0_f500_t8 ->  | B104: 145.7289 | C104: 40.7858 | D104: 46.6266 | E104: 48.6851 | F104: 4166.94 | G104: 3.83
A105: =-w1_T2RA_A1_S01_R1_qp22_s0_f294_t1 ->  | B105: 0 | C105: 0 | D105: 0 | E105: 0 | F105: 0 | G105: 0
A106: =-w1_T2RA_A1_S01_R2_qp27_s0_f294_t1 ->  | B106: 0 | C106: 0 | D106: 0 | E106: 0 | F106: 0 | G106: 0
A107: =-w1_T2RA_A1_S01_R3_qp32_s0_f294_t1 ->  | B107: 0 | C107: 0 | D107: 0 | E107: 0 | F107: 0 | G107: 0
A108: =-w1_T2RA_A1_S01_R4_qp37_s0_f294_t1 ->  | B108: 0 | C108: 0 | D108: 0 | E108: 0 | F108: 0 | G108: 0
A109: =-w1_T2RA_A1_S02_R1_qp22_s0_f300_t1 ->  | B109: 0 | C109: 0 | D109: 0 | E109: 0 | F109: 0 | G109: 0
A110: =-w1_T2RA_A1_S02_R2_qp27_s0_f300_t1 ->  | B110: 0 | C110: 0 | D110: 0 | E110: 0 | F110: 0 | G110: 0
A111: =-w1_T2RA_A1_S02_R3_qp32_s0_f300_t1 ->  | B111: 0 | C111: 0 | D111: 0 | E111: 0 | F111: 0 | G111: 0
A112: =-w1_T2RA_A1_S02_R4_qp37_s0_f300_t1 ->  | B112: 0 | C112: 0 | D112: 0 | E112: 0 | F112: 0 | G112: 0
A113: =-w1_T2RA_A1_S03_R1_qp22_s0_f300_t1 ->  | B113: 0 | C113: 0 | D113: 0 | E113: 0 | F113: 0 | G113: 0
A114: =-w1_T2RA_A1_S03_R2_qp27_s0_f300_t1 ->  | B114: 0 | C114: 0 | D114: 0 | E114: 0 | F114: 0 | G114: 0
A115: =-w1_T2RA_A1_S03_R3_qp32_s0_f300_t1 ->  | B115: 0 | C115: 0 | D115: 0 | E115: 0 | F115: 0 | G115: 0
A116: =-w1_T2RA_A1_S03_R4_qp37_s0_f300_t1 ->  | B116: 0 | C116: 0 | D116: 0 | E116: 0 | F116: 0 | G116: 0
A117: =-w1_T2RA_A2_S01_R1_qp22_s0_f300_t1 ->  | B117: 0 | C117: 0 | D117: 0 | E117: 0 | F117: 0 | G117: 0
A118: =-w1_T2RA_A2_S01_R2_qp27_s0_f300_t1 ->  | B118: 0 | C118: 0 | D118: 0 | E118: 0 | F118: 0 | G118: 0
A119: =-w1_T2RA_A2_S01_R3_qp32_s0_f300_t1 ->  | B119: 0 | C119: 0 | D119: 0 | E119: 0 | F119: 0 | G119: 0
A120: =-w1_T2RA_A2_S01_R4_qp37_s0_f300_t1 ->  | B120: 0 | C120: 0 | D120: 0 | E120: 0 | F120: 0 | G120: 0
A121: =-w1_T2RA_A2_S02_R1_qp22_s0_f300_t1 ->  | B121: 0 | C121: 0 | D121: 0 | E121: 0 | F121: 0 | G121: 0
A122: =-w1_T2RA_A2_S02_R2_qp27_s0_f300_t1 ->  | B122: 0 | C122: 0 | D122: 0 | E122: 0 | F122: 0 | G122: 0
A123: =-w1_T2RA_A2_S02_R3_qp32_s0_f300_t1 ->  | B123: 0 | C123: 0 | D123: 0 | E123: 0 | F123: 0 | G123: 0
A124: =-w1_T2RA_A2_S02_R4_qp37_s0_f300_t1 ->  | B124: 0 | C124: 0 | D124: 0 | E124: 0 | F124: 0 | G124: 0
A125: =-w1_T2RA_A2_S03_R1_qp22_s0_f300_t1 ->  | B125: 0 | C125: 0 | D125: 0 | E125: 0 | F125: 0 | G125: 0
A126: =-w1_T2RA_A2_S03_R2_qp27_s0_f300_t1 ->  | B126: 0 | C126: 0 | D126: 0 | E126: 0 | F126: 0 | G126: 0
A127: =-w1_T2RA_A2_S03_R3_qp32_s0_f300_t1 ->  | B127: 0 | C127: 0 | D127: 0 | E127: 0 | F127: 0 | G127: 0
A128: =-w1_T2RA_A2_S03_R4_qp37_s0_f300_t1 ->  | B128: 0 | C128: 0 | D128: 0 | E128: 0 | F128: 0 | G128: 0
A129: =-w1_T2RA_B_S01_R1_qp22_s0_f600_t1 ->  | B129: 0 | C129: 0 | D129: 0 | E129: 0 | F129: 0 | G129: 0
A130: =-w1_T2RA_B_S01_R2_qp27_s0_f600_t1 ->  | B130: 0 | C130: 0 | D130: 0 | E130: 0 | F130: 0 | G130: 0
A131: =-w1_T2RA_B_S01_R3_qp32_s0_f600_t1 ->  | B131: 0 | C131: 0 | D131: 0 | E131: 0 | F131: 0 | G131: 0
A132: =-w1_T2RA_B_S01_R4_qp37_s0_f600_t1 ->  | B132: 0 | C132: 0 | D132: 0 | E132: 0 | F132: 0 | G132: 0
A133: =-w1_T2RA_B_S02_R1_qp22_s0_f600_t1 ->  | B133: 0 | C133: 0 | D133: 0 | E133: 0 | F133: 0 | G133: 0
A134: =-w1_T2RA_B_S02_R2_qp27_s0_f600_t1 ->  | B134: 0 | C134: 0 | D134: 0 | E134: 0 | F134: 0 | G134: 0
A135: =-w1_T2RA_B_S02_R3_qp32_s0_f600_t1 ->  | B135: 0 | C135: 0 | D135: 0 | E135: 0 | F135: 0 | G135: 0
A136: =-w1_T2RA_B_S02_R4_qp37_s0_f600_t1 ->  | B136: 0 | C136: 0 | D136: 0 | E136: 0 | F136: 0 | G136: 0
A137: =-w1_T2RA_B_S03_R1_qp22_s0_f500_t1 ->  | B137: 0 | C137: 0 | D137: 0 | E137: 0 | F137: 0 | G137: 0
A138: =-w1_T2RA_B_S03_R2_qp27_s0_f500_t1 ->  | B138: 0 | C138: 0 | D138: 0 | E138: 0 | F138: 0 | G138: 0
A139: =-w1_T2RA_B_S03_R3_qp32_s0_f500_t1 ->  | B139: 0 | C139: 0 | D139: 0 | E139: 0 | F139: 0 | G139: 0
A140: =-w1_T2RA_B_S03_R4_qp37_s0_f500_t1 ->  | B140: 0 | C140: 0 | D140: 0 | E140: 0 | F140: 0 | G140: 0
A141: =-w1_T2RA_B_S04_R1_qp22_s0_f500_t1 ->  | B141: 0 | C141: 0 | D141: 0 | E141: 0 | F141: 0 | G141: 0
A142: =-w1_T2RA_B_S04_R2_qp27_s0_f500_t1 ->  | B142: 0 | C142: 0 | D142: 0 | E142: 0 | F142: 0 | G142: 0
A143: =-w1_T2RA_B_S04_R3_qp32_s0_f500_t1 ->  | B143: 0 | C143: 0 | D143: 0 | E143: 0 | F143: 0 | G143: 0
A144: =-w1_T2RA_B_S04_R4_qp37_s0_f500_t1 ->  | B144: 0 | C144: 0 | D144: 0 | E144: 0 | F144: 0 | G144: 0
A145: =-w1_T2RA_B_S05_R1_qp22_s0_f600_t1 ->  | B145: 0 | C145: 0 | D145: 0 | E145: 0 | F145: 0 | G145: 0
A146: =-w1_T2RA_B_S05_R2_qp27_s0_f600_t1 ->  | B146: 0 | C146: 0 | D146: 0 | E146: 0 | F146: 0 | G146: 0
A147: =-w1_T2RA_B_S05_R3_qp32_s0_f600_t1 ->  | B147: 0 | C147: 0 | D147: 0 | E147: 0 | F147: 0 | G147: 0
A148: =-w1_T2RA_B_S05_R4_qp37_s0_f600_t1 ->  | B148: 0 | C148: 0 | D148: 0 | E148: 0 | F148: 0 | G148: 0
A149: =-w1_T2RA_C_S01_R1_qp22_s0_f500_t1 ->  | B149: 0 | C149: 0 | D149: 0 | E149: 0 | F149: 0 | G149: 0
A150: =-w1_T2RA_C_S01_R2_qp27_s0_f500_t1 ->  | B150: 0 | C150: 0 | D150: 0 | E150: 0 | F150: 0 | G150: 0
A151: =-w1_T2RA_C_S01_R3_qp32_s0_f500_t1 ->  | B151: 0 | C151: 0 | D151: 0 | E151: 0 | F151: 0 | G151: 0
A152: =-w1_T2RA_C_S01_R4_qp37_s0_f500_t1 ->  | B152: 0 | C152: 0 | D152: 0 | E152: 0 | F152: 0 | G152: 0
A153: =-w1_T2RA_C_S02_R1_qp22_s0_f600_t1 ->  | B153: 0 | C153: 0 | D153: 0 | E153: 0 | F153: 0 | G153: 0
A154: =-w1_T2RA_C_S02_R2_qp27_s0_f600_t1 ->  | B154: 0 | C154: 0 | D154: 0 | E154: 0 | F154: 0 | G154: 0
A155: =-w1_T2RA_C_S02_R3_qp32_s0_f600_t1 ->  | B155: 0 | C155: 0 | D155: 0 | E155: 0 | F155: 0 | G155: 0
A156: =-w1_T2RA_C_S02_R4_qp37_s0_f600_t1 ->  | B156: 0 | C156: 0 | D156: 0 | E156: 0 | F156: 0 | G156: 0
A157: =-w1_T2RA_C_S03_R1_qp22_s0_f500_t1 ->  | B157: 0 | C157: 0 | D157: 0 | E157: 0 | F157: 0 | G157: 0
A158: =-w1_T2RA_C_S03_R2_qp27_s0_f500_t1 ->  | B158: 0 | C158: 0 | D158: 0 | E158: 0 | F158: 0 | G158: 0
A159: =-w1_T2RA_C_S03_R3_qp32_s0_f500_t1 ->  | B159: 0 | C159: 0 | D159: 0 | E159: 0 | F159: 0 | G159: 0
A160: =-w1_T2RA_C_S03_R4_qp37_s0_f500_t1 ->  | B160: 0 | C160: 0 | D160: 0 | E160: 0 | F160: 0 | G160: 0
A161: =-w1_T2RA_C_S04_R1_qp22_s0_f300_t1 ->  | B161: 0 | C161: 0 | D161: 0 | E161: 0 | F161: 0 | G161: 0
A162: =-w1_T2RA_C_S04_R2_qp27_s0_f300_t1 ->  | B162: 0 | C162: 0 | D162: 0 | E162: 0 | F162: 0 | G162: 0
A163: =-w1_T2RA_C_S04_R3_qp32_s0_f300_t1 ->  | B163: 0 | C163: 0 | D163: 0 | E163: 0 | F163: 0 | G163: 0
A164: =-w1_T2RA_C_S04_R4_qp37_s0_f300_t1 ->  | B164: 0 | C164: 0 | D164: 0 | E164: 0 | F164: 0 | G164: 0
A165: =-w1_T2RA_D_S01_R1_qp22_s0_f500_t1 ->  | B165: 0 | C165: 0 | D165: 0 | E165: 0 | F165: 0 | G165: 0
A166: =-w1_T2RA_D_S01_R2_qp27_s0_f500_t1 ->  | B166: 0 | C166: 0 | D166: 0 | E166: 0 | F166: 0 | G166: 0
A167: =-w1_T2RA_D_S01_R3_qp32_s0_f500_t1 ->  | B167: 0 | C167: 0 | D167: 0 | E167: 0 | F167: 0 | G167: 0
A168: =-w1_T2RA_D_S01_R4_qp37_s0_f500_t1 ->  | B168: 0 | C168: 0 | D168: 0 | E168: 0 | F168: 0 | G168: 0
A169: =-w1_T2RA_D_S02_R1_qp22_s0_f600_t1 ->  | B169: 0 | C169: 0 | D169: 0 | E169: 0 | F169: 0 | G169: 0
A170: =-w1_T2RA_D_S02_R2_qp27_s0_f600_t1 ->  | B170: 0 | C170: 0 | D170: 0 | E170: 0 | F170: 0 | G170: 0
A171: =-w1_T2RA_D_S02_R3_qp32_s0_f600_t1 ->  | B171: 0 | C171: 0 | D171: 0 | E171: 0 | F171: 0 | G171: 0
A172: =-w1_T2RA_D_S02_R4_qp37_s0_f600_t1 ->  | B172: 0 | C172: 0 | D172: 0 | E172: 0 | F172: 0 | G172: 0
A173: =-w1_T2RA_D_S03_R1_qp22_s0_f500_t1 ->  | B173: 0 | C173: 0 | D173: 0 | E173: 0 | F173: 0 | G173: 0
A174: =-w1_T2RA_D_S03_R2_qp27_s0_f500_t1 ->  | B174: 0 | C174: 0 | D174: 0 | E174: 0 | F174: 0 | G174: 0
A175: =-w1_T2RA_D_S03_R3_qp32_s0_f500_t1 ->  | B175: 0 | C175: 0 | D175: 0 | E175: 0 | F175: 0 | G175: 0
A176: =-w1_T2RA_D_S03_R4_qp37_s0_f500_t1 ->  | B176: 0 | C176: 0 | D176: 0 | E176: 0 | F176: 0 | G176: 0
A177: =-w1_T2RA_D_S04_R1_qp22_s0_f300_t1 ->  | B177: 0 | C177: 0 | D177: 0 | E177: 0 | F177: 0 | G177: 0
A178: =-w1_T2RA_D_S04_R2_qp27_s0_f300_t1 ->  | B178: 0 | C178: 0 | D178: 0 | E178: 0 | F178: 0 | G178: 0
A179: =-w1_T2RA_D_S04_R3_qp32_s0_f300_t1 ->  | B179: 0 | C179: 0 | D179: 0 | E179: 0 | F179: 0 | G179: 0
A180: =-w1_T2RA_D_S04_R4_qp37_s0_f300_t1 ->  | B180: 0 | C180: 0 | D180: 0 | E180: 0 | F180: 0 | G180: 0
A181: =-w1_T2RA_E_S01_R1_qp22_s0_f600_t1 ->  | B181: 0 | C181: 0 | D181: 0 | E181: 0 | F181: 0 | G181: 0
A182: =-w1_T2RA_E_S01_R2_qp27_s0_f600_t1 ->  | B182: 0 | C182: 0 | D182: 0 | E182: 0 | F182: 0 | G182: 0
A183: =-w1_T2RA_E_S01_R3_qp32_s0_f600_t1 ->  | B183: 0 | C183: 0 | D183: 0 | E183: 0 | F183: 0 | G183: 0
A184: =-w1_T2RA_E_S01_R4_qp37_s0_f600_t1 ->  | B184: 0 | C184: 0 | D184: 0 | E184: 0 | F184: 0 | G184: 0
A185: =-w1_T2RA_E_S02_R1_qp22_s0_f600_t1 ->  | B185: 0 | C185: 0 | D185: 0 | E185: 0 | F185: 0 | G185: 0
A186: =-w1_T2RA_E_S02_R2_qp27_s0_f600_t1 ->  | B186: 0 | C186: 0 | D186: 0 | E186: 0 | F186: 0 | G186: 0
A187: =-w1_T2RA_E_S02_R3_qp32_s0_f600_t1 ->  | B187: 0 | C187: 0 | D187: 0 | E187: 0 | F187: 0 | G187: 0
A188: =-w1_T2RA_E_S02_R4_qp37_s0_f600_t1 ->  | B188: 0 | C188: 0 | D188: 0 | E188: 0 | F188: 0 | G188: 0
A189: =-w1_T2RA_E_S03_R1_qp22_s0_f600_t1 ->  | B189: 0 | C189: 0 | D189: 0 | E189: 0 | F189: 0 | G189: 0
A190: =-w1_T2RA_E_S03_R2_qp27_s0_f600_t1 ->  | B190: 0 | C190: 0 | D190: 0 | E190: 0 | F190: 0 | G190: 0
A191: =-w1_T2RA_E_S03_R3_qp32_s0_f600_t1 ->  | B191: 0 | C191: 0 | D191: 0 | E191: 0 | F191: 0 | G191: 0
A192: =-w1_T2RA_E_S03_R4_qp37_s0_f600_t1 ->  | B192: 0 | C192: 0 | D192: 0 | E192: 0 | F192: 0 | G192: 0
A193: =-w1_T2RA_F_S01_R1_qp22_s0_f500_t1 ->  | B193: 0 | C193: 0 | D193: 0 | E193: 0 | F193: 0 | G193: 0
A194: =-w1_T2RA_F_S01_R2_qp27_s0_f500_t1 ->  | B194: 0 | C194: 0 | D194: 0 | E194: 0 | F194: 0 | G194: 0
A195: =-w1_T2RA_F_S01_R3_qp32_s0_f500_t1 ->  | B195: 0 | C195: 0 | D195: 0 | E195: 0 | F195: 0 | G195: 0
A196: =-w1_T2RA_F_S01_R4_qp37_s0_f500_t1 ->  | B196: 0 | C196: 0 | D196: 0 | E196: 0 | F196: 0 | G196: 0
A197: =-w1_T2RA_F_S02_R1_qp22_s0_f600_t1 ->  | B197: 0 | C197: 0 | D197: 0 | E197: 0 | F197: 0 | G197: 0
A198: =-w1_T2RA_F_S02_R2_qp27_s0_f600_t1 ->  | B198: 0 | C198: 0 | D198: 0 | E198: 0 | F198: 0 | G198: 0
A199: =-w1_T2RA_F_S02_R3_qp32_s0_f600_t1 ->  | B199: 0 | C199: 0 | D199: 0 | E199: 0 | F199: 0 | G199: 0
A200: =-w1_T2RA_F_S02_R4_qp37_s0_f600_t1 ->  | B200: 0 | C200: 0 | D200: 0 | E200: 0 | F200: 0 | G200: 0
... 216 more rows
